Workbook

Sheet 整合夢幻報表
A1: 1216 | B1: <<<請輸入股票代號後，按更新 | H1: 留意：下方財報中，淺藍底的部份是預估資料(未來五季) | S1: IFRS營收
A2: =基本資料及十大股東!A1 -> 2330 台積電 | D2: 研究員: | H2: 年季 | I2: =季報含預估!F2 -> 202309 | J2: =季報含預估!G2 -> 202312 | K2: =季報含預估!H2 -> 202403 | L2: =季報含預估!I2 -> 202406 | M2: =季報含預估!J2 -> 202409 | N2: =季報含預估!K2 -> 202412 | O2: =季報含預估!L2 -> 202503 | P2: =季報含預估!M2 -> 202506 | Q2: =季報含預估!N2 -> 202509 | S2: 年月 | T2: 單月營收(千) | U2: 累計營收(千) | V2: 單月營收年成長(%) | W2: 單月營收月變動(%) | Y2: 年季 | Z2: =IFRS資產負債表!J2 -> 202306 | AA2: =IFRS資產負債表!K2 -> 202309 | AB2: =IFRS資產負債表!L2 -> 202312 | AC2: =IFRS資產負債表!M2 -> 202403 | AD2: =IFRS資產負債表!N2 -> 202406
A3: 發言人 | B3: =基本資料及十大股東!A3 -> 黃仁昭(副總經理暨財務長) | D3: 實收資本(百萬) | F3: =基本資料及十大股東!D3/1000000 -> 259327.3324 | H3: =季報含預估!A3 -> 營業收入淨額(千) | I3: =季報含預估!F3 -> 546732758 | J3: =季報含預估!G3 -> 625528856 | K3: =季報含預估!H3 -> 592644201 | L3: =季報含預估!I3 -> 673510177 | M3: =季報含預估!J3 -> 445846899.4 | N3: =季報含預估!K3 -> 668770349.1 | O3: =季報含預估!L3 -> 535016279.3 | P3: =季報含預估!M3 -> 802524419 | Q3: =季報含預估!N3 -> 601893314.2 | S3: =月營收資訊!Q10 -> 2025/04 | T3: =IF(ISERROR(月營收資訊!Y10),"-",月營收資訊!Y10) -> 280965212.7 | U3: =IF(ISERROR(月營收資訊!Z10),"-",月營收資訊!Z10) -> 1161492520 | V3: =IF(ISERROR(月營收資訊!AA10),"-",月營收資訊!AA10) -> 40.16424987 | W3: =IF(ISERROR(月營收資訊!AB10),"-",月營收資訊!AB10) -> 1.164598473 | Y3: 現金及約當現金(千) | Z3: =IFRS資產負債表!J3 -> 1276723984 | AA3: =IFRS資產負債表!K3 -> 1311806535 | AB3: =IFRS資產負債表!L3 -> 1465427753 | AC3: =IFRS資產負債表!M3 -> 1698195704 | AD3: =IFRS資產負債表!N3 -> 1799127351
A4: 地址 | B4: =基本資料及十大股東!B3 -> 新竹科學工業園區新竹市力行六路8 號 | H4: =季報含預估!A4 -> 營業成本(千) | I4: =季報含預估!F4 -> 250090294 | J4: =季報含預估!G4 -> 293760931 | K4: =季報含預估!H4 -> 278138932 | L4: =季報含預估!I4 -> 315385699 | M4: =季報含預估!J4 -> 234025037.5 | N4: =季報含預估!K4 -> 312315753 | O4: =季報含預估!L4 -> 267508139.7 | P4: =季報含預估!M4 -> 369161232.7 | Q4: =季報含預估!N4 -> 276870924.5 | S4: =月營收資訊!Q11 -> 2025/03 | T4: =IF(ISERROR(月營收資訊!Y11),"-",月營收資訊!Y11) -> 277730764.5 | U4: =IF(ISERROR(月營收資訊!Z11),"-",月營收資訊!Z11) -> 880527307.2 | V4: =IF(ISERROR(月營收資訊!AA11),"-",月營收資訊!AA11) -> 48.57604372 | W4: =IF(ISERROR(月營收資訊!AB11),"-",月營收資訊!AB11) -> -4.710990029 | Y4: 透過損益按公允價值衡量之金融資產–流動(千) | Z4: =IFRS資產負債表!J4 -> 0 | AA4: =IFRS資產負債表!K4 -> 0 | AB4: =IFRS資產負債表!L4 -> 0 | AC4: =IFRS資產負債表!M4 -> 0 | AD4: =IFRS資產負債表!N4 -> 0
A5: 電話 | B5: =基本資料及十大股東!C3 -> 03-5636688 | H5: =季報含預估!A5 -> 營業毛利(千) | I5: =季報含預估!F5 -> 296642464 | J5: =季報含預估!G5 -> 331767925 | K5: =季報含預估!H5 -> 314505269 | L5: =季報含預估!I5 -> 358124478 | M5: =季報含預估!J5 -> 211821861.9 | N5: =季報含預估!K5 -> 356454596.1 | O5: =季報含預估!L5 -> 267508139.7 | P5: =季報含預估!M5 -> 433363186.2 | Q5: =季報含預估!N5 -> 325022389.7 | S5: =月營收資訊!Q12 -> 2025/02 | T5: =IF(ISERROR(月營收資訊!Y12),"-",月營收資訊!Y12) -> 291461486 | U5: =IF(ISERROR(月營收資訊!Z12),"-",月營收資訊!Z12) -> 602796542.7 | V5: =IF(ISERROR(月營收資訊!AA12),"-",月營收資訊!AA12) -> 51.6723424 | W5: =IF(ISERROR(月營收資訊!AB12),"-",月營收資訊!AB12) -> -6.383338559 | Y5: 備供出售金融資產–流動(千) | Z5: =IFRS資產負債表!J5 -> 140774929 | AA5: =IFRS資產負債表!K5 -> 154838390 | AB5: =IFRS資產負債表!L5 -> 154530830 | AC5: =IFRS資產負債表!M5 -> 175880463 | AD5: =IFRS資產負債表!N5 -> 185232206
A6: 經營項目 | B6: =基本資料及十大股東!E3&基本資料及十大股東!F3&基本資料及十大股東!G3 -> 依客戶之訂單與其提供之產品設計說明，以從事製造與銷售積體電路以及其他晶圓半導體裝置。提供前述產品之封裝與測試服務、積體電路之電腦輔助設計技術服務。提供製造光罩及其設計服務。 | H6: =季報含預估!A9 -> 營業費用(千) | I6: =季報含預估!F9 -> 68708791 | J6: =季報含預估!G9 -> 71621021 | K6: =季報含預估!H9 -> 65357281 | L6: =季報含預估!I9 -> 70295310 | M6: =季報含預估!J9 -> 186943604.9 | N6: =季報含預估!K9 -> 200631104.7 | O6: =季報含預估!L9 -> 214006511.7 | P6: =季報含預估!M9 -> 240757325.7 | Q6: =季報含預估!N9 -> 240757325.7 | S6: =月營收資訊!Q13 -> 2025/01 | T6: =IF(ISERROR(月營收資訊!Y13),"-",月營收資訊!Y13) -> 311335056.7 | U6: =IF(ISERROR(月營收資訊!Z13),"-",月營收資訊!Z13) -> 311335056.7 | V6: =IF(ISERROR(月營收資訊!AA13),"-",月營收資訊!AA13) -> 44.28012767 | W6: =IF(ISERROR(月營收資訊!AB13),"-",月營收資訊!AB13) -> 1.444962369 | Y6: 短期投資合計(千) | Z6: =IFRS資產負債表!J6 -> 140804633 | AA6: =IFRS資產負債表!K6 -> 154875841 | AB6: =IFRS資產負債表!L6 -> 154530830 | AC6: =IFRS資產負債表!M6 -> 175880463 | AD6: =IFRS資產負債表!N6 -> 185233615
H7: =季報含預估!A13 -> 營業利益(千) | I7: =季報含預估!F13 -> 228064903 | J7: =季報含預估!G13 -> 260204503 | K7: =季報含預估!H13 -> 249018306 | L7: =季報含預估!I13 -> 286555542 | M7: =季報含預估!J13 -> 24878256.99 | N7: =季報含預估!K13 -> 155823491.3 | O7: =季報含預估!L13 -> 53501627.93 | P7: =季報含預估!M13 -> 192605860.5 | Q7: =季報含預估!N13 -> 84265063.99 | S7: =月營收資訊!Q14 -> 2024/12 | T7: =IF(ISERROR(月營收資訊!Y14),"-",月營收資訊!Y14) -> 306900460.6 | U7: =IF(ISERROR(月營收資訊!Z14),"-",月營收資訊!Z14) -> 2968591177 | V7: =IF(ISERROR(月營收資訊!AA14),"-",月營收資訊!AA14) -> 37.32441867 | W7: =IF(ISERROR(月營收資訊!AB14),"-",月營收資訊!AB14) -> -4.572082323 | Y7: 應收票據淨額(千) | Z7: =IFRS資產負債表!J7 -> 191026814 | AA7: =IFRS資產負債表!K7 -> 222823910 | AB7: =IFRS資產負債表!L7 -> 201938365 | AC7: =IFRS資產負債表!M7 -> 201979697 | AD7: =IFRS資產負債表!N7 -> 210210419
H8: =季報含預估!A14 -> 營業外收入及支出(千) | I8: =季報含預估!F14 -> 13875592 | J8: =季報含預估!G14 -> 18076486 | K8: =季報含預估!H14 -> 17524898 | L8: =季報含預估!I14 -> 19755033 | M8: =季報含預估!J14 -> 9352 | N8: =季報含預估!K14 -> 13078013.12 | O8: =季報含預估!L14 -> 13509126.77 | P8: =季報含預估!M14 -> 13568170.86 | Q8: =季報含預估!N14 -> 13674583.97 | S8: =月營收資訊!Q15 -> 2024/11 | T8: =IF(ISERROR(月營收資訊!Y15),"-",月營收資訊!Y15) -> 321604482.2 | U8: =IF(ISERROR(月營收資訊!Z15),"-",月營收資訊!Z15) -> 2661690716 | V8: =IF(ISERROR(月營收資訊!AA15),"-",月營收資訊!AA15) -> 34.060768 | W8: =IF(ISERROR(月營收資訊!AB15),"-",月營收資訊!AB15) -> 2.343678706 | Y8: 應收票據–關係人淨額(千) | Z8: =IFRS資產負債表!J8 -> 862572 | AA8: =IFRS資產負債表!K8 -> 356257 | AB8: =IFRS資產負債表!L8 -> 624451 | AC8: =IFRS資產負債表!M8 -> 479363 | AD8: =IFRS資產負債表!N8 -> 1089662
A9: =YEAR(股價資訊!A3)&"/"&MONTH(股價資訊!A3)&"/"&DAY(股價資訊!A3)&"股價" -> 2024/11/8股價 | B9: =股價資訊!B3 -> 1090 | D9: 外資持股(%) | F9: =股價資訊!C1 -> 73.77 | H9: =季報含預估!A19 -> 稅前純益(千) | I9: =季報含預估!F19 -> 241940495 | J9: =季報含預估!G19 -> 278280989 | K9: =季報含預估!H19 -> 266543204 | L9: =季報含預估!I19 -> 306310575 | M9: =季報含預估!J19 -> 24887608.99 | N9: =季報含預估!K19 -> 168901504.5 | O9: =季報含預估!L19 -> 67010754.7 | P9: =季報含預估!M19 -> 206174031.4 | Q9: =季報含預估!N19 -> 97939647.96 | S9: =月營收資訊!Q16 -> 2024/10 | T9: =IF(ISERROR(月營收資訊!Y16),"-",月營收資訊!Y16) -> 314239713 | U9: =IF(ISERROR(月營收資訊!Z16),"-",月營收資訊!Z16) -> 2340086234 | V9: =IF(ISERROR(月營收資訊!AA16),"-",月營收資訊!AA16) -> 29.21 | W9: =IF(ISERROR(月營收資訊!AB16),"-",月營收資訊!AB16) -> 24.76 | Y9: 存貨(千) | Z9: =IFRS資產負債表!J9 -> 234332949 | AA9: =IFRS資產負債表!K9 -> 262090072 | AB9: =IFRS資產負債表!L9 -> 250997088 | AC9: =IFRS資產負債表!M9 -> 267123339 | AD9: =IFRS資產負債表!N9 -> 272490587
A10: 淨值(元) | B10: =季報含預估!I36 -> 146.21 | D10: 投信持股(%) | F10: =股價資訊!D1 -> 1.75 | H10: =季報含預估!A20 -> 所得稅(千) | I10: =季報含預估!F20 -> 31145221 | J10: =季報含預估!G20 -> 39974788 | K10: =季報含預估!H20 -> 41321941 | L10: =季報含預估!I20 -> 58649137 | M10: =季報含預估!J20 -> 8212413.214 | N10: =季報含預估!K20 -> 42225376.12 | O10: =季報含預估!L20 -> 16752688.67 | P10: =季報含預估!M20 -> 51543507.85 | Q10: =季報含預估!N20 -> 24484911.99 | S10: =月營收資訊!Q17 -> 2024/09 | T10: =IF(ISERROR(月營收資訊!Y17),"-",月營收資訊!Y17) -> 251872717 | U10: =IF(ISERROR(月營收資訊!Z17),"-",月營收資訊!Z17) -> 2025846521 | V10: =IF(ISERROR(月營收資訊!AA17),"-",月營收資訊!AA17) -> 39.6 | W10: =IF(ISERROR(月營收資訊!AB17),"-",月營收資訊!AB17) -> 0.4 | Y10: 預付款項(千) | Z10: =IFRS資產負債表!J10 -> 0 | AA10: =IFRS資產負債表!K10 -> 0 | AB10: =IFRS資產負債表!L10 -> 0 | AC10: =IFRS資產負債表!M10 -> 0 | AD10: =IFRS資產負債表!N10 -> 0
A11: 預估本益比 | B11: =股價資訊!I1 -> 18.25 | D11: 自營商持股(%) | F11: =股價資訊!E1 -> 0.15 | H11: =季報含預估!A22 -> 母公司業主–稅後純益(千) | I11: =季報含預估!F22 -> 210999939 | J11: =季報含預估!G22 -> 238712143 | K11: =季報含預估!H22 -> 225484877 | L11: =季報含預估!I22 -> 247845528 | M11: =季報含預估!J22 -> 16675195.77 | N11: =季報含預估!K22 -> 126676128.4 | O11: =季報含預估!L22 -> 50258066.02 | P11: =季報含預估!M22 -> 154630523.6 | Q11: =季報含預估!N22 -> 73454735.97 | S11: =月營收資訊!Q18 -> 2024/08 | T11: =IF(ISERROR(月營收資訊!Y18),"-",月營收資訊!Y18) -> 250866368 | U11: =IF(ISERROR(月營收資訊!Z18),"-",月營收資訊!Z18) -> 1773973804 | V11: =IF(ISERROR(月營收資訊!AA18),"-",月營收資訊!AA18) -> 32.95 | W11: =IF(ISERROR(月營收資訊!AB18),"-",月營收資訊!AB18) -> -2.37 | Y11: 其他流動資產(千) | Z11: =IFRS資產負債表!J11 -> 16427659 | AA11: =IFRS資產負債表!K11 -> 19221060 | AB11: =IFRS資產負債表!L11 -> 26222380 | AC11: =IFRS資產負債表!M11 -> 28200526 | AD11: =IFRS資產負債表!N11 -> 22293958
A12: 股價淨值比 | B12: =B9/B10 -> 7.455030436 | D12: 董監持股(%) | F12: =股價資訊!B7 -> 6.52 | H12: =季報含預估!A23 -> 其他綜合損益(千) | I12: =季報含預估!F23 -> 26049225 | J12: =季報含預估!G23 -> -37226200 | K12: =季報含預估!H23 -> 41273948 | L12: =季報含預估!I23 -> 13464599 | M12: =季報含預估!J23 -> 0 | N12: =季報含預估!K23 -> 0 | O12: =季報含預估!L23 -> 0 | P12: =季報含預估!M23 -> 0 | Q12: =季報含預估!N23 -> 0 | S12: =月營收資訊!Q19 -> 2024/07 | T12: =IF(ISERROR(月營收資訊!Y19),"-",月營收資訊!Y19) -> 256953058 | U12: =IF(ISERROR(月營收資訊!Z19),"-",月營收資訊!Z19) -> 1523107436 | V12: =IF(ISERROR(月營收資訊!AA19),"-",月營收資訊!AA19) -> 44.67 | W12: =IF(ISERROR(月營收資訊!AB19),"-",月營收資訊!AB19) -> 23.61 | Y12: 流動資產(千) | Z12: =IFRS資產負債表!J12 -> 1959964207 | AA12: =IFRS資產負債表!K12 -> 2082477636 | AB12: =IFRS資產負債表!L12 -> 2194032910 | AC12: =IFRS資產負債表!M12 -> 2452767394 | AD12: =IFRS資產負債表!N12 -> 2591658093
A13: 近一月營收變動(%) | B13: =月營收資訊!D3 -> 24.76 | D13: 融資比率(%) | F13: =股價資訊!G1 -> 0.51 | H13: =季報含預估!A24 -> 母公司業主–綜合損益(千) | I13: =季報含預估!F24 -> 237285511 | J13: =季報含預估!G24 -> 201202304 | K13: =季報含預估!H24 -> 267398572 | L13: =季報含預估!I24 -> 262265420 | M13: =季報含預估!J24 -> 0 | N13: =季報含預估!K24 -> 0 | O13: =季報含預估!L24 -> 0 | P13: =季報含預估!M24 -> 0 | Q13: =季報含預估!N24 -> 0 | S13: =月營收資訊!Q20 -> 2024/06 | T13: =IF(ISERROR(月營收資訊!Y20),"-",月營收資訊!Y20) -> 207868693 | U13: =IF(ISERROR(月營收資訊!Z20),"-",月營收資訊!Z20) -> 1266154378 | V13: =IF(ISERROR(月營收資訊!AA20),"-",月營收資訊!AA20) -> 32.9 | W13: =IF(ISERROR(月營收資訊!AB20),"-",月營收資訊!AB20) -> -9.47 | Y13: 透過損益按公允價值衡量之金融資產–非流動(千) | Z13: =IFRS資產負債表!J13 -> 0 | AA13: =IFRS資產負債表!K13 -> 0 | AB13: =IFRS資產負債表!L13 -> 0 | AC13: =IFRS資產負債表!M13 -> 0 | AD13: =IFRS資產負債表!N13 -> 0
D14: 其他 | F14: =100-SUM(F9:F13) -> 17.3 | H14: =季報含預估!A25 -> 原始每股稅前盈餘(元) | I14: =季報含預估!F25 -> 9.33 | J14: =季報含預估!G25 -> 10.73 | K14: =季報含預估!H25 -> 10.28 | L14: =季報含預估!I25 -> 11.81 | M14: =季報含預估!J25 -> 0.9596654905 | N14: =季報含預估!K25 -> 6.51283718 | O14: =季報含預估!L25 -> 2.583932784 | P14: =季報含預估!M25 -> 7.950064753 | Q14: =季報含預估!N25 -> 3.776550023 | S14: =月營收資訊!Q21 -> 2024/05 | T14: =IF(ISERROR(月營收資訊!Y21),"-",月營收資訊!Y21) -> 229620372 | U14: =IF(ISERROR(月營收資訊!Z21),"-",月營收資訊!Z21) -> 1058285685 | V14: =IF(ISERROR(月營收資訊!AA21),"-",月營收資訊!AA21) -> 30.07 | W14: =IF(ISERROR(月營收資訊!AB21),"-",月營收資訊!AB21) -> -2.71 | Y14: 備供出售金融資產–非流動(千) | Z14: =IFRS資產負債表!J14 -> 7516718 | AA14: =IFRS資產負債表!K14 -> 7933799 | AB14: =IFRS資產負債表!L14 -> 7208655 | AC14: =IFRS資產負債表!M14 -> 7428408 | AD14: =IFRS資產負債表!N14 -> 7223448
H15: =季報含預估!A26 -> 原始每股稅後盈餘(元) | I15: =季報含預估!F26 -> 8.14 | J15: =季報含預估!G26 -> 9.21 | K15: =季報含預估!H26 -> 8.7 | L15: =季報含預估!I26 -> 9.56 | M15: =季報含預估!J26 -> 0.642995072 | N15: =季報含預估!K26 -> 4.884627885 | O15: =季報含預估!L26 -> 1.937949588 | P15: =季報含預估!M26 -> 5.962548564 | Q15: =季報含預估!N26 -> 2.832412517 | S15: =月營收資訊!Q22 -> 2024/04 | T15: =IF(ISERROR(月營收資訊!Y22),"-",月營收資訊!Y22) -> 236021112 | U15: =IF(ISERROR(月營收資訊!Z22),"-",月營收資訊!Z22) -> 828665313 | V15: =IF(ISERROR(月營收資訊!AA22),"-",月營收資訊!AA22) -> 59.58 | W15: =IF(ISERROR(月營收資訊!AB22),"-",月營收資訊!AB22) -> 20.91 | Y15: 採用權益法之投資(千) | Z15: =IFRS資產負債表!J15 -> 26845396 | AA15: =IFRS資產負債表!K15 -> 28921558 | AB15: =IFRS資產負債表!L15 -> 29616638 | AC15: =IFRS資產負債表!M15 -> 31168264 | AD15: =IFRS資產負債表!N15 -> 29600356
A16: 日漲幅(%) | B16: =股價資訊!E8 -> 0.0234741784 | D16: 法人買賣超合計(近一日) | F16: =股價資訊!E14 -> 3917 | H16: =季報含預估!A27 -> 毛利率(%) | I16: =季報含預估!F27 -> 54.26 | J16: =季報含預估!G27 -> 53.04 | K16: =季報含預估!H27 -> 53.07 | L16: =季報含預估!I27 -> 53.17 | M16: =季報含預估!J27 -> 47.51 | N16: =季報含預估!K27 -> 53.3 | O16: =季報含預估!L27 -> 50 | P16: =季報含預估!M27 -> 54 | Q16: =季報含預估!N27 -> 54 | S16: =月營收資訊!Q23 -> 2024/03 | T16: =IF(ISERROR(月營收資訊!Y23),"-",月營收資訊!Y23) -> 195210804 | U16: =IF(ISERROR(月營收資訊!Z23),"-",月營收資訊!Z23) -> 592644201 | V16: =IF(ISERROR(月營收資訊!AA23),"-",月營收資訊!AA23) -> 34.25 | W16: =IF(ISERROR(月營收資訊!AB23),"-",月營收資訊!AB23) -> 7.47 | Y16: 土地(千) | Z16: =IFRS資產負債表!J16 -> 0 | AA16: =IFRS資產負債表!K16 -> 0 | AB16: =IFRS資產負債表!L16 -> 0 | AC16: =IFRS資產負債表!M16 -> 0 | AD16: =IFRS資產負債表!N16 -> 0
A17: 週漲幅(%) | B17: =股價資訊!E9 -> 0.04807692308 | D17: 法人買賣超合計(近一周) | F17: =股價資訊!F14 -> -16706 | H17: =季報含預估!A28 -> 營業利益率(%) | I17: =季報含預估!F28 -> 41.71 | J17: =季報含預估!G28 -> 41.6 | K17: =季報含預估!H28 -> 42.02 | L17: =季報含預估!I28 -> 42.55 | M17: =季報含預估!J28 -> 5.58 | N17: =季報含預估!K28 -> 23.3 | O17: =季報含預估!L28 -> 10 | P17: =季報含預估!M28 -> 24 | Q17: =季報含預估!N28 -> 14 | S17: =月營收資訊!Q24 -> 2024/02 | T17: =IF(ISERROR(月營收資訊!Y24),"-",月營收資訊!Y24) -> 181648270 | U17: =IF(ISERROR(月營收資訊!Z24),"-",月營收資訊!Z24) -> 397433397 | V17: =IF(ISERROR(月營收資訊!AA24),"-",月營收資訊!AA24) -> 11.32 | W17: =IF(ISERROR(月營收資訊!AB24),"-",月營收資訊!AB24) -> -15.82 | Y17: 房屋及建築(千) | Z17: =IFRS資產負債表!J17 -> 424512876 | AA17: =IFRS資產負債表!K17 -> 427256494 | AB17: =IFRS資產負債表!L17 -> 430809064 | AC17: =IFRS資產負債表!M17 -> 428257444 | AD17: =IFRS資產負債表!N17 -> 446310865
A18: 月漲幅(%) | B18: =股價資訊!E10 -> 0.07920792079 | D18: 法人買賣超合計(近一月) | F18: =股價資訊!G14 -> 33588 | H18: =季報含預估!A30 -> 歸屬於母公司–稅後純益(%) | I18: =季報含預估!F30 -> 38.59288398 | J18: =季報含預估!G30 -> 38.16165165 | K18: =季報含預估!H30 -> 38.04725949 | L18: =季報含預估!I30 -> 36.79907691 | M18: =季報含預估!J30 -> 3.740117021 | N18: =季報含預估!K30 -> 18.94164843 | O18: =季報含預估!L30 -> 9.393745194 | P18: =季報含預估!M30 -> 19.26801477 | Q18: =季報含預估!N30 -> 12.20394615 | S18: =月營收資訊!Q25 -> 2024/01 | T18: =IF(ISERROR(月營收資訊!Y25),"-",月營收資訊!Y25) -> 215785127 | U18: =IF(ISERROR(月營收資訊!Z25),"-",月營收資訊!Z25) -> 215785127 | V18: =IF(ISERROR(月營收資訊!AA25),"-",月營收資訊!AA25) -> 7.87 | W18: =IF(ISERROR(月營收資訊!AB25),"-",月營收資訊!AB25) -> 22.4 | Y18: 機器設備(千) | Z18: =IFRS資產負債表!J18 -> 1643092148 | AA18: =IFRS資產負債表!K18 -> 1637594965 | AB18: =IFRS資產負債表!L18 -> 1685977156 | AC18: =IFRS資產負債表!M18 -> 1722370453 | AD18: =IFRS資產負債表!N18 -> 1686324743
A19: 季漲幅(%) | B19: =股價資訊!E11 -> 0.3374233129 | H19: =季報含預估!A31 -> 歸屬於母公司–稅後權益報酬率(%) | I19: =季報含預估!F31 -> 6.301610065 | J19: =季報含預估!G31 -> 6.901361778 | K19: =季報含預估!H31 -> 6.201911509 | L19: =季報含預估!I31 -> 6.537040147 | M19: =季報含預估!J31 -> 0.434609416 | N19: =季報含預估!K31 -> 3.196067703 | O19: =季報含預估!L31 -> 1.252145024 | P19: =季報含預估!M31 -> 3.70959995 | Q19: =季報含預估!N31 -> 1.731670373 | S19: =月營收資訊!Q26 -> 2023/12 | T19: =IF(ISERROR(月營收資訊!Y26),"-",月營收資訊!Y26) -> 176299866 | U19: =IF(ISERROR(月營收資訊!Z26),"-",月營收資訊!Z26) -> 2161735841 | V19: =IF(ISERROR(月營收資訊!AA26),"-",月營收資訊!AA26) -> -8.44 | W19: =IF(ISERROR(月營收資訊!AB26),"-",月營收資訊!AB26) -> -14.43 | Y19: 其他不動產、廠房及設備(千) | Z19: =IFRS資產負債表!J19 -> 879628369 | AA19: =IFRS資產負債表!K19 -> 1067812908 | AB19: =IFRS資產負債表!L19 -> 947688764 | AC19: =IFRS資產負債表!M19 -> 901220092 | AD19: =IFRS資產負債表!N19 -> 973224449
A20: K(9) | B20: =股價資訊!E23 -> 0 | C20: 股利年度 | D20: 現金股利 | E20: 股票股利 | F20: 現金殖利率 | H20: =季報含預估!A36 -> 每股淨值(元) | I20: =季報含預估!F36 -> 129.12 | J20: =季報含預估!G36 -> 133.38 | K20: =季報含預估!H36 -> 140.19 | L20: =季報含預估!I36 -> 146.21 | M20: =季報含預估!J36 -> 147.9478006 | N20: =季報含預估!K36 -> 152.8324284 | O20: =季報含預估!L36 -> 154.770378 | P20: =季報含預估!M36 -> 160.7329266 | Q20: =季報含預估!N36 -> 163.5653391 | S20: =月營收資訊!Q27 -> 2023/11 | T20: =IF(ISERROR(月營收資訊!Y27),"-",月營收資訊!Y27) -> 206026179 | U20: =IF(ISERROR(月營收資訊!Z27),"-",月營收資訊!Z27) -> 1985435975 | V20: =IF(ISERROR(月營收資訊!AA27),"-",月營收資訊!AA27) -> -7.49 | W20: =IF(ISERROR(月營收資訊!AB27),"-",月營收資訊!AB27) -> -15.29 | Y20: 不動產、廠房及設備(千) | Z20: =IFRS資產負債表!J20 -> 49099 | AA20: =IFRS資產負債表!K20 -> 49100 | AB20: =IFRS資產負債表!L20 -> 49101 | AC20: =IFRS資產負債表!M20 -> 49102 | AD20: =IFRS資產負債表!N20 -> 49103
A21: D(9) | B21: =股價資訊!F23 -> 0 | C21: =YEAR(股價資訊!D17) -> 2023 | D21: =股價資訊!E17 -> 13 | E21: =股價資訊!F17 -> 0 | F21: =股價資訊!I17 -> 2.19 | H21: =季報含預估!A37 -> 負債比率(%) | I21: =季報含預估!F37 -> 38.5 | J21: =季報含預估!G37 -> 37.04 | K21: =季報含預估!H37 -> 36.67 | L21: =季報含預估!I37 -> 36.14 | S21: =月營收資訊!Q28 -> 2023/10 | T21: =IF(ISERROR(月營收資訊!Y28),"-",月營收資訊!Y28) -> 243202811 | U21: =IF(ISERROR(月營收資訊!Z28),"-",月營收資訊!Z28) -> 1779409796 | V21: =IF(ISERROR(月營收資訊!AA28),"-",月營收資訊!AA28) -> 15.66 | W21: =IF(ISERROR(月營收資訊!AB28),"-",月營收資訊!AB28) -> 34.79 | Y21: 投資性不動產(千) | Z21: =IFRS資產負債表!J21 -> 0 | AA21: =IFRS資產負債表!K21 -> 0 | AB21: =IFRS資產負債表!L21 -> 0 | AC21: =IFRS資產負債表!M21 -> 0 | AD21: =IFRS資產負債表!N21 -> 0
A22: 周K(9) | B22: =股價資訊!G23 -> 0 | C22: =YEAR(股價資訊!D18) -> 2022 | D22: =股價資訊!E18 -> 11 | E22: =股價資訊!F18 -> 0 | F22: =股價資訊!I18 -> 2.45 | H22: =季報含預估!A38 -> 流動比率(%) | I22: =季報含預估!F38 -> 214.68 | J22: =季報含預估!G38 -> 240.16 | K22: =季報含預估!H38 -> 239.02 | L22: =季報含預估!I38 -> 247.08 | S22: =月營收資訊!Q29 -> 2023/09 | T22: =IF(ISERROR(月營收資訊!Y29),"-",月營收資訊!Y29) -> 180430282 | U22: =IF(ISERROR(月營收資訊!Z29),"-",月營收資訊!Z29) -> 1536206985 | V22: =IF(ISERROR(月營收資訊!AA29),"-",月營收資訊!AA29) -> -13.36 | W22: =IF(ISERROR(月營收資訊!AB29),"-",月營收資訊!AB29) -> -4.38 | Y22: 商譽 | Z22: =IFRS資產負債表!J22 -> 0 | AA22: =IFRS資產負債表!K22 -> 0 | AB22: =IFRS資產負債表!L22 -> 0 | AC22: =IFRS資產負債表!M22 -> 0 | AD22: =IFRS資產負債表!N22 -> 0
A23: 周D(9) | B23: =股價資訊!H23 -> 0 | C23: =YEAR(股價資訊!D19) -> 2021 | D23: =股價資訊!E19 -> 11 | E23: =股價資訊!F19 -> 0 | F23: =股價資訊!I19 -> 1.79 | H23: =季報含預估!A41 -> 應付款項週轉天數(天) | I23: =季報含預估!F41 -> 18.69 | J23: =季報含預估!G41 -> 17.2 | K23: =季報含預估!H41 -> 18.8 | L23: =季報含預估!I41 -> 17.54 | S23: =月營收資訊!Q30 -> 2023/08 | T23: =IF(ISERROR(月營收資訊!Y30),"-",月營收資訊!Y30) -> 188686256 | U23: =IF(ISERROR(月營收資訊!Z30),"-",月營收資訊!Z30) -> 1355776703 | V23: =IF(ISERROR(月營收資訊!AA30),"-",月營收資訊!AA30) -> -13.5 | W23: =IF(ISERROR(月營收資訊!AB30),"-",月營收資訊!AB30) -> 6.23 | Y23: 特許權(千) | Z23: =IFRS資產負債表!J23 -> 0 | AA23: =IFRS資產負債表!K23 -> 0 | AB23: =IFRS資產負債表!L23 -> 0 | AC23: =IFRS資產負債表!M23 -> 0 | AD23: =IFRS資產負債表!N23 -> 0
A24: Beta係數(65) | B24: =基本資料及十大股東!B19 -> 1.4397 | C24: =YEAR(股價資訊!D20) -> 2020 | D24: =股價資訊!E20 -> 10 | E24: =股價資訊!F20 -> 0 | F24: =股價資訊!I20 -> 1.89 | H24: =季報含預估!A47 -> 本期現金及約當現金增減數(千) | I24: =季報含預估!F47 -> 35082551 | J24: =季報含預估!G47 -> 153621218 | K24: =季報含預估!H47 -> 232767951 | L24: =季報含預估!I47 -> 100931647 | S24: =月營收資訊!Q31 -> 2023/07 | T24: =IF(ISERROR(月營收資訊!Y31),"-",月營收資訊!Y31) -> 177616220 | U24: =IF(ISERROR(月營收資訊!Z31),"-",月營收資訊!Z31) -> 1167090447 | V24: =IF(ISERROR(月營收資訊!AA31),"-",月營收資訊!AA31) -> -4.9 | W24: =IF(ISERROR(月營收資訊!AB31),"-",月營收資訊!AB31) -> 13.56 | Y24: 發展中之無形資產 | Z24: =IFRS資產負債表!J24 -> 18001489 | AA24: =IFRS資產負債表!K24 -> 17405834 | AB24: =IFRS資產負債表!L24 -> 16970306 | AC24: =IFRS資產負債表!M24 -> 16272753 | AD24: =IFRS資產負債表!N24 -> 16397484
Y25: 無形資產(千) | Z25: =IFRS資產負債表!J25 -> 23849933 | AA25: =IFRS資產負債表!K25 -> 23410569 | AB25: =IFRS資產負債表!L25 -> 22766744 | AC25: =IFRS資產負債表!M25 -> 22238925 | AD25: =IFRS資產負債表!N25 -> 22430599
A26: 投資評等表：每項給定0~2分，共五項，合計最高10分 | H26: 年度 | I26: =YEAR('IFRS-年報'!D2) -> 2020 | J26: =YEAR('IFRS-年報'!E2) -> 2021 | K26: =YEAR('IFRS-年報'!F2) -> 2022 | L26: =YEAR('IFRS-年報'!G2) -> 2023 | M26: =L26+1 -> 2024 | N26: =M26+1 -> 2025 | Y26: 遞延所得稅資產(千) | Z26: =IFRS資產負債表!J26 -> 68379721 | AA26: =IFRS資產負債表!K26 -> 71030144 | AB26: =IFRS資產負債表!L26 -> 64175787 | AC26: =IFRS資產負債表!M26 -> 63729274 | AD26: =IFRS資產負債表!N26 -> 65160047
B27: 技術面 | C27: 技術面 | D27: 基本面 | E27: 基本面 | F27: 籌碼面 | H27: 營業收入淨額(千) | I27: ='IFRS-年報'!D3 -> 1339254811 | J27: ='IFRS-年報'!E3 -> 1587415037 | K27: ='IFRS-年報'!F3 -> 2263891292 | L27: ='IFRS-年報'!G3 -> 2161735841 | M27: =IF(TRIM($L$2)=(TRIM($M$26)&"01"),SUM($L3:$O3),IF(TRIM($K$2)=(TRIM($M$26)&"01"),SUM($K3:$N3),IF(TRIM($J$2)=(TRIM($M$26)&"01"),SUM($J3:$M3),SUM($M3:$P3)))) -> 2452157947 | N27: =IF(TRIM($N$2)=(TRIM($N$26)&"01"),SUM(N3:Q3),"-") -> - | Y27: 預付設備款 | Z27: =IFRS資產負債表!J27 -> 2601 | AA27: =IFRS資產負債表!K27 -> 2602 | AB27: =IFRS資產負債表!L27 -> 2603 | AC27: =IFRS資產負債表!M27 -> 2604 | AD27: =IFRS資產負債表!N27 -> 2605
A28: 評分表 | B28: (短線) | C28: (中長線) | D28: (安全性) | E28: (成長性) | H28: 營業成本(千) | I28: ='IFRS-年報'!D4 -> 628124691 | J28: ='IFRS-年報'!E4 -> 767877771 | K28: ='IFRS-年報'!F4 -> 915536486 | L28: ='IFRS-年報'!G4 -> 986625213 | M28: =IF(TRIM($L$2)=(TRIM($M$26)&"01"),SUM($L4:$O4),IF(TRIM($K$2)=(TRIM($M$26)&"01"),SUM($K4:$N4),IF(TRIM($J$2)=(TRIM($M$26)&"01"),SUM($J4:$M4),SUM($M4:$P4)))) -> 1183010163 | N28: =IF(TRIM($N$2)=(TRIM($N$26)&"01"),SUM(N4:Q4),"-") -> - | Y28: 預付投資款(千) | Z28: =IFRS資產負債表!J28 -> 0 | AA28: =IFRS資產負債表!K28 -> 0 | AB28: =IFRS資產負債表!L28 -> 0 | AC28: =IFRS資產負債表!M28 -> 0 | AD28: =IFRS資產負債表!N28 -> 0
B29: =輸入預估參數!K11 -> 0.4 | C29: =輸入預估參數!L11 -> 0.4 | D29: =輸入預估參數!M11 -> 1.6 | E29: =輸入預估參數!N11 -> 0.8 | F29: =輸入預估參數!O11 -> 0.5 | H29: 營業毛利(千) | I29: ='IFRS-年報'!D5 -> 711130120 | J29: ='IFRS-年報'!E5 -> 819537266 | K29: ='IFRS-年報'!F5 -> 1348354806 | L29: ='IFRS-年報'!G5 -> 1175110628 | M29: 1269147784 | N29: =IF(TRIM($N$2)=(TRIM($N$26)&"01"),SUM(N5:Q5),"-") -> - | Y29: 其他非流動資產(千) | Z29: =IFRS資產負債表!J29 -> 13832676 | AA29: =IFRS資產負債表!K29 -> 17372309 | AB29: =IFRS資產負債表!L29 -> 17053843 | AC29: =IFRS資產負債表!M29 -> 18702059 | AD29: =IFRS資產負債表!N29 -> 17522804
A30: 綜合評分: | B30: =SUM(B29:F29) -> 3.7 | C30: 建議: | E30: 目標價: | H30: 營業費用(千) | I30: ='IFRS-年報'!D6 -> 145056549 | J30: ='IFRS-年報'!E6 -> 169222934 | K30: ='IFRS-年報'!F6 -> 226707552 | L30: ='IFRS-年報'!G6 -> 253833716 | M30: 842338547.1 | N30: - | Y30: 資產總計(千) | Z30: =IFRS資產負債表!J30 -> 5149465045 | AA30: =IFRS資產負債表!K30 -> 5484556381 | AB30: =IFRS資產負債表!L30 -> 5532371215 | AC30: =IFRS資產負債表!M30 -> 5787891082 | AD30: =IFRS資產負債表!N30 -> 5982364014
H31: 營業利益(千) | I31: ='IFRS-年報'!D7 -> 566783698 | J31: ='IFRS-年報'!E7 -> 649980897 | K31: ='IFRS-年報'!F7 -> 1121278851 | L31: ='IFRS-年報'!G7 -> 921465606 | M31: 426809236.8 | N31: - | Y31: 短期借款(千) | Z31: =IFRS資產負債表!J31 -> 0 | AA31: =IFRS資產負債表!K31 -> 0 | AB31: =IFRS資產負債表!L31 -> 0 | AC31: =IFRS資產負債表!M31 -> 0 | AD31: =IFRS資產負債表!N31 -> 0
H32: 營業外收入及支出(千) | I32: ='IFRS-年報'!D8 -> 17993482 | J32: ='IFRS-年報'!E8 -> 13145417 | K32: ='IFRS-年報'!F8 -> 22911867 | L32: ='IFRS-年報'!G8 -> 57705718 | M32: 40164662.75 | N32: - | Y32: 應付帳款及票據 | Z32: =IFRS資產負債表!J32 -> 48972779 | AA32: =IFRS資產負債表!K32 -> 53772306 | AB32: =IFRS資產負債表!L32 -> 57293057 | AC32: =IFRS資產負債表!M32 -> 57610008 | AD32: =IFRS資產負債表!N32 -> 63947072
H33: 稅前純益(千) | I33: ='IFRS-年報'!D9 -> 584777180 | J33: ='IFRS-年報'!E9 -> 663126314 | K33: ='IFRS-年報'!F9 -> 1144190718 | L33: ='IFRS-年報'!G9 -> 979171324 | M33: 466973899.6 | N33: - | Y33: 應付帳款(千) | Z33: =IFRS資產負債表!J33 -> 246036 | AA33: =IFRS資產負債表!K33 -> 246037 | AB33: =IFRS資產負債表!L33 -> 246038 | AC33: =IFRS資產負債表!M33 -> 246039 | AD33: =IFRS資產負債表!N33 -> 246040
H34: 所得稅(千) | I34: ='IFRS-年報'!D10 -> 66619098 | J34: ='IFRS-年報'!E10 -> 66053180 | K34: ='IFRS-年報'!F10 -> 127290203 | L34: ='IFRS-年報'!G10 -> 141403807 | M34: 118733985.9 | N34: - | Y34: 應付帳款及票據─關係人 | Z34: =IFRS資產負債表!J34 -> 1178664 | AA34: =IFRS資產負債表!K34 -> 1621423 | AB34: =IFRS資產負債表!L34 -> 1566300 | AC34: =IFRS資產負債表!M34 -> 1185196 | AD34: =IFRS資產負債表!N34 -> 1184013
H35: 母公司業主–稅後純益(千) | I35: ='IFRS-年報'!D11 -> 517885387 | J35: ='IFRS-年報'!E11 -> 596540013 | K35: ='IFRS-年報'!F11 -> 1016530249 | L35: ='IFRS-年報'!G11 -> 838497664 | M35: 348239913.7 | N35: - | Y35: 其他應付款(千) | Z35: =IFRS資產負債表!J35 -> 399909598 | AA35: =IFRS資產負債表!K35 -> 452806783 | AB35: =IFRS資產負債表!L35 -> 423960584 | AC35: =IFRS資產負債表!M35 -> 398231918 | AD35: =IFRS資產負債表!N35 -> 439955866
H36: 其他綜合損益(千) | I36: ='IFRS-年報'!D32 -> -30321802 | J36: ='IFRS-年報'!E32 -> -7619456 | K36: ='IFRS-年報'!F32 -> 42430165 | L36: ='IFRS-年報'!G32 -> -8813644 | Y36: 預收款項(千) | Z36: =IFRS資產負債表!J36 -> 0 | AA36: =IFRS資產負債表!K36 -> 0 | AB36: =IFRS資產負債表!L36 -> 0 | AC36: =IFRS資產負債表!M36 -> 0 | AD36: =IFRS資產負債表!N36 -> 0
H37: 母公司業主–綜合損益(千) | I37: ='IFRS-年報'!D33 -> 487563478 | J37: ='IFRS-年報'!E33 -> 588918059 | K37: ='IFRS-年報'!F33 -> 1059124890 | L37: ='IFRS-年報'!G33 -> 830509542 | Y37: 一年或一營業週期內到期長期負債(千) | Z37: =IFRS資產負債表!J37 -> 8125556 | AA37: =IFRS資產負債表!K37 -> 7420132 | AB37: =IFRS資產負債表!L37 -> 9293266 | AC37: =IFRS資產負債表!M37 -> 12500151 | AD37: =IFRS資產負債表!N37 -> 23075426
H38: 公告基本每股盈餘(元) | I38: ='IFRS-年報'!D13 -> 19.97 | J38: ='IFRS-年報'!E13 -> 23.01 | K38: ='IFRS-年報'!F13 -> 39.2 | L38: ='IFRS-年報'!G13 -> 32.34 | M38: =IF(TRIM($L$2)=(TRIM($M$26)&"01"),SUM($L15:$O15),IF(TRIM($K$2)=(TRIM($M$26)&"01"),SUM($K15:$N15),IF(TRIM($J$2)=(TRIM($M$26)&"01"),SUM($J15:$M15),SUM($M15:$P15)))) -> 13.42812111 | N38: =IF(TRIM($N$2)=(TRIM($N$26)&"01"),SUM(N15:Q15),"-") -> - | Y38: 其他流動負債(千) | Z38: =IFRS資產負債表!J38 -> 1241 | AA38: =IFRS資產負債表!K38 -> 1242 | AB38: =IFRS資產負債表!L38 -> 1243 | AC38: =IFRS資產負債表!M38 -> 1244 | AD38: =IFRS資產負債表!N38 -> 1245
H39: 流動比率(%) | I39: ='IFRS-年報'!D18 -> 176.97 | J39: ='IFRS-年報'!E18 -> 217.32 | K39: ='IFRS-年報'!F18 -> 217.42 | L39: ='IFRS-年報'!G18 -> 240.16 | Y39: 流動負債(千) | Z39: =IFRS資產負債表!J39 -> 810829007 | AA39: =IFRS資產負債表!K39 -> 970034816 | AB39: =IFRS資產負債表!L39 -> 913583316 | AC39: =IFRS資產負債表!M39 -> 1026180079 | AD39: =IFRS資產負債表!N39 -> 1048915680
H40: 速動比率(%) | I40: ='IFRS-年報'!D19 -> 151.92 | J40: ='IFRS-年報'!E19 -> 187.53 | K40: ='IFRS-年報'!F19 -> 189.88 | L40: ='IFRS-年報'!G19 -> 206.84 | Y40: 應付公司債(千) | Z40: =IFRS資產負債表!J40 -> 901710299 | AA40: =IFRS資產負債表!K40 -> 932479423 | AB40: =IFRS資產負債表!L40 -> 913899843 | AC40: =IFRS資產負債表!M40 -> 955540142 | AD40: =IFRS資產負債表!N40 -> 965313898
H41: 應付款項週轉天數(天) | I41: ='IFRS-年報'!D20 -> 23.62 | J41: ='IFRS-年報'!E20 -> 21.35 | K41: ='IFRS-年報'!F20 -> 20.98 | L41: ='IFRS-年報'!G20 -> 21.05 | Y41: 長期借款(千) | Z41: =IFRS資產負債表!J41 -> 5611138 | AA41: =IFRS資產負債表!K41 -> 5013050 | AB41: =IFRS資產負債表!L41 -> 4382965 | AC41: =IFRS資產負債表!M41 -> 10020132 | AD41: =IFRS資產負債表!N41 -> 9029765
H42: 負債比率(%) | I42: ='IFRS-年報'!D17 -> 32.97 | J42: ='IFRS-年報'!E17 -> 41.73 | K42: ='IFRS-年報'!F17 -> 40.37 | L42: ='IFRS-年報'!G17 -> 37.04 | Y42: 應計退休金負債(千) | Z42: =IFRS資產負債表!J42 -> 8604642 | AA42: =IFRS資產負債表!K42 -> 8615678 | AB42: =IFRS資產負債表!L42 -> 9257224 | AC42: =IFRS資產負債表!M42 -> 7700892 | AD42: =IFRS資產負債表!N42 -> 7702315
H43: 歸屬於母公司–稅後權益報酬率(%) | I43: ='IFRS-年報'!D37 -> 27.99899199 | J43: ='IFRS-年報'!E37 -> 27.51204688 | K43: ='IFRS-年報'!F37 -> 34.50950203 | L43: ='IFRS-年報'!G37 -> 24.24164794 | Y43: 其他非流動負債 | Z43: =IFRS資產負債表!J43 -> 187133564 | AA43: =IFRS資產負債表!K43 -> 165967433 | AB43: =IFRS資產負債表!L43 -> 179249329 | AC43: =IFRS資產負債表!M43 -> 94223410 | AD43: =IFRS資產負債表!N43 -> 102975027
H44: 毛利率(%) | I44: ='IFRS-年報'!D14 -> 53.1 | J44: ='IFRS-年報'!E14 -> 51.63 | K44: ='IFRS-年報'!F14 -> 59.56 | L44: ='IFRS-年報'!G14 -> 54.36 | M44: =M29/M27*100 -> 51.75636364 | N44: =IF(ISERROR(N29/N27*100),"-",N29/N27*100) -> - | Y44: 非流動負債(千) | Z44: =IFRS資產負債表!J44 -> 1133167839 | AA44: =IFRS資產負債表!K44 -> 1141703458 | AB44: =IFRS資產負債表!L44 -> 1135525052 | AC44: =IFRS資產負債表!M44 -> 1095994749 | AD44: =IFRS資產負債表!N44 -> 1113300129
H45: 營業利益率(%) | I45: ='IFRS-年報'!D15 -> 42.32 | J45: ='IFRS-年報'!E15 -> 40.95 | K45: ='IFRS-年報'!F15 -> 49.53 | L45: ='IFRS-年報'!G15 -> 42.63 | M45: =M31/M27*100 -> 17.40545455 | N45: =IF(ISERROR(N31/N27*100),"-",N31/N27*100) -> - | Y45: 負債總計(千) | Z45: =IFRS資產負債表!J45 -> 1943996846 | AA45: =IFRS資產負債表!K45 -> 2111738274 | AB45: =IFRS資產負債表!L45 -> 2049108368 | AC45: =IFRS資產負債表!M45 -> 2122174828 | AD45: =IFRS資產負債表!N45 -> 2162215809
H46: 稅前純益率(%) | I46: ='IFRS-年報'!D31 -> 43.66 | J46: ='IFRS-年報'!E31 -> 41.77 | K46: ='IFRS-年報'!F31 -> 50.54 | L46: ='IFRS-年報'!G31 -> 45.3 | M46: =M33/M27*100 -> 19.04338585 | N46: =IF(ISERROR(N34/N27*100),"-",N34/N27*100) -> - | Y46: 普通股股本(千) | Z46: =IFRS資產負債表!J46 -> 259320710 | AA46: =IFRS資產負債表!K46 -> 259320710 | AB46: =IFRS資產負債表!L46 -> 259320710 | AC46: =IFRS資產負債表!M46 -> 259336292 | AD46: =IFRS資產負債表!N46 -> 259336292
H47: 歸屬於母公司–稅後純益(%) | I47: ='IFRS-年報'!D11/'IFRS-年報'!D3*100 -> 38.66966784 | J47: ='IFRS-年報'!E11/'IFRS-年報'!E3*100 -> 37.5793349 | K47: ='IFRS-年報'!F11/'IFRS-年報'!F3*100 -> 44.90190199 | L47: ='IFRS-年報'!G11/'IFRS-年報'!G3*100 -> 38.78816496 | M47: =M35/M27*100 -> 14.20136554 | N47: =IF(ISERROR(N36/N27*100),"-",N36/N27*100) -> - | Y47: 特別股股本(千) | Z47: =IFRS資產負債表!J47 -> 0 | AA47: =IFRS資產負債表!K47 -> 0 | AB47: =IFRS資產負債表!L47 -> 0 | AC47: =IFRS資產負債表!M47 -> 0 | AD47: =IFRS資產負債表!N47 -> 0
Y48: 股本(千) | Z48: =IFRS資產負債表!J48 -> 259320710 | AA48: =IFRS資產負債表!K48 -> 259320710 | AB48: =IFRS資產負債表!L48 -> 259320710 | AC48: =IFRS資產負債表!M48 -> 259336292 | AD48: =IFRS資產負債表!N48 -> 259336292
Y49: 資本公積–發行溢價(千) | Z49: =IFRS資產負債表!J49 -> 33299225 | AA49: =IFRS資產負債表!K49 -> 33299225 | AB49: =IFRS資產負債表!L49 -> 33299225 | AC49: =IFRS資產負債表!M49 -> 33705184 | AD49: =IFRS資產負債表!N49 -> 33705184
Y50: 資本公積–庫藏股票交易(千) | Z50: =IFRS資產負債表!J50 -> 0 | AA50: =IFRS資產負債表!K50 -> 0 | AB50: =IFRS資產負債表!L50 -> 0 | AC50: =IFRS資產負債表!M50 -> 0 | AD50: =IFRS資產負債表!N50 -> 0
Y51: 資本公積–取得或處分子公司股權價格與帳面價值差額(千) | Z51: =IFRS資產負債表!J51 -> 8406282 | AA51: =IFRS資產負債表!K51 -> 8406282 | AB51: =IFRS資產負債表!L51 -> 8406282 | AC51: =IFRS資產負債表!M51 -> 8411566 | AD51: =IFRS資產負債表!N51 -> 8411566
Y52: 資本公積–處分資產增益(千) | Z52: =IFRS資產負債表!J52 -> 0 | AA52: =IFRS資產負債表!K52 -> 0 | AB52: =IFRS資產負債表!L52 -> 0 | AC52: =IFRS資產負債表!M52 -> 0 | AD52: =IFRS資產負債表!N52 -> 0
Y53: 資本公積–受贈資產(千) | Z53: =IFRS資產負債表!J53 -> 64955 | AA53: =IFRS資產負債表!K53 -> 64955 | AB53: =IFRS資產負債表!L53 -> 81368 | AC53: =IFRS資產負債表!M53 -> 81368 | AD53: =IFRS資產負債表!N53 -> 81368
Y54: 資本公積–採用權益法認列關聯企業及合資股權淨值之變動數(千) | Z54: =IFRS資產負債表!J54 -> 4537906 | AA54: =IFRS資產負債表!K54 -> 4521582 | AB54: =IFRS資產負債表!L54 -> 4502332 | AC54: =IFRS資產負債表!M54 -> 4498025 | AD54: =IFRS資產負債表!N54 -> 4498212
Y55: 資本公積–合併溢額(千) | Z55: =IFRS資產負債表!J55 -> 22803291 | AA55: =IFRS資產負債表!K55 -> 22803291 | AB55: =IFRS資產負債表!L55 -> 22803291 | AC55: =IFRS資產負債表!M55 -> 22803291 | AD55: =IFRS資產負債表!N55 -> 22803291
Y56: 資本公積–員工認股權(千) | Z56: =IFRS資產負債表!J56 -> 0 | AA56: =IFRS資產負債表!K56 -> 0 | AB56: =IFRS資產負債表!L56 -> 0 | AC56: =IFRS資產負債表!M56 -> 0 | AD56: =IFRS資產負債表!N56 -> 0
Y57: 資本公積–認股權(千) | Z57: =IFRS資產負債表!J57 -> 0 | AA57: =IFRS資產負債表!K57 -> 0 | AB57: =IFRS資產負債表!L57 -> 0 | AC57: =IFRS資產負債表!M57 -> 0 | AD57: =IFRS資產負債表!N57 -> 0
Y58: 資本公積–其他(千) | Z58: =IFRS資產負債表!J58 -> 0 | AA58: =IFRS資產負債表!K58 -> 0 | AB58: =IFRS資產負債表!L58 -> 0 | AC58: =IFRS資產負債表!M58 -> 0 | AD58: =IFRS資產負債表!N58 -> 0
Y59: 資本公積(千) | Z59: =IFRS資產負債表!J59 -> 69895542 | AA59: =IFRS資產負債表!K59 -> 69879218 | AB59: =IFRS資產負債表!L59 -> 69876381 | AC59: =IFRS資產負債表!M59 -> 70940489 | AD59: =IFRS資產負債表!N59 -> 70940676
Y60: 法定盈餘公積(千) | Z60: =IFRS資產負債表!J60 -> 311146899 | AA60: =IFRS資產負債表!K60 -> 311146899 | AB60: =IFRS資產負債表!L60 -> 311146899 | AC60: =IFRS資產負債表!M60 -> 311146899 | AD60: =IFRS資產負債表!N60 -> 311146899
Y61: 特別盈餘公積(千) | Z61: =IFRS資產負債表!J61 -> 23593925 | AA61: =IFRS資產負債表!K61 -> 17228363 | AB61: =IFRS資產負債表!L61 -> 0 | AC61: =IFRS資產負債表!M61 -> 28020822 | AD61: =IFRS資產負債表!N61 -> 0
Y62: 未分配盈餘(千) | Z62: =IFRS資產負債表!J62 -> 2542569779 | AA62: =IFRS資產負債表!K62 -> 2682157537 | AB62: =IFRS資產負債表!L62 -> 2846883893 | AC62: =IFRS資產負債表!M62 -> 2955395983 | AD62: =IFRS資產負債表!N62 -> 3127527816
Y63: 保留盈餘(千) | Z63: =IFRS資產負債表!J63 -> 2877310603 | AA63: =IFRS資產負債表!K63 -> 3010532799 | AB63: =IFRS資產負債表!L63 -> 3158030792 | AC63: =IFRS資產負債表!M63 -> 3294563704 | AD63: =IFRS資產負債表!N63 -> 3438674715
Y64: 國外營運機構財務報表換算之兌換差額(千) | Z64: =IFRS資產負債表!J64 -> -9862739 | AA64: =IFRS資產負債表!K64 -> 18198873 | AB64: =IFRS資產負債表!L64 -> -25316769 | AC64: =IFRS資產負債表!M64 -> 12297132 | AD64: =IFRS資產負債表!N64 -> 25682909
Y65: 備供出售金融資產未實現損益(千) | Z65: =IFRS資產負債表!J65 -> -13 | AA65: =IFRS資產負債表!K65 -> -12 | AB65: =IFRS資產負債表!L65 -> -11 | AC65: =IFRS資產負債表!M65 -> -10 | AD65: =IFRS資產負債表!N65 -> -9
Y66: 庫藏股票(千) | Z66: =IFRS資產負債表!J66 -> 0 | AA66: =IFRS資產負債表!K66 -> 0 | AB66: =IFRS資產負債表!L66 -> 0 | AC66: =IFRS資產負債表!M66 -> 0 | AD66: =IFRS資產負債表!N66 -> -3089177
Y67: 母公司業主權益(千) | Z67: =IFRS資產負債表!J67 -> 3188750455 | AA67: =IFRS資產負債表!K67 -> 3348349657 | AB67: =IFRS資產負債表!L67 -> 3458913627 | AC67: =IFRS資產負債表!M67 -> 3635731930 | AD67: =IFRS資產負債表!N67 -> 3791402874
Y68: 非控制權益(千) | Z68: =IFRS資產負債表!J68 -> 16717744 | AA68: =IFRS資產負債表!K68 -> 24468450 | AB68: =IFRS資產負債表!L68 -> 24349220 | AC68: =IFRS資產負債表!M68 -> 29984324 | AD68: =IFRS資產負債表!N68 -> 28745331
Y69: 權益總計(千) | Z69: =IFRS資產負債表!J69 -> 3205468199 | AA69: =IFRS資產負債表!K69 -> 3372818107 | AB69: =IFRS資產負債表!L69 -> 3483262847 | AC69: =IFRS資產負債表!M69 -> 3665716254 | AD69: =IFRS資產負債表!N69 -> 3820148205
Y70: 每股淨值(元) | Z70: =IFRS資產負債表!J70 -> 122.97 | AA70: =IFRS資產負債表!K70 -> 129.12 | AB70: =IFRS資產負債表!L70 -> 133.38 | AC70: =IFRS資產負債表!M70 -> 140.19 | AD70: =IFRS資產負債表!N70 -> 146.21
Y72: 年季 | Z72: =Z2 -> 202306 | AA72: =AA2 -> 202309 | AB72: =AB2 -> 202312 | AC72: =AC2 -> 202403 | AD72: =AD2 -> 202406
Y73: 營業活動現金流量(千) | Z73: =IFRS資產負債表!J73 -> -167247979 | AA73: =IFRS資產負債表!K73 -> -294645276 | AB73: =IFRS資產負債表!L73 -> -394829347 | AC73: =IFRS資產負債表!M73 -> -436311108 | AD73: =IFRS資產負債表!N73 -> -377668210
Y74: 投資活動現金流量(千) | Z74: =IFRS資產負債表!J74 -> 259326076 | AA74: =IFRS資產負債表!K74 -> 242243223 | AB74: =IFRS資產負債表!L74 -> 132319502 | AC74: =IFRS資產負債表!M74 -> 159806991 | AD74: =IFRS資產負債表!N74 -> 197607330
Y75: 籌資活動現金流量(千) | Z75: =IFRS資產負債表!J75 -> 26588885 | AA75: =IFRS資產負債表!K75 -> 38451204 | AB75: =IFRS資產負債表!L75 -> 75367133 | AC75: =IFRS資產負債表!M75 -> 71685617 | AD75: =IFRS資產負債表!N75 -> 90244583
Y76: 匯率變動對現金及約當現金之影響(千) | Z76: =IFRS資產負債表!J76 -> -10158156 | AA76: =IFRS資產負債表!K76 -> -21131702 | AB76: =IFRS資產負債表!L76 -> 33521494 | AC76: =IFRS資產負債表!M76 -> -27949451 | AD76: =IFRS資產負債表!N76 -> -11115350
Y77: 本期現金及約當現金增減數(千) | Z77: =IFRS資產負債表!J77 -> 108508826 | AA77: =IFRS資產負債表!K77 -> -35082551 | AB77: =IFRS資產負債表!L77 -> -153621218 | AC77: =IFRS資產負債表!M77 -> -232767951 | AD77: =IFRS資產負債表!N77 -> -100931647
Y78: 自由現金流量(千) | Z78: =IFRS資產負債表!J78 -> -28624877 | AA78: =IFRS資產負債表!K78 -> -168144056 | AB78: =IFRS資產負債表!L78 -> -50787637 | AC78: =IFRS資產負債表!M78 -> -56801902 | AD78: =IFRS資產負債表!N78 -> -90998250
Y79: 原始每股營業現金流量(元) | Z79: =IFRS資產負債表!J79 -> -6.45 | AA79: =IFRS資產負債表!K79 -> -11.36 | AB79: =IFRS資產負債表!L79 -> -15.23 | AC79: =IFRS資產負債表!M79 -> -16.83 | AD79: =IFRS資產負債表!N79 -> -14.57

Sheet 輸入預估參數
A1: 2330
A3: 下方 橘色格子，供研究員填入預估資料，您可選擇部份填入或不填入。其他白底或綠底格子請勿填寫。
A4: 若您未輸入預估資料處，TEJ會自動以依TEJ蒐集的券商預估資料或以過去資料推估值填入，並計算未來四季預估財報
A5: 定案之所有財務預測資料，都根據此工作表 綠色格子數字計算，並列出未來四季各季預估財報(目前不適用金融產業)
I6: 投資評等表：每項給定0~2分，共五項，合計最高10分，若您要自行給定，請輸入橘色格部份
A7: 估計資料採用的優先順序 研究員估->券商估->過去資料估 | J7: 項目 | K7: 技術面 | L7: 技術面 | M7: 基本面 | N7: 基本面 | O7: 籌碼面 | P7: 評等合計 | Q7: 投資建議 | R7: 目標價
A8: 使用此表前，請先確認以下兩點: | K8: (短線) | L8: (中長線) | M8: (穩健性) | N8: (成長性)
A9: 1.確認[整合夢幻報表]!A1的個股代號，並按更新鈕之[更新所有工作表] | I9: 評分表 | J9: 系統評等 | K9: =J32 -> 0.4 | L9: =L32 -> 0.4 | M9: =N32 -> 1.6 | N9: =P32 -> 0.8 | O9: =R32 -> 0.5 | Q9: =IF(P11>=5,"Buy",IF(P11>=3.5,"Hold","Sell")) -> Hold | R9: =IF(整合夢幻報表!M38>0,IF(MAX(股價資訊!U2:U101,股價資訊!Q2/整合夢幻報表!M38)*1.05*整合夢幻報表!M38/股價資訊!Q2>1.15,股價資訊!Q2*1.15,MAX(股價資訊!U2:U101,股價資訊!Q2/整合夢幻報表!M38)*1.05*整合夢幻報表!M38),C56*MAX(股價資訊!T2:T101)) -> 1144.5
A10: 2.確認本表橘色格內的數字代表該代號資料(若沒有研究員預估資料則確認橘色格內沒資料) | J10: 研究員評等
J11: 結論評等 | K11: =IF(K10<>"",K10,K9) -> 0.4 | L11: =IF(L10<>"",L10,L9) -> 0.4 | M11: =IF(M10<>"",M10,M9) -> 1.6 | N11: =IF(N10<>"",N10,N9) -> 0.8 | O11: =IF(O10<>"",O10,O9) -> 0.5 | P11: =SUM(K11:O11) -> 3.7 | Q11: =IF(Q10<>"",Q10,Q9) -> Hold | R11: =IF(R10<>"",R10,R9) -> 1144.5
A12: =整合夢幻報表!A2 -> 2330 台積電 | I12: 綜合評分: | J12: =P11 -> 3.7 | K12: 投資建議: | L12: =Q11 -> Hold | M12: 目標價: | N12: =R11 -> 1144.5
B13: 1.以過去資料推估 | C13: 2.以券商估推估 | D13: 3.研究員概估(%) | E13: 概估採用值(%)
A14: 預估年營收(千) | B14: =SUM(月營收資訊!B3:B14)/1000*(1+B15/100) -> 3509162.96 | C14: 整合夢幻報表!
A15: 預估未來四季平均營收成長率(%) | B15: =(AVERAGE(月營收資訊!F3:F14)+AVERAGE(月營收資訊!F3:F8)*2+AVERAGE(月營收資訊!F3:F5)*3)/6 -> 28.89902778 | E15: =IF(D15<>"",D15,IF(C15<>"",C15,B15)) -> 28.89902778
A16: 預估年稅後盈餘(千) | B16: 整合夢幻報表! | C16: 整合夢幻報表!
A17: 預估年稅後EPS | B17: 整合夢幻報表! | C17: 整合夢幻報表!
A18: 預估未來四季平均毛利率(%) | B18: =IF(ISERR(TREND(IFRS財報_For預估用!F41:I41,IFRS財報_For預估用!E77:I77,IFRS財報_For預估用!J77)),IF(ISERR(AVERAGE(IFRS財報_For預估用!F41:I41)),10,AVERAGE(IFRS財報_For預估用!F41:I41)),(TREND(IFRS財報_For預估用!F41:I41,IFRS財報_For預估用!E77:I77,IFRS財報_For預估用!J77)+IFRS財報_For預估用!I41)/2) -> 53.385 | E18: =IF(D18<>"",D18,IF(C18<>"",C18,B18)) -> 53.385
A19: =>(優先順序 研究員估->券商估->過去資料估)
A23: 若您有需要針對各季的細項做更詳細的估計，請輸入以下橘色格(可部份輸入) | I23: 上述投資評等表，是根據以下的檢驗條件所加總，您可參考此作法自行做修改與變更以符合您評等各股的需求
A25: 未來四季單季預估資料(千) | C25: =季報含預估!J2 -> 202409 | D25: =季報含預估!K2 -> 202412 | E25: =季報含預估!L2 -> 202503 | F25: =季報含預估!M2 -> 202506 | G25: =季報含預估!N2 -> 202509 | I25: 系統評等 | J25: 技術面(短線) | L25: 技術面(中長線) | N25: 基本面(穩健性) | P25: 基本面(成長性) | R25: 籌碼面
A26: 營業收入(千) | B26: 以過去資料推估 | C26: =IF(季報含預估!F3<>0,季報含預估!F3*(100+$B$15)/100,AVERAGE(季報含預估!C3:F3)) -> 704733209.6 | D26: =IF(季報含預估!G3<>0,季報含預估!G3*(100+$B$15)/100,AVERAGE(季報含預估!D3:G3)) -> 806300613.9 | E26: =IF(季報含預估!H3<>0,季報含預估!H3*(100+$B$15)/100,AVERAGE(季報含預估!E3:H3)) -> 763912613.3 | F26: =IF(季報含預估!I3<>0,季報含預估!I3*(100+$B$15)/100,AVERAGE(季報含預估!F3:I3)) -> 868148070.1 | G26: =IF(季報含預估!J3<>0,季報含預估!J3*(100+$B$15)/100,AVERAGE(季報含預估!G3:J3)) -> 574692318.7 | J26: 條件 | K26: 評等 | L26: 條件 | M26: 評等 | N26: 條件 | O26: 評等 | P26: 條件 | Q26: 評等 | R26: 條件 | S26: 評等
B27: 以券商估推估 | C27: =IF(季報含預估!F3<>0,IF($C$15<>"",季報含預估!F3*(100+$C$15)/100,""),IF($C$15<>"",AVERAGE(季報含預估!C3:F3)*(100+$C$15)/100,"")) ->  | D27: =IF(季報含預估!G3<>0,IF($C$15<>"",季報含預估!G3*(100+$C$15)/100,""),IF($C$15<>"",AVERAGE(季報含預估!D3:G3)*(100+$C$15)/100,"")) ->  | E27: =IF(季報含預估!H3<>0,IF($C$15<>"",季報含預估!H3*(100+$C$15)/100,""),IF($C$15<>"",AVERAGE(季報含預估!E3:H3)*(100+$C$15)/100,"")) ->  | F27: =IF(季報含預估!I3<>0,IF($C$15<>"",季報含預估!I3*(100+$C$15)/100,""),IF($C$15<>"",AVERAGE(季報含預估!F3:I3)*(100+$C$15)/100,"")) ->  | G27: =IF(季報含預估!J3<>0,IF($C$15<>"",季報含預估!J3*(100+$C$15)/100,""),IF($C$15<>"",AVERAGE(季報含預估!G3:J3)*(100+$C$15)/100,"")) ->  | I27: 條件一 | J27: 站上3日線 | K27: =IF(L38>L39,0.4,0) -> 0 | L27: 站上月線 | M27: =IF(L38>L45,0.4,0) -> 0 | N27: PE<15 | O27: =IF(L51<15,0.4,0) -> 0 | P27: 營收YoY>10 | Q27: =IF(O42>0,0.4,0) -> 0.4 | R27: 出量 | S27: =IF(O47>O48,0.5,0) -> 0
B28: 研究員概估(請直接填D15格) | C28: =IF($D$15<>"",季報含預估!F3*(100+$D$15)/100,"") ->  | D28: =IF($D$15<>"",季報含預估!G3*(100+$D$15)/100,"") ->  | E28: =IF($D$15<>"",季報含預估!H3*(100+$D$15)/100,"") ->  | F28: =IF($D$15<>"",季報含預估!I3*(100+$D$15)/100,"") ->  | G28: =IF($D$15<>"",季報含預估!J3*(100+$D$15)/100,"") ->  | I28: 條件二 | J28: 週線上揚 | K28: =IF(L40>L41,0.4,0) -> 0.4 | L28: 季線上揚 | M28: =IF(L46>L47,0.4,0) -> 0 | N28: 負債比率<70 | O28: =IF(O38<70,0.4,0) -> 0.4 | P28: 預估營收成長 | Q28: =IF(O43>0,0.4,0) -> 0.4 | R28: 日成交量>周均量 | S28: =IF(O47>O49,0.5,0) -> 0
B29: 研究員逐季估(與D15格擇一填) | C29: =整合夢幻報表!L3*(1-33.8025%) -> 445846899.4 | D29: =C29*(1+50%) -> 668770349.1 | E29: =D29*(1-20%) -> 535016279.3 | F29: =E29*(1+50%) -> 802524419 | G29: =F29*(1-25%) -> 601893314.2 | I29: 條件三 | J29: K>D | K29: =IF(L42>L43,0.4,0) -> 0 | L29: 周K>周D | M29: =IF(L48>L49,0.4,0) -> 0 | N29: 速動比率>100 | O29: =IF(O39>100,0.4,0) -> 0.4 | P29: 預估盈餘成長 | Q29: =IF(O44>0,0.4,0) -> 0 | R29: 本週法人加碼 | S29: =IF(O50>=0,0.5,0) -> 0
B30: 最後定案採用值 | C30: =IF(C29<>"",C29,IF(C28<>"",C28,IF(C27<>"",C27,C26))) -> 445846899.4 | D30: =IF(D29<>"",D29,IF(D28<>"",D28,IF(D27<>"",D27,D26))) -> 668770349.1 | E30: =IF(E29<>"",E29,IF(E28<>"",E28,IF(E27<>"",E27,E26))) -> 535016279.3 | F30: =IF(F29<>"",F29,IF(F28<>"",F28,IF(F27<>"",F27,F26))) -> 802524419 | G30: =IF(G29<>"",G29,IF(G28<>"",G28,IF(G27<>"",G27,G26))) -> 601893314.2 | I30: 條件四 | J30: K<40 | K30: =IF(L42>40,0.4,0) -> 0 | L30: 周K<40 | M30: =IF(L48<40,0.4,0) -> 0.4 | N30: 單季EPS>0.5 | O30: =IF(O40>0.5,0.4,0) -> 0.4 | P30: 預估營利率增 | Q30: =IF(O45>0,0.4,0) -> 0 | R30: 董監持股未減 | S30: =IF(O52>=0,0.5,0) -> 0.5
A31: 營業成本(千) | B31: =用營業收入-營業毛利 | C31: =C30-C37 -> 234025037.5 | D31: =D30-D37 -> 312315753 | E31: =E30-E37 -> 267508139.7 | F31: =F30-F37 -> 369161232.7 | G31: =G30-G37 -> 276870924.5 | I31: 條件五 | J31: K向上 | K31: =IF(K424>L44,0.4,0) -> 0 | L31: 周K向上 | M31: =IF(L48>L50,0.4,0) -> 0 | N31: 營運現金流增加 | O31: =IF(O41>0,0.4,0) -> 0.4 | P31: 預估ROE增 | Q31: =IF(O46>0,0.4,0) -> 0
A32: 營業毛利(千) (研究員預估值請在D18格或逐季金額或逐季百分比擇一填寫) | B32: 以過去資料推估 | C32: =C30*$B$18/100 -> 238015367.3 | D32: =D30*$B$18/100 -> 357023050.9 | E32: =E30*$B$18/100 -> 285618440.7 | F32: =F30*$B$18/100 -> 428427661.1 | G32: =G30*$B$18/100 -> 321320745.8 | I32: 合計 | J32: =SUM(K27:K31) -> 0.4 | L32: =SUM(M27:M31) -> 0.4 | N32: =SUM(O27:O31) -> 1.6 | P32: =SUM(Q27:Q31) -> 0.8 | R32: =SUM(S27:S30) -> 0.5
B33: 以券商估推估 | C33: =IF(C30<>"",IF($C$18<>"",C30*$C$18/100,""),IF($C$18<>"",C30*$C$18/100,"")) ->  | D33: =IF(D27<>"",IF($C$18<>"",D27*$C$18/100,""),IF($C$18<>"",D30*$C$18/100,"")) ->  | E33: =IF(E27<>"",IF($C$18<>"",E27*$C$18/100,""),IF($C$18<>"",E30*$C$18/100,"")) ->  | F33: =IF(F27<>"",IF($C$18<>"",F27*$C$18/100,""),IF($C$18<>"",F30*$C$18/100,"")) ->  | G33: =IF(G27<>"",IF($C$18<>"",G27*$C$18/100,""),IF($C$18<>"",G30*$C$18/100,"")) -> 
B34: 研究員概估(請直接填D18格) | C34: =IF($D$18<>"",C30*$D$18/100,"") ->  | D34: =IF($D$18<>"",D30*$D$18/100,"") ->  | E34: =IF($D$18<>"",E30*$D$18/100,"") ->  | F34: =IF($D$18<>"",F30*$D$18/100,"") ->  | G34: =IF($D$18<>"",G30*$D$18/100,"") -> 
B35: 研究員逐季估_金額
B36: 研究員逐季估_百分比(%) | C36: 47.51 | D36: 53.3 | E36: 50 | F36: 54 | G36: 54
B37: 最後定案採用值 | C37: =IF(C35<>"",C35,IF(C36<>"",C36/100*C30,IF(C34<>"",C34,IF(C33<>"",C33,C32)))) -> 211821861.9 | D37: =IF(D35<>"",D35,IF(D36<>"",D36/100*D30,IF(D34<>"",D34,IF(D33<>"",D33,D32)))) -> 356454596.1 | E37: =IF(E35<>"",E35,IF(E36<>"",E36/100*E30,IF(E34<>"",E34,IF(E33<>"",E33,E32)))) -> 267508139.7 | F37: =IF(F35<>"",F35,IF(F36<>"",F36/100*F30,IF(F34<>"",F34,IF(F33<>"",F33,F32)))) -> 433363186.2 | G37: =IF(G35<>"",G35,IF(G36<>"",G36/100*G30,IF(G34<>"",G34,IF(G33<>"",G33,G32)))) -> 325022389.7 | J37: 上述系統評等使用參數:
A38: 營業費用(千) | B38: 以過去資料推估 | C38: =FORECAST(C30,季報含預估!B9:I9,季報含預估!B3:I3) -> 55675182.6 | D38: =FORECAST(D30,季報含預估!C9:J9,季報含預估!C3:J3) -> 51009269.33 | E38: =FORECAST(E30,季報含預估!D9:K9,季報含預估!D3:K3) -> 96588469.62 | F38: =FORECAST(F30,季報含預估!E9:L9,季報含預估!E3:L3) -> 88862911.73 | G38: =FORECAST(G30,季報含預估!F9:M9,季報含預估!F3:M3) -> 138632465.6 | J38: 最新股價 | L38: =股價資訊!B10 -> 0 | N38: 負債比率 | O38: =IFRS財報_For預估用!I58 -> 36.14
B39: 研究員細估 | C39: =C30*41.93% -> 186943604.9 | D39: =D30*30% -> 200631104.7 | E39: =E30*40% -> 214006511.7 | F39: =F30*30% -> 240757325.7 | G39: =G30*40% -> 240757325.7 | J39: 3日均線 | L39: =AVERAGE(股價資訊!Q2:Q4) -> 1071.666667 | N39: 速動比率 | O39: =IFRS財報_For預估用!I59 -> 247.08
B40: 最後定案採用值 | C40: =IF(C39<>"",C39,C38) -> 186943604.9 | D40: =IF(D39<>"",D39,D38) -> 200631104.7 | E40: =IF(E39<>"",E39,E38) -> 214006511.7 | F40: =IF(F39<>"",F39,F38) -> 240757325.7 | G40: =IF(G39<>"",G39,G38) -> 240757325.7 | J40: 週線 | L40: =AVERAGE(股價資訊!Q2:Q6) -> 1061 | N40: 單季EPS | O40: =IFRS財報_For預估用!I40 -> 9.56
A41: 營業利益(千) | B41: 此欄用營業毛利-營業費用 | C41: =C37-C40 -> 24878256.99 | D41: =D37-D40 -> 155823491.3 | E41: =E37-E40 -> 53501627.93 | F41: =F37-F40 -> 192605860.5 | G41: =G37-G40 -> 84265063.99 | J41: 前一日週線 | L41: =AVERAGE(股價資訊!Q3:Q7) -> 1048 | N41: 營運現金流量 | O41: =IFRS財報_For預估用!I63 -> 377668210
A42: 營業外收入及支出(千) | B42: 以過去資料推估 | C42: =AVERAGE(季報含預估!B14:I14) -> 13872675.75 | D42: =AVERAGE(季報含預估!C14:J14) -> 13078013.12 | E42: =AVERAGE(季報含預估!D14:K14) -> 13509126.77 | F42: =AVERAGE(季報含預估!E14:L14) -> 13568170.86 | G42: =AVERAGE(季報含預估!F14:M14) -> 13674583.97 | J42: 日K | L42: =股價資訊!E23 -> 0 | N42: 最近一月營收yoy | O42: =月營收資訊!C3 -> 29.21
B43: 研究員細估 | C43: 9352 | J43: 日D | L43: =股價資訊!F23 -> 0 | N43: 預估營收成長 | O43: =輸入預估參數!E15 -> 28.89902778
B44: 最後定案採用值 | C44: =IF(C43<>"",C43,C42) -> 9352 | D44: =IF(D43<>"",D43,D42) -> 13078013.12 | E44: =IF(E43<>"",E43,E42) -> 13509126.77 | F44: =IF(F43<>"",F43,F42) -> 13568170.86 | G44: =IF(G43<>"",G43,G42) -> 13674583.97 | J44: 前一日K | L44: =股價資訊!E24 -> 0 | N44: 預估盈餘成長 | O44: =整合夢幻報表!M35-整合夢幻報表!L35 -> -490257750.3
A45: 稅前純益(千) | B45: =營業利益+營業外收入及支出 | C45: =C41+C44 -> 24887608.99 | D45: =D41+D44 -> 168901504.5 | E45: =E41+E44 -> 67010754.7 | F45: =F41+F44 -> 206174031.4 | G45: =G41+G44 -> 97939647.96 | J45: 月線 | L45: =AVERAGE(股價資訊!Q2:Q21) -> 1056 | N45: 預估營利率增加 | O45: =整合夢幻報表!M17-整合夢幻報表!L17 -> -36.97
A46: 所得稅(千) | B46: 以過去資料推估 | C46: =SUM(季報含預估!F20:I20)/SUM(季報含預估!F19:I19)*C45 -> 3895475.654 | D46: =SUM(季報含預估!G20:J20)/SUM(季報含預估!G19:J19)*D45 -> 28565658.73 | E46: =SUM(季報含預估!H20:K20)/SUM(季報含預估!H19:K19)*E45 -> 13146944.7 | F46: =SUM(季報含預估!I20:L20)/SUM(季報含預估!I19:L19)*F45 -> 45749220.54 | G46: =SUM(季報含預估!J20:M20)/SUM(季報含預估!J19:M19)*G45 -> 24902387.02 | J46: 季線 | L46: =AVERAGE(股價資訊!B2:B61) -> 367.68 | N46: 預估ROE增 | O46: =整合夢幻報表!M18-整合夢幻報表!L18 -> -33.05895988
B47: 研究員細估 | C47: =C45*32.998% -> 8212413.214 | D47: =D45*25% -> 42225376.12 | E47: =E45*25% -> 16752688.67 | F47: =F45*25% -> 51543507.85 | G47: =G45*25% -> 24484911.99 | J47: 前一日季線 | L47: =AVERAGE(股價資訊!Q3:Q62) -> 986.4333333 | N47: 日成交量 | O47: =股價資訊!R2 -> 38840
B48: 最後定案採用值 | C48: =IF(C47<>"",C47,C46) -> 8212413.214 | D48: =IF(D47<>"",D47,D46) -> 42225376.12 | E48: =IF(E47<>"",E47,E46) -> 16752688.67 | F48: =IF(F47<>"",F47,F46) -> 51543507.85 | G48: =IF(G47<>"",G47,G46) -> 24484911.99 | J48: 周K | L48: =股價資訊!G23 -> 0 | N48: 前一日成交量 | O48: =股價資訊!R3 -> 46030
A49: 稅後純益(千) | B49: =稅前純益-所得稅 | C49: =C45-C48 -> 16675195.77 | D49: =D45-D48 -> 126676128.4 | E49: =E45-E48 -> 50258066.02 | F49: =F45-F48 -> 154630523.6 | G49: =G45-G48 -> 73454735.97 | J49: 周D | L49: =股價資訊!H23 -> 0 | N49: 週均量 | O49: =AVERAGE(股價資訊!R2:R6) -> 41181.2
A50: 每股稅前純益(元) | B50: =稅前純益/季末股本 | C50: =C45/C$54*10 -> 0.9596654905 | D50: =D45/D$54*10 -> 6.51283718 | E50: =E45/E$54*10 -> 2.583932784 | F50: =F45/F$54*10 -> 7.950064753 | G50: =G45/G$54*10 -> 3.776550023 | J50: 前一日週K | L50: =股價資訊!G24 -> 0 | N50: 近五日法人買超 | O50: =股價資訊!F14 -> -16706
A51: 每股稅後純益(元) | B51: =稅後純益/季末股本 | C51: =C49/C54*10 -> 0.642995072 | D51: =D49/D54*10 -> 4.884627885 | E51: =E49/E54*10 -> 1.937949588 | F51: =F49/F54*10 -> 5.962548564 | G51: =G49/G54*10 -> 2.832412517 | J51: PE | L51: =股價資訊!S2 -> 30.5522 | N51: 近五日融資增減 | O51: =SUM(股價資訊!I23:I27) -> 857
A52: 季末股本(千) | B52: 目前最新股本 | C52: =IFRS財報_For預估用!$I$47 -> 259336292 | D52: =IFRS財報_For預估用!$I$47 -> 259336292 | E52: =IFRS財報_For預估用!$I$47 -> 259336292 | F52: =IFRS財報_For預估用!$I$47 -> 259336292 | G52: =IFRS財報_For預估用!$I$47 -> 259336292 | J52: PB | L52: =股價資訊!T2 -> 7.46 | N52: 董監近一月增減 | O52: =股價資訊!B7-股價資訊!B8 -> 0
B53: 研究員逐季估
B54: 最後定案採用值 | C54: =IF(C53<>"",C53,C52) -> 259336292 | D54: =IF(D53<>"",D53,D52) -> 259336292 | E54: =IF(E53<>"",E53,E52) -> 259336292 | F54: =IF(F53<>"",F53,F52) -> 259336292 | G54: =IF(G53<>"",G53,G52) -> 259336292
A55: 季末股東權益(千) | B55: =稅後純益+前一季股東權益 | C55: =季報含預估!I35+C49 -> 3836823401 | D55: =C55+D49 -> 3963499529 | E55: =D55+E49 -> 4013757595 | F55: =E55+F49 -> 4168388119 | G55: =F55+G49 -> 4241842855
A56: 季末每股淨值(元) | B56: =股東權益/股本 | C56: =C55/C54*10 -> 147.9478006 | D56: =D55/D54*10 -> 152.8324284 | E56: =E55/E54*10 -> 154.770378 | F56: =F55/F54*10 -> 160.7329266 | G56: =G55/G54*10 -> 163.5653391

Sheet 個股損益表
A1: 2330
C3: =MONTH(IFRS財報_For預估用!F2)/3&"Q"&RIGHT(YEAR(IFRS財報_For預估用!F2),2) -> 3Q23 | D3: =MONTH(IFRS財報_For預估用!G2)/3&"Q"&RIGHT(YEAR(IFRS財報_For預估用!G2),2) -> 4Q23 | E3: =MONTH(IFRS財報_For預估用!H2)/3&"Q"&RIGHT(YEAR(IFRS財報_For預估用!H2),2) -> 1Q24 | F3: =MONTH(IFRS財報_For預估用!I2)/3&"Q"&RIGHT(YEAR(IFRS財報_For預估用!I2),2) -> 2Q24 | G3: =LEFT(C3,2)&RIGHT(C3,2)+1&"E" -> 3Q24E | H3: =LEFT(D3,2)&RIGHT(D3,2)+1&"E" -> 4Q24E | I3: =LEFT(E3,2)&RIGHT(E3,2)+1&"E" -> 1Q25E | J3: =LEFT(F3,2)&RIGHT(F3,2)+1&"E" -> 2Q25E | K3: =YEAR('IFRS-年報'!C2) -> 2019 | L3: =YEAR('IFRS-年報'!D2) -> 2020 | M3: =YEAR('IFRS-年報'!E2) -> 2021 | N3: =YEAR('IFRS-年報'!F2) -> 2022 | O3: =YEAR('IFRS-年報'!G2) -> 2023 | P3: =O3+1&"E" -> 2024E
B4: 營業收入 | C4: =IFRS財報_For預估用!F3/1000 -> 546732.758 | D4: =IFRS財報_For預估用!G3/1000 -> 625528.856 | E4: =IFRS財報_For預估用!H3/1000 -> 592644.201 | F4: =IFRS財報_For預估用!I3/1000 -> 673510.177 | G4: =整合夢幻報表!M3/1000 -> 445846.8994 | H4: =整合夢幻報表!N3/1000 -> 668770.3491 | I4: =整合夢幻報表!O3/1000 -> 535016.2793 | J4: =整合夢幻報表!P3/1000 -> 802524.419 | K4: ='IFRS-年報'!C3/1000 -> 1069985.448 | L4: ='IFRS-年報'!D3/1000 -> 1339254.811 | M4: ='IFRS-年報'!E3/1000 -> 1587415.037 | N4: ='IFRS-年報'!F3/1000 -> 2263891.292 | O4: ='IFRS-年報'!G3/1000 -> 2161735.841 | P4: =整合夢幻報表!M27/1000 -> 2452157.947
B5: YoY | C5: =(IFRS財報_For預估用!F3-IFRS財報_For預估用!B3)/IFRS財報_For預估用!B3 -> -0.1083108065 | D5: =(IFRS財報_For預估用!G3-IFRS財報_For預估用!C3)/IFRS財報_For預估用!C3 -> -4.815102402e-06 | E5: =(IFRS財報_For預估用!H3-IFRS財報_For預估用!D3)/IFRS財報_For預估用!D3 -> 0.1651706288 | F5: =(IFRS財報_For預估用!I3-IFRS財報_For預估用!E3)/IFRS財報_For預估用!E3 -> 0.4006913329 | G5: =(G4-C4)/C4 -> -0.1845249934 | H5: =(H4-D4)/D4 -> 0.06912789508 | I5: =(I4-E4)/E4 -> -0.09723864943 | J5: =(J4-F4)/F4 -> 0.191555 | K5: =('IFRS-年報'!C3-'IFRS-年報'!B3)/'IFRS-年報'!B3 -> 0.03733677004 | L5: =('IFRS-年報'!D3-'IFRS-年報'!C3)/'IFRS-年報'!C3 -> 0.2516570328 | M5: =('IFRS-年報'!E3-'IFRS-年報'!D3)/'IFRS-年報'!D3 -> 0.1852972444 | N5: =('IFRS-年報'!F3-'IFRS-年報'!E3)/'IFRS-年報'!E3 -> 0.4261495823 | O5: =('IFRS-年報'!G3-'IFRS-年報'!F3)/'IFRS-年報'!F3 -> -0.0451238323 | P5: =(P4-O4)/O4 -> 0.1343467136
B6: 營業毛利 | C6: =IFRS財報_For預估用!F5/1000 -> 296642.464 | D6: =IFRS財報_For預估用!G5/1000 -> 331767.925 | E6: =IFRS財報_For預估用!H5/1000 -> 314505.269 | F6: =IFRS財報_For預估用!I5/1000 -> 358124.478 | G6: =整合夢幻報表!M5/1000 -> 211821.8619 | H6: =整合夢幻報表!N5/1000 -> 356454.5961 | I6: =整合夢幻報表!O5/1000 -> 267508.1397 | J6: =整合夢幻報表!P5/1000 -> 433363.1862 | K6: ='IFRS-年報'!C5/1000 -> 492698.501 | L6: ='IFRS-年報'!D5/1000 -> 711130.12 | M6: ='IFRS-年報'!E5/1000 -> 819537.266 | N6: ='IFRS-年報'!F5/1000 -> 1348354.806 | O6: ='IFRS-年報'!G5/1000 -> 1175110.628 | P6: =整合夢幻報表!M29/1000 -> 1269147.784
B7: 毛利率 | C7: =IFRS財報_For預估用!F41/100 -> 0.5426 | D7: =IFRS財報_For預估用!G41/100 -> 0.5304 | E7: =IFRS財報_For預估用!H41/100 -> 0.5307 | F7: =IFRS財報_For預估用!I41/100 -> 0.5317 | G7: =G6/G4 -> 0.4751 | H7: =H6/H4 -> 0.533 | I7: =I6/I4 -> 0.5 | J7: =J6/J4 -> 0.54 | K7: ='IFRS-年報'!C14/100 -> 0.4605 | L7: ='IFRS-年報'!D14/100 -> 0.531 | M7: ='IFRS-年報'!E14/100 -> 0.5163 | N7: ='IFRS-年報'!F14/100 -> 0.5956 | O7: ='IFRS-年報'!G14/100 -> 0.5436 | P7: =P6/P4 -> 0.5175636364
B8: 營業費用 | C8: =IFRS財報_For預估用!F8/1000 -> 68708.791 | D8: =IFRS財報_For預估用!G8/1000 -> 71621.021 | E8: =IFRS財報_For預估用!H8/1000 -> 65357.281 | F8: =IFRS財報_For預估用!I8/1000 -> 70295.31 | G8: =整合夢幻報表!M6/1000 -> 186943.6049 | H8: =整合夢幻報表!N6/1000 -> 200631.1047 | I8: =整合夢幻報表!O6/1000 -> 214006.5117 | J8: =整合夢幻報表!P6/1000 -> 240757.3257 | K8: ='IFRS-年報'!C6/1000 -> 119504.582 | L8: ='IFRS-年報'!D6/1000 -> 145056.549 | M8: ='IFRS-年報'!E6/1000 -> 169222.934 | N8: ='IFRS-年報'!F6/1000 -> 226707.552 | O8: ='IFRS-年報'!G6/1000 -> 253833.716 | P8: =整合夢幻報表!M30/1000 -> 842338.5471
B9: 費用率 | C9: =IFRS財報_For預估用!F73/100 -> 0.1257 | D9: =IFRS財報_For預估用!G73/100 -> 0.1145 | E9: =IFRS財報_For預估用!H73/100 -> 0.1103 | F9: =IFRS財報_For預估用!I73/100 -> 0.1044 | G9: =G8/G4 -> 0.4193 | H9: =H8/H4 -> 0.3 | I9: =I8/I4 -> 0.4 | J9: =J8/J4 -> 0.3 | K9: ='IFRS-年報'!C36/100 -> 0.1117 | L9: ='IFRS-年報'!D36/100 -> 0.1083 | M9: ='IFRS-年報'!E36/100 -> 0.1066 | N9: ='IFRS-年報'!F36/100 -> 0.1001 | O9: ='IFRS-年報'!G36/100 -> 0.1174 | P9: =P8/P4 -> 0.3435090909
B10: 營業利益 | C10: =IFRS財報_For預估用!F12/1000 -> 228064.903 | D10: =IFRS財報_For預估用!G12/1000 -> 260204.503 | E10: =IFRS財報_For預估用!H12/1000 -> 249018.306 | F10: =IFRS財報_For預估用!I12/1000 -> 286555.542 | G10: =整合夢幻報表!M7/1000 -> 24878.25699 | H10: =整合夢幻報表!N7/1000 -> 155823.4913 | I10: =整合夢幻報表!O7/1000 -> 53501.62793 | J10: =整合夢幻報表!P7/1000 -> 192605.8605 | K10: ='IFRS-年報'!C7/1000 -> 372701.09 | L10: ='IFRS-年報'!D7/1000 -> 566783.698 | M10: ='IFRS-年報'!E7/1000 -> 649980.897 | N10: ='IFRS-年報'!F7/1000 -> 1121278.851 | O10: ='IFRS-年報'!G7/1000 -> 921465.606 | P10: =整合夢幻報表!M31/1000 -> 426809.2368
B11: YoY | C11: =(IFRS財報_For預估用!F12-IFRS財報_For預估用!B12)/IFRS財報_For預估用!B12 -> -0.2650753866 | D11: =(IFRS財報_For預估用!G12-IFRS財報_For預估用!C12)/IFRS財報_For預估用!C12 -> -0.1994711833 | E11: =(IFRS財報_For預估用!H12-IFRS財報_For預估用!D12)/IFRS財報_For預估用!D12 -> 0.07689106863 | F11: =(IFRS財報_For預估用!I12-IFRS財報_For預估用!E12)/IFRS財報_For預估用!E12 -> 0.418886506 | G11: =(G10-C10)/C10 -> -0.8909158899 | H11: =(H10-D10)/D10 -> -0.401149905 | I11: =(I10-E10)/E10 -> -0.7851498197 | J11: =(J10-F10)/F10 -> -0.3278585394 | K11: =('IFRS-年報'!C7-'IFRS-年報'!B7)/'IFRS-年報'!B7 -> -0.02847175243 | L11: =('IFRS-年報'!D7-'IFRS-年報'!C7)/'IFRS-年報'!C7 -> 0.5207460166 | M11: =('IFRS-年報'!E7-'IFRS-年報'!D7)/'IFRS-年報'!D7 -> 0.1467882709 | N11: =('IFRS-年報'!F7-'IFRS-年報'!E7)/'IFRS-年報'!E7 -> 0.7250950854 | O11: =('IFRS-年報'!G7-'IFRS-年報'!F7)/'IFRS-年報'!F7 -> -0.1782012073 | P11: =(P10-O10)/O10 -> -0.5368147937
B12: 營益率 | C12: =IFRS財報_For預估用!F42/100 -> 0.4171 | D12: =IFRS財報_For預估用!G42/100 -> 0.416 | E12: =IFRS財報_For預估用!H42/100 -> 0.4202 | F12: =IFRS財報_For預估用!I42/100 -> 0.4255 | G12: =G10/G4 -> 0.0558 | H12: =H10/H4 -> 0.233 | I12: =I10/I4 -> 0.1 | J12: =J10/J4 -> 0.24 | K12: ='IFRS-年報'!C15/100 -> 0.3483 | L12: ='IFRS-年報'!D15/100 -> 0.4232 | M12: ='IFRS-年報'!E15/100 -> 0.4095 | N12: ='IFRS-年報'!F15/100 -> 0.4953 | O12: ='IFRS-年報'!G15/100 -> 0.4263 | P12: =P10/P4 -> 0.1740545455
B13: 每股營業利益 | C13: =IFRS財報_For預估用!F12/IFRS財報_For預估用!F69 -> 8.79565562 | D13: =IFRS財報_For預估用!G12/IFRS財報_For預估用!G69 -> 10.0351832 | E13: =IFRS財報_For預估用!H12/IFRS財報_For預估用!H69 -> 9.603754167 | F13: =IFRS財報_For預估用!I12/IFRS財報_For預估用!I69 -> 11.05155816 | G13: =G10/(G18/G24) -> 0.9593048777 | H13: =H10/(H18/H24) -> 6.008549368 | I13: =I10/(I18/I24) -> 2.063021242 | J13: =J10/(J18/J24) -> 7.426876472 | K13: ='IFRS-年報'!C7/'IFRS-年報'!C29 -> 14.37314417 | L13: ='IFRS-年報'!D7/'IFRS-年報'!D29 -> 21.85790174 | M13: ='IFRS-年報'!E7/'IFRS-年報'!E29 -> 25.06638534 | N13: ='IFRS-年報'!F7/'IFRS-年報'!F29 -> 43.24388271 | O13: ='IFRS-年報'!G7/'IFRS-年報'!G29 -> 35.53772537 | P13: =P10/(P18/P24) -> 16.45775196
B14: 淨業外收入 | C14: =IFRS財報_For預估用!F12/1000 -> 228064.903 | D14: =IFRS財報_For預估用!G12/1000 -> 260204.503 | E14: =IFRS財報_For預估用!H12/1000 -> 249018.306 | F14: =IFRS財報_For預估用!I12/1000 -> 286555.542 | G14: =整合夢幻報表!M8/1000 -> 9.352 | H14: =整合夢幻報表!N8/1000 -> 13078.01312 | I14: =整合夢幻報表!O8/1000 -> 13509.12677 | J14: =整合夢幻報表!P8/1000 -> 13568.17086 | K14: ='IFRS-年報'!C8/1000 -> 17144.246 | L14: ='IFRS-年報'!D8/1000 -> 17993.482 | M14: ='IFRS-年報'!E8/1000 -> 13145.417 | N14: ='IFRS-年報'!F8/1000 -> 22911.867 | O14: ='IFRS-年報'!G8/1000 -> 57705.718 | P14: =整合夢幻報表!M32/1000 -> 40164.66275
B15: 稅前淨利 | C15: =IFRS財報_For預估用!F33/1000 -> 241940.495 | D15: =IFRS財報_For預估用!G33/1000 -> 278280.989 | E15: =IFRS財報_For預估用!H33/1000 -> 266543.204 | F15: =IFRS財報_For預估用!I33/1000 -> 306310.575 | G15: =整合夢幻報表!M9/1000 -> 24887.60899 | H15: =整合夢幻報表!N9/1000 -> 168901.5045 | I15: =整合夢幻報表!O9/1000 -> 67010.7547 | J15: =整合夢幻報表!P9/1000 -> 206174.0314 | K15: ='IFRS-年報'!C9/1000 -> 389845.336 | L15: ='IFRS-年報'!D9/1000 -> 584777.18 | M15: ='IFRS-年報'!E9/1000 -> 663126.314 | N15: ='IFRS-年報'!F9/1000 -> 1144190.718 | O15: ='IFRS-年報'!G9/1000 -> 979171.324 | P15: =整合夢幻報表!M33/1000 -> 466973.8996
B16: 所得稅 | C16: =季報含預估!F20/1000 -> 31145.221 | D16: =季報含預估!G20/1000 -> 39974.788 | E16: =季報含預估!H20/1000 -> 41321.941 | F16: =季報含預估!I20/1000 -> 58649.137 | G16: =整合夢幻報表!M10/1000 -> 8212.413214 | H16: =整合夢幻報表!N10/1000 -> 42225.37612 | I16: =整合夢幻報表!O10/1000 -> 16752.68867 | J16: =整合夢幻報表!P10/1000 -> 51543.50785 | K16: ='IFRS-年報'!C10/1000 -> 44501.527 | L16: ='IFRS-年報'!D10/1000 -> 66619.098 | M16: ='IFRS-年報'!E10/1000 -> 66053.18 | N16: ='IFRS-年報'!F10/1000 -> 127290.203 | O16: ='IFRS-年報'!G10/1000 -> 141403.807 | P16: =整合夢幻報表!M34/1000 -> 118733.9859
B17: 所得稅率 | C17: =C16/C15 -> 0.1287309138 | D17: =D16/D15 -> 0.1436490079 | E17: 0.1550290549 | F17: 0.1914695142 | G17: 0.32998 | H17: 0.25 | I17: 0.25 | J17: 0.25 | K17: 0.1141517491 | L17: 0.1139221917 | M17: 0.09960874513 | N17: 0.1112491135 | O17: 0.1444117118 | P17: 0.2542625744
B18: 合併總損益 | C18: =IFRS財報_For預估用!F37/1000 -> 237285.511 | D18: =IFRS財報_For預估用!G37/1000 -> 201202.304 | E18: =IFRS財報_For預估用!H37/1000 -> 267398.572 | F18: =IFRS財報_For預估用!I37/1000 -> 262265.42 | G18: =季報含預估!J22/1000 -> 16675.19577 | H18: =季報含預估!K22/1000 -> 126676.1284 | I18: =季報含預估!L22/1000 -> 50258.06602 | J18: =季報含預估!M22/1000 -> 154630.5236 | K18: ='IFRS-年報'!C11/1000 -> 345263.668 | L18: ='IFRS-年報'!D11/1000 -> 517885.387 | M18: ='IFRS-年報'!E11/1000 -> 596540.013 | N18: ='IFRS-年報'!F11/1000 -> 1016530.249 | O18: ='IFRS-年報'!G11/1000 -> 838497.664 | P18: =整合夢幻報表!M35/1000 -> 348239.9137
B19: 少數股權利益 | C19: =(IFRS財報_For預估用!F55-IFRS財報_For預估用!F37)/1000 -> -26490.237 | D19: =(IFRS財報_For預估用!G55-IFRS財報_For預估用!G37)/1000 -> 37103.897 | E19: =(IFRS財報_For預估用!H55-IFRS財報_For預估用!H37)/1000 -> -42177.309 | F19: =(IFRS財報_For預估用!I55-IFRS財報_For預估用!I37)/1000 -> -14603.982 | G19: =(G20-G18)/1000 -> 0 | H19: 0 | I19: 0 | J19: 0 | K19: 0.080141 | L19: 0.272695 | M19: 0.533121 | N19: 0.370266 | O19: -0.730147 | P19: 0
B20: 合併總損益 | C20: =IFRS財報_For預估用!F55/1000 -> 210795.274 | D20: =IFRS財報_For預估用!G55/1000 -> 238306.201 | E20: =IFRS財報_For預估用!H55/1000 -> 225221.263 | F20: =IFRS財報_For預估用!I55/1000 -> 247661.438 | G20: =(季報含預估!J19-季報含預估!J20)/1000 -> 16675.19577 | H20: =(季報含預估!K19-季報含預估!K20)/1000 -> 126676.1284 | I20: =(季報含預估!L19-季報含預估!L20)/1000 -> 50258.06602 | J20: =(季報含預估!M19-季報含預估!M20)/1000 -> 154630.5236 | K20: ='IFRS-年報'!C26/1000 -> 345343.809 | L20: ='IFRS-年報'!D26/1000 -> 518158.082 | M20: ='IFRS-年報'!E26/1000 -> 597073.134 | N20: ='IFRS-年報'!F26/1000 -> 1016900.515 | O20: ='IFRS-年報'!G26/1000 -> 837767.517 | P20: =P15-P16 -> 348239.9137
B21: YoY | C21: =(IFRS財報_For預估用!F55-IFRS財報_For預估用!B55)/IFRS財報_For預估用!B55 -> -0.249754532 | D21: =(IFRS財報_For預估用!G55-IFRS財報_For預估用!C55)/IFRS財報_For預估用!C55 -> -0.1945808313 | E21: =(IFRS財報_For預估用!H55-IFRS財報_For預估用!D55)/IFRS財報_For預估用!D55 -> 0.0882933661 | F21: =(IFRS財報_For預估用!I55-IFRS財報_For預估用!E55)/IFRS財報_For預估用!E55 -> 0.3628963158 | G21: =(G20-C20)/C20 -> -0.9208938822 | H21: =(H20-D20)/D20 -> -0.4684312543 | I21: =(I20-E20)/E20 -> -0.7768502611 | J21: =(J20-F20)/F20 -> -0.3756374638 | K21: =('IFRS-年報'!C26-'IFRS-年報'!B26)/'IFRS-年報'!B26 -> -0.01663113994 | L21: =('IFRS-年報'!D26-'IFRS-年報'!C26)/'IFRS-年報'!C26 -> 0.5004122515 | M21: =('IFRS-年報'!E26-'IFRS-年報'!D26)/'IFRS-年報'!D26 -> 0.1522991819 | N21: =('IFRS-年報'!F26-'IFRS-年報'!E26)/'IFRS-年報'!E26 -> 0.7031423072 | O21: =('IFRS-年報'!G26-'IFRS-年報'!F26)/'IFRS-年報'!F26 -> -0.176155873 | P21: =(P20-O20)/O20 -> -0.5843239244
B22: 淨利率 | C22: =IFRS財報_For預估用!F43/100 -> 0.4425 | D22: =IFRS財報_For預估用!G43/100 -> 0.4449 | E22: =IFRS財報_For預估用!H43/100 -> 0.4498 | F22: =IFRS財報_For預估用!I43/100 -> 0.4548 | G22: =G18/G4 -> 0.03740117021 | H22: =H18/H4 -> 0.1894164843 | I22: =I18/I4 -> 0.09393745194 | J22: =J18/J4 -> 0.1926801477 | K22: ='IFRS-年報'!C15/100 -> 0.3483 | L22: ='IFRS-年報'!D15/100 -> 0.4232 | M22: ='IFRS-年報'!E15/100 -> 0.4095 | N22: ='IFRS-年報'!F15/100 -> 0.4953 | O22: ='IFRS-年報'!G15/100 -> 0.4263 | P22: =P20/P4 -> 0.1420136554
B23: 股本 | C23: =IFRS財報_For預估用!F47/1000 -> 259320.71 | D23: =IFRS財報_For預估用!G47/1000 -> 259320.71 | E23: =IFRS財報_For預估用!H47/1000 -> 259336.292 | F23: =IFRS財報_For預估用!I47/1000 -> 259336.292 | G23: =季報含預估!J34/1000 -> 259336.292 | H23: =季報含預估!K34/1000 -> 259336.292 | I23: =季報含預估!L34/1000 -> 259336.292 | J23: =季報含預估!M34/1000 -> 259336.292 | K23: ='IFRS-年報'!C34/1000 -> 259303.805 | L23: ='IFRS-年報'!D34/1000 -> 259303.805 | M23: ='IFRS-年報'!E34/1000 -> 259303.805 | N23: ='IFRS-年報'!F34/1000 -> 259303.805 | O23: ='IFRS-年報'!G34/1000 -> 259320.71 | P23: =季報含預估!M34/1000 -> 259336.292
B24: EPS | C24: =IFRS財報_For預估用!F40 -> 8.14 | D24: =IFRS財報_For預估用!G40 -> 9.21 | E24: =IFRS財報_For預估用!H40 -> 8.7 | F24: =IFRS財報_For預估用!I40 -> 9.56 | G24: =整合夢幻報表!M15 -> 0.642995072 | H24: =整合夢幻報表!N15 -> 4.884627885 | I24: =整合夢幻報表!O15 -> 1.937949588 | J24: =整合夢幻報表!P15 -> 5.962548564 | K24: ='IFRS-年報'!C13 -> 13.32 | L24: ='IFRS-年報'!D13 -> 19.97 | M24: ='IFRS-年報'!E13 -> 23.01 | N24: ='IFRS-年報'!F13 -> 39.2 | O24: ='IFRS-年報'!G13 -> 32.34 | P24: =整合夢幻報表!M38 -> 13.42812111
B25: 每股淨值 | C25: =IFRS財報_For預估用!F49 -> 129.12 | D25: =IFRS財報_For預估用!G49 -> 133.38 | E25: =IFRS財報_For預估用!H49 -> 140.19 | F25: =IFRS財報_For預估用!I49 -> 146.21 | G25: =整合夢幻報表!M20 -> 147.9478006 | H25: =整合夢幻報表!N20 -> 152.8324284 | I25: =整合夢幻報表!O20 -> 154.770378 | J25: =整合夢幻報表!P20 -> 160.7329266 | K25: ='IFRS-年報'!C16 -> 62.53 | L25: ='IFRS-年報'!D16 -> 71.33 | M25: ='IFRS-年報'!E16 -> 83.62 | N25: ='IFRS-年報'!F16 -> 113.6 | O25: ='IFRS-年報'!G16 -> 133.38 | P25: =J25 -> 160.7329266
B26: ROE | C26: =IFRS財報_For預估用!F55/IFRS財報_For預估用!F48 -> 0.06249826327 | D26: =IFRS財報_For預估用!G55/IFRS財報_For預估用!G48 -> 0.06841464784 | E26: =IFRS財報_For預估用!H55/IFRS財報_For預估用!H48 -> 0.06143990625 | F26: =IFRS財報_For預估用!I55/IFRS財報_For預估用!I48 -> 0.06483032194 | G26: =G24/G25 -> 0.00434609416 | H26: =H24/H25 -> 0.03196067703 | I26: =I24/I25 -> 0.01252145024 | J26: =J24/J25 -> 0.0370959995 | K26: ='IFRS-年報'!B35/100 -> 0.2195 | L26: ='IFRS-年報'!C35/100 -> 0.2093 | M26: ='IFRS-年報'!D35/100 -> 0.2984 | N26: ='IFRS-年報'!E35/100 -> 0.297 | O26: ='IFRS-年報'!F35/100 -> 0.3964 | P26: =P24/P25 -> 0.0835430636
B27: 現金股利(元) | K27: =股價資訊!E21 -> 9.5 | L27: =整合夢幻報表!D24 -> 10 | M27: =整合夢幻報表!D23 -> 11 | N27: =整合夢幻報表!D22 -> 11 | O27: =整合夢幻報表!D21 -> 13
B28: 無償配股合計(元) | K28: =股價資訊!F21 -> 0 | L28: =整合夢幻報表!E24 -> 0 | M28: =整合夢幻報表!E23 -> 0 | N28: =整合夢幻報表!E22 -> 0 | O28: =整合夢幻報表!E21 -> 0

Sheet 基本資料及十大股東
A1: 2330 台積電
A2: 發言人 | B2: 公司中文地址 | C2: 電話 | D2: 實收資本額(元) | E2: 主要產品1 | F2: 主要產品2 | G2: 主要產品3 | H2: 主要產品比重
A3: 黃仁昭(副總經理暨財務長) | B3: 新竹科學工業園區新竹市力行六路8 號 | C3: 03-5636688 | D3: 259327332420 | E3: 依客戶之訂單與其提供之產品設計說明，以從事製造與銷售積體電路 | F3: 以及其他晶圓半導體裝置。提供前述產品之封裝與測試服務、積體電 | G3: 路之電腦輔助設計技術服務。提供製造光罩及其設計服務。 | H3: 2023/12:晶圓(87.1%),其他(12.9%)
A6: 年月日 | B6: 持股人姓名 | C6: 總持股率％ | D6: 十大股東
A7: 2024-09-30 | B7: 花旗台積存託 花旗台積存託 | C7: 20.5 | D7: 1
A8: 2024-09-30 | B8: 富邦人壽保險(股)林福星 | C8: 0.65 | D8: 10
A9: 2024-09-30 | B9: 行政院國發會 劉鏡清 | C9: 6.38 | D9: 2
A10: 2024-09-30 | B10: 花旗台新加坡 花旗台新加坡 | C10: 3.15 | D10: 3
A11: 2024-09-30 | B11: 花旗託管挪威 花旗託管挪威 | C11: 1.7 | D11: 4
A12: 2024-09-30 | B12: 新制勞退基金 新制勞退基金 | C12: 1.31 | D12: 5
A13: 2024-09-30 | B13: 大通先進星光 大通先進星光 | C13: 1.26 | D13: 6
A14: 2024-09-30 | B14: 摩根梵市場股 摩根梵市場股 | C14: 1.11 | D14: 7
A15: 2024-09-30 | B15: 中信卓越50證 中信卓越50證 | C15: 0.94 | D15: 8
A16: 2024-09-30 | B16: 渣打iShare指 渣打iShare指 | C16: 0.86 | D16: 9
A18: 年月日 | B18: CAPM_Beta 三月
A19: 2024-11-08 | B19: 1.4397

Sheet 股價資訊
A1: 2330 台積電 | B1: =SUM(B3:B5) -> 1090 | C1: =SUM(C3:C5) -> 73.77 | D1: 1.75 | E1: 0.15 | F1: 1.61 | G1: 0.51 | H1: 7.46 | I1: 18.25 | J1: 38840 | K1: 46428.445 | M1: 年月日 | N1: 開盤價(元) | O1: 最高價(元) | P1: 最低價(元) | Q1: 收盤價(元) | R1: 成交量(千股) | S1: 本益比-TEJ | T1: 股價淨值比-TSE | U1: 本益比-TSE | AB1: 20 | AC1: 15 | AD1: 10 | AE1: 5 | AH1: 4 | AI1: 3 | AJ1: 2 | AK1: 1 | AL1: 0.5
A2: 年月日 | B2: 當日收盤價(元) | C2: 外資總投資股率% | D2: 投信持股率% | E2: 自營持股率% | F2: 券資比 | G2: 融資使用率 | H2: 股價淨值比-TSE | I2: 每股盈餘（元） | J2: 成交量(千股) | K2: 20日均量 | M2: 2024-11-08 | N2: 1085 | O2: 1090 | P2: 1080 | Q2: 1090 | R2: 38840 | S2: 30.5522 | T2: 7.46 | U2: 30.62 | AB2: 20*PE | AC2: 15*PE | AD2: 10*PE | AE2: 5*PE | AH2: 4*PB | AI2: 3*PB | AJ2: 2*PB | AK2: 1*PB | AL2: 0.5*PB
A3: 2024-11-08 | B3: 1090 | C3: 73.77 | D3: 1.75 | E3: 0.15 | F3: 1.61 | G3: 0.51 | H3: 7.46 | J3: 38840 | K3: 46428.445 | M3: 2024-11-07 | N3: 1050 | O3: 1075 | P3: 1050 | Q3: 1065 | R3: 46030 | S3: 29.8515 | T3: 7.28 | U3: 29.92 | AB3: =AB$1*$Q2/$S2 -> 713.5329043 | AC3: =AC$1*$Q2/$S2 -> 535.1496783 | AD3: =AD$1*$Q2/$S2 -> 356.7664522 | AE3: 178.3832261 | AH3: =AH$1*$Q2/$T2 -> 584.4504021 | AI3: =AI$1*$Q2/$T2 -> 438.3378016 | AJ3: 292.2252011 | AK3: 146.1126005 | AL3: 73.05630027
A4: 2024-06-28 | I4: 18.25 | M4: 2024-11-06 | N4: 1050 | O4: 1080 | P4: 1040 | Q4: 1060 | R4: 59404 | S4: 29.7113 | T4: 7.25 | U4: 29.78 | AB4: =AB$1*$Q3/$S3 -> 713.5319833 | AC4: =AC$1*$Q3/$S3 -> 535.1489875 | AD4: 356.7659917 | AE4: 178.3829958 | AH4: =AH$1*$Q3/$T3 -> 585.1648352 | AI4: 438.8736264 | AJ4: 292.5824176 | AK4: 146.2912088 | AL4: 73.1456044
M5: 2024-11-05 | N5: 1030 | O5: 1055 | P5: 1030 | Q5: 1050 | R5: 33407 | S5: 29.431 | T5: 7.18 | U5: 29.49 | AB5: 713.5332348 | AC5: 535.1499261 | AD5: 356.7666174 | AE5: 178.3833087 | AH5: 584.8275862 | AI5: 438.6206897 | AJ5: 292.4137931 | AK5: 146.2068966 | AL5: 73.10344828
A6: 年月日 | B6: 董監持股% | M6: 2024-11-04 | N6: 1030 | O6: 1045 | P6: 1025 | Q6: 1040 | R6: 28225 | S6: 29.1507 | T6: 7.11 | U6: 29.21 | AB6: 713.5333492 | AC6: 535.1500119 | AD6: 356.7666746 | AE6: 178.3833373 | AH6: 584.9582173 | AI6: 438.718663 | AJ6: 292.4791086 | AK6: 146.2395543 | AL6: 73.11977716
A7: 2024-09-30 | B7: 6.52 | E7: =A1 -> 2330 台積電 | M7: 2024-11-01 | N7: 996 | O7: 1030 | P7: 996 | Q7: 1025 | R7: 61545 | S7: 28.7303 | T7: 7.01 | U7: 28.79 | AB7: 713.5334657 | AC7: 535.1500993 | AD7: 356.7667329 | AE7: 178.3833664 | AH7: 585.0914205 | AI7: 438.8185654 | AJ7: 292.5457103 | AK7: 146.2728551 | AL7: 73.13642757
A8: 2024-08-30 | B8: 6.52 | D8: 日漲跌幅 | E8: =(Q2-Q3)/Q3 -> 0.0234741784 | M8: 2024-10-30 | N8: 1040 | O8: 1055 | P8: 1030 | Q8: 1030 | R8: 40765 | S8: 28.8704 | T8: 7.04 | U8: 28.93 | AB8: 713.5324031 | AC8: 535.1493023 | AD8: 356.7662015 | AE8: 178.3831008 | AH8: 584.8787447 | AI8: 438.6590585 | AJ8: 292.4393723 | AK8: 146.2196862 | AL8: 73.10984308
D9: 週漲跌幅 | E9: =(Q2-Q6)/Q6 -> 0.04807692308 | M9: 2024-10-29 | N9: 1035 | O9: 1040 | P9: 1020 | Q9: 1040 | R9: 48097 | S9: 29.1507 | T9: 7.11 | U9: 29.21 | AB9: 713.5335846 | AC9: 535.1501884 | AD9: 356.7667923 | AE9: 178.3833961 | AH9: 585.2272727 | AI9: 438.9204545 | AJ9: 292.6136364 | AK9: 146.3068182 | AL9: 73.15340909
D10: 月漲跌幅 | E10: =(Q2-Q23)/Q23 -> 0.07920792079 | M10: 2024-10-28 | N10: 1075 | O10: 1080 | P10: 1050 | Q10: 1050 | R10: 41665 | S10: 29.431 | T10: 7.18 | U10: 29.49 | AB10: 713.5334657 | AC10: 535.1500993 | AD10: 356.7667329 | AE10: 178.3833664 | AH10: 585.0914205 | AI10: 438.8185654 | AJ10: 292.5457103 | AK10: 146.2728551 | AL10: 73.13642757
D11: 季漲跌幅 | E11: =(Q2-Q66)/Q66 -> 0.3374233129 | M11: 2024-10-25 | N11: 1065 | O11: 1070 | P11: 1060 | Q11: 1065 | R11: 23347 | S11: 29.8515 | T11: 7.28 | U11: 29.92 | AB11: 713.5333492 | AC11: 535.1500119 | AD11: 356.7666746 | AE11: 178.3833373 | AH11: 584.9582173 | AI11: 438.718663 | AJ11: 292.4791086 | AK11: 146.2395543 | AL11: 73.11977716
M12: 2024-10-24 | N12: 1070 | O12: 1075 | P12: 1055 | Q12: 1060 | R12: 40791 | S12: 29.7113 | T12: 7.25 | U12: 29.78 | AB12: 713.5319833 | AC12: 535.1489875 | AD12: 356.7659917 | AE12: 178.3829958 | AH12: 585.1648352 | AI12: 438.8736264 | AJ12: 292.5824176 | AK12: 146.2912088 | AL12: 73.1456044
D13: 年月日 | E13: 合計買賣超(千股) | F13: 合計買賣超_週(千股) | G13: 合計買賣超_月(千股) | H13: 合計買賣超_季(千股) | I13: 合計買賣超_年(千股) | M13: 2024-10-23 | N13: 1060 | O13: 1070 | P13: 1055 | Q13: 1060 | R13: 32895 | S13: 29.7113 | T13: 7.25 | U13: 29.78 | AB13: 713.5332348 | AC13: 535.1499261 | AD13: 356.7666174 | AE13: 178.3833087 | AH13: 584.8275862 | AI13: 438.6206897 | AJ13: 292.4137931 | AK13: 146.2068966 | AL13: 73.10344828
D14: 2024-11-08 | E14: 3917 | F14: -16706 | G14: 33588 | H14: 68494 | I14: 443813 | M14: 2024-10-22 | N14: 1065 | O14: 1075 | P14: 1060 | Q14: 1075 | R14: 43740 | S14: 30.1318 | T14: 7.35 | U14: 30.2 | AB14: 713.5332348 | AC14: 535.1499261 | AD14: 356.7666174 | AE14: 178.3833087 | AH14: 584.8275862 | AI14: 438.6206897 | AJ14: 292.4137931 | AK14: 146.2068966 | AL14: 73.10344828
M15: 2024-10-21 | N15: 1090 | O15: 1095 | P15: 1080 | Q15: 1085 | R15: 42094 | S15: 30.4121 | T15: 7.42 | U15: 30.48 | AB15: 713.5318833 | AC15: 535.1489124 | AD15: 356.7659416 | AE15: 178.3829708 | AH15: 585.0340136 | AI15: 438.7755102 | AJ15: 292.5170068 | AK15: 146.2585034 | AL15: 73.1292517
D16: 年月 | E16: 普通股每股現金股利(元) | F16: 每股股票股利─盈餘(元) | G16: 每股股票股利─公積(元) | H16: 股利殖利率 | I16: 現金股利率 | M16: 2024-10-18 | N16: 1095 | O16: 1100 | P16: 1075 | Q16: 1085 | R16: 91036 | S16: 30.4121 | T16: 7.42 | U16: 30.48 | AB16: 713.531785 | AC16: 535.1488388 | AD16: 356.7658925 | AE16: 178.3829463 | AH16: 584.9056604 | AI16: 438.6792453 | AJ16: 292.4528302 | AK16: 146.2264151 | AL16: 73.11320755
D17: 2023-12-29 | E17: 13 | F17: 0 | G17: 0 | H17: 2.19 | I17: 2.19 | M17: 2024-10-17 | N17: 1050 | O17: 1055 | P17: 1030 | Q17: 1035 | R17: 56618 | S17: 29.0106 | T17: 7.08 | U17: 29.07 | AB17: 713.531785 | AC17: 535.1488388 | AD17: 356.7658925 | AE17: 178.3829463 | AH17: 584.9056604 | AI17: 438.6792453 | AJ17: 292.4528302 | AK17: 146.2264151 | AL17: 73.11320755
D18: 2022-12-30 | E18: 11 | F18: 0 | G18: 0 | H18: 2.45 | I18: 2.45 | M18: 2024-10-16 | N18: 1040 | O18: 1070 | P18: 1035 | Q18: 1045 | R18: 60312 | S18: 29.2909 | T18: 7.15 | U18: 29.35 | AB18: 713.5322951 | AC18: 535.1492213 | AD18: 356.7661475 | AE18: 178.3830738 | AH18: 584.7457627 | AI18: 438.559322 | AJ18: 292.3728814 | AK18: 146.1864407 | AL18: 73.09322034
D19: 2021-12-30 | E19: 11 | F19: 0 | G19: 0 | H19: 1.79 | I19: 1.79 | M19: 2024-10-15 | N19: 1050 | O19: 1075 | P19: 1050 | Q19: 1070 | R19: 52066 | S19: 29.9916 | T19: 7.32 | U19: 30.06 | AB19: 713.5321892 | AC19: 535.1491419 | AD19: 356.7660946 | AE19: 178.3830473 | AH19: 584.6153846 | AI19: 438.4615385 | AJ19: 292.3076923 | AK19: 146.1538462 | AL19: 73.07692308
D20: 2020-12-31 | E20: 10 | F20: 0 | G20: 0 | H20: 1.89 | I20: 1.89 | M20: 2024-10-14 | N20: 1045 | O20: 1055 | P20: 1035 | Q20: 1045 | R20: 39906 | S20: 29.2909 | T20: 7.15 | U20: 29.35 | AB20: 713.5331226 | AC20: 535.149842 | AD20: 356.7665613 | AE20: 178.3832807 | AH20: 584.6994536 | AI20: 438.5245902 | AJ20: 292.3497268 | AK20: 146.1748634 | AL20: 73.08743169
D21: 2019-12-31 | E21: 9.5 | F21: 0 | G21: 0 | H21: 2.87 | I21: 2.87 | M21: 2024-10-11 | N21: 1025 | O21: 1050 | P21: 1020 | Q21: 1045 | R21: 47776 | S21: 29.2909 | T21: 7.15 | U21: 29.35 | AB21: 713.5321892 | AC21: 535.1491419 | AD21: 356.7660946 | AE21: 178.3830473 | AH21: 584.6153846 | AI21: 438.4615385 | AJ21: 292.3076923 | AK21: 146.1538462 | AL21: 73.07692308
D22: 日期 | E22: 9日K值 | F22: 9日D值 | G22: 9週K值 | H22: 9週D值 | I22: 融資增減(張) | M22: 2024-10-09 | N22: 1030 | O22: 1035 | P22: 1020 | Q22: 1020 | R22: 53208 | S22: 28.5901 | T22: 6.98 | U22: 28.65 | AB22: 713.5321892 | AC22: 535.1491419 | AD22: 356.7660946 | AE22: 178.3830473 | AH22: 584.6153846 | AI22: 438.4615385 | AJ22: 292.3076923 | AK22: 146.1538462 | AL22: 73.07692308
D23: 2024-11-08 | I23: 359 | M23: 2024-10-08 | N23: 1000 | O23: 1010 | P23: 997 | Q23: 1010 | R23: 35344 | S23: 28.3099 | T23: 6.91 | U23: 28.37 | AB23: 713.5337057 | AC23: 535.1502793 | AD23: 356.7668529 | AE23: 178.3834264 | AH23: 584.5272206 | AI23: 438.3954155 | AJ23: 292.2636103 | AK23: 146.1318052 | AL23: 73.06590258
D24: 2024-11-07 | I24: 11 | M24: 2024-10-07 | N24: 993 | O24: 1010 | P24: 989 | Q24: 1005 | R24: 43850 | S24: 28.1697 | T24: 6.87 | U24: 28.23 | AB24: 713.5313088 | AC24: 535.1484816 | AD24: 356.7656544 | AE24: 178.3828272 | AH24: 584.6599132 | AI24: 438.4949349 | AJ24: 292.3299566 | AK24: 146.1649783 | AL24: 73.08248915
D25: 2024-11-06 | I25: 340 | M25: 2024-10-04 | N25: 986 | O25: 986 | P25: 967 | Q25: 977 | R25: 43765 | S25: 27.3849 | T25: 6.68 | U25: 27.44 | AB25: 713.5326255 | AC25: 535.1494691 | AD25: 356.7663127 | AE25: 178.3831564 | AH25: 585.1528384 | AI25: 438.8646288 | AJ25: 292.5764192 | AK25: 146.2882096 | AL25: 73.1441048
D26: 2024-11-05 | I26: -95 | M26: 2024-10-01 | N26: 967 | O26: 977 | P26: 967 | Q26: 972 | R26: 27877 | S26: 27.2447 | T26: 6.65 | U26: 27.3 | AB26: 713.5319099 | AC26: 535.1489324 | AD26: 356.765955 | AE26: 178.3829775 | AH26: 585.0299401 | AI26: 438.7724551 | AJ26: 292.5149701 | AK26: 146.257485 | AL26: 73.12874251
D27: 2024-11-04 | I27: 242 | M27: 2024-09-30 | N27: 978 | O27: 990 | P27: 957 | Q27: 957 | R27: 66874 | S27: 29.0126 | T27: 6.55 | U27: 26.88 | AB27: 713.5332744 | AC27: 535.1499558 | AD27: 356.7666372 | AE27: 178.3833186 | AH27: 584.6616541 | AI27: 438.4962406 | AJ27: 292.3308271 | AK27: 146.1654135 | AL27: 73.08270677
D28: 2024-11-01 | I28: 550 | M28: 2024-09-27 | N28: 1020 | O28: 1025 | P28: 1000 | Q28: 1000 | R28: 37665 | S28: 30.3162 | T28: 6.84 | U28: 28.09 | AB28: 659.7133659 | AC28: 494.7850244 | AD28: 329.856683 | AE28: 164.9283415 | AH28: 584.4274809 | AI28: 438.3206107 | AJ28: 292.2137405 | AK28: 146.1068702 | AL28: 73.05343511
D29: 2024-10-30 | I29: 561 | M29: 2024-09-26 | N29: 1010 | O29: 1015 | P29: 1005 | Q29: 1015 | R29: 43341 | S29: 30.771 | T29: 6.94 | U29: 28.51 | AB29: 659.7132886 | AC29: 494.7849665 | AD29: 329.8566443 | AE29: 164.9283222 | AH29: 584.7953216 | AI29: 438.5964912 | AJ29: 292.3976608 | AK29: 146.1988304 | AL29: 73.0994152
D30: 2024-10-29 | I30: -1339 | M30: 2024-09-25 | N30: 1000 | O30: 1005 | P30: 998 | Q30: 1005 | R30: 43039 | S30: 30.4678 | T30: 6.87 | U30: 28.23 | AB30: 659.7120666 | AC30: 494.7840499 | AD30: 329.8560333 | AE30: 164.9280166 | AH30: 585.0144092 | AI30: 438.7608069 | AJ30: 292.5072046 | AK30: 146.2536023 | AL30: 73.12680115
D31: 2024-10-28 | I31: -848 | M31: 2024-09-24 | N31: 976 | O31: 987 | P31: 971 | Q31: 987 | R31: 29324 | S31: 29.9221 | T31: 6.75 | U31: 27.72 | AB31: 659.7128772 | AC31: 494.7846579 | AD31: 329.8564386 | AE31: 164.9282193 | AH31: 585.1528384 | AI31: 438.8646288 | AJ31: 292.5764192 | AK31: 146.2882096 | AL31: 73.1441048
D32: 2024-10-25 | I32: -493 | M32: 2024-09-23 | N32: 971 | O32: 977 | P32: 971 | Q32: 977 | R32: 15399 | S32: 29.6189 | T32: 6.68 | U32: 27.44 | AB32: 659.7130549 | AC32: 494.7847912 | AD32: 329.8565274 | AE32: 164.9282637 | AH32: 584.8888889 | AI32: 438.6666667 | AJ32: 292.4444444 | AK32: 146.2222222 | AL32: 73.11111111
D33: 2024-10-24 | I33: -532 | M33: 2024-09-20 | N33: 981 | O33: 982 | P33: 971 | Q33: 973 | R33: 66762 | S33: 29.4977 | T33: 6.65 | U33: 27.33 | AB33: 659.7138989 | AC33: 494.7854242 | AD33: 329.8569494 | AE33: 164.9284747 | AH33: 585.0299401 | AI33: 438.7724551 | AJ33: 292.5149701 | AK33: 146.257485 | AL33: 73.12874251
D34: 2024-10-23 | I34: 381 | M34: 2024-09-19 | N34: 940 | O34: 960 | P34: 936 | Q34: 960 | R34: 35254 | S34: 29.1036 | T34: 6.57 | U34: 26.97 | AB34: 659.7124522 | AC34: 494.7843391 | AD34: 329.8562261 | AE34: 164.928113 | AH34: 585.2631579 | AI34: 438.9473684 | AJ34: 292.6315789 | AK34: 146.3157895 | AL34: 73.15789474
D35: 2024-10-22 | I35: 1018 | M35: 2024-09-18 | N35: 945 | O35: 948 | P35: 933 | Q35: 941 | R35: 30094 | S35: 28.5276 | T35: 6.44 | U35: 26.43 | AB35: 659.7122006 | AC35: 494.7841504 | AD35: 329.8561003 | AE35: 164.9280501 | AH35: 584.4748858 | AI35: 438.3561644 | AJ35: 292.2374429 | AK35: 146.1187215 | AL35: 73.05936073
D36: 2024-10-21 | I36: 36 | M36: 2024-09-16 | N36: 952 | O36: 952 | P36: 943 | Q36: 947 | R36: 14456 | S36: 28.7095 | T36: 6.48 | U36: 26.6 | AB36: 659.7119982 | AC36: 494.7839987 | AD36: 329.8559991 | AE36: 164.9279996 | AH36: 584.4720497 | AI36: 438.3540373 | AJ36: 292.2360248 | AK36: 146.1180124 | AL36: 73.05900621
D37: 2024-10-18 | I37: -3419 | M37: 2024-09-13 | N37: 955 | O37: 955 | P37: 939 | Q37: 947 | R37: 28307 | S37: 28.7095 | T37: 6.48 | U37: 26.6 | AB37: 659.711942 | AC37: 494.7839565 | AD37: 329.855971 | AE37: 164.9279855 | AH37: 584.5679012 | AI37: 438.4259259 | AJ37: 292.2839506 | AK37: 146.1419753 | AL37: 73.07098765
D38: 2024-10-17 | I38: 2138 | M38: 2024-09-12 | N38: 936 | O38: 944 | P38: 928 | Q38: 940 | R38: 43749 | S38: 28.4972 | T38: 6.43 | U38: 26.4 | AB38: 659.711942 | AC38: 494.7839565 | AD38: 329.855971 | AE38: 164.9279855 | AH38: 584.5679012 | AI38: 438.4259259 | AJ38: 292.2839506 | AK38: 146.1419753 | AL38: 73.07098765
D39: 2024-10-16 | I39: 1858 | M39: 2024-09-11 | N39: 906 | O39: 906 | P39: 900 | Q39: 901 | R39: 19513 | S39: 27.3149 | T39: 6.16 | U39: 25.31 | AB39: 659.7139368 | AC39: 494.7854526 | AD39: 329.8569684 | AE39: 164.9284842 | AH39: 584.7589425 | AI39: 438.5692068 | AJ39: 292.3794712 | AK39: 146.1897356 | AL39: 73.09486781
D40: 2024-10-15 | I40: -92 | M40: 2024-09-10 | N40: 907 | O40: 911 | P40: 901 | Q40: 904 | R40: 34312 | S40: 27.4059 | T40: 6.18 | U40: 25.39 | AB40: 659.7131968 | AC40: 494.7848976 | AD40: 329.8565984 | AE40: 164.9282992 | AH40: 585.0649351 | AI40: 438.7987013 | AJ40: 292.5324675 | AK40: 146.2662338 | AL40: 73.13311688
D41: 2024-10-14 | I41: 637 | M41: 2024-09-09 | N41: 892 | O41: 900 | P41: 891 | Q41: 899 | R41: 38448 | S41: 27.2543 | T41: 6.15 | U41: 25.25 | AB41: 659.7119598 | AC41: 494.7839699 | AD41: 329.8559799 | AE41: 164.92799 | AH41: 585.1132686 | AI41: 438.8349515 | AJ41: 292.5566343 | AK41: 146.2783172 | AL41: 73.13915858
D42: 2024-10-11 | I42: 17 | M42: 2024-09-06 | N42: 909 | O42: 918 | P42: 903 | Q42: 918 | R42: 28248 | S42: 27.8303 | T42: 6.28 | U42: 25.79 | AB42: 659.7124124 | AC42: 494.7843093 | AD42: 329.8562062 | AE42: 164.9281031 | AH42: 584.7154472 | AI42: 438.5365854 | AJ42: 292.3577236 | AK42: 146.1788618 | AL42: 73.08943089
M43: 2024-09-05 | N43: 907 | O43: 915 | P43: 900 | Q43: 902 | R43: 34147 | S43: 27.3452 | T43: 6.17 | U43: 25.34 | AB43: 659.7126154 | AC43: 494.7844615 | AD43: 329.8563077 | AE43: 164.9281538 | AH43: 584.7133758 | AI43: 438.5350318 | AJ43: 292.3566879 | AK43: 146.1783439 | AL43: 73.08917197
M44: 2024-09-04 | N44: 894 | O44: 905 | P44: 888 | Q44: 889 | R44: 93169 | S44: 26.9511 | T44: 6.08 | U44: 24.97 | AB44: 659.7135878 | AC44: 494.7851908 | AD44: 329.8567939 | AE44: 164.9283969 | AH44: 584.7649919 | AI44: 438.5737439 | AJ44: 292.3824959 | AK44: 146.191248 | AL44: 73.09562399
M45: 2024-09-03 | N45: 948 | O45: 952 | P45: 939 | Q45: 940 | R45: 23205 | S45: 28.4972 | T45: 6.43 | U45: 26.4 | AB45: 659.7133327 | AC45: 494.7849995 | AD45: 329.8566663 | AE45: 164.9283332 | AH45: 584.8684211 | AI45: 438.6513158 | AJ45: 292.4342105 | AK45: 146.2171053 | AL45: 73.10855263
M46: 2024-09-02 | N46: 950 | O46: 955 | P46: 943 | Q46: 948 | R46: 19272 | S46: 28.7398 | T46: 6.48 | U46: 26.63 | AB46: 659.7139368 | AC46: 494.7854526 | AD46: 329.8569684 | AE46: 164.9284842 | AH46: 584.7589425 | AI46: 438.5692068 | AJ46: 292.3794712 | AK46: 146.1897356 | AL46: 73.09486781
M47: 2024-08-30 | N47: 944 | O47: 952 | P47: 941 | Q47: 944 | R47: 75533 | S47: 28.6195 | T47: 6.46 | U47: 26.52 | AB47: 659.7123153 | AC47: 494.7842365 | AD47: 329.8561577 | AE47: 164.9280788 | AH47: 585.1851852 | AI47: 438.8888889 | AJ47: 292.5925926 | AK47: 146.2962963 | AL47: 73.14814815
M48: 2024-08-29 | N48: 942 | O48: 947 | P48: 937 | Q48: 943 | R48: 46275 | S48: 28.5892 | T48: 6.45 | U48: 26.49 | AB48: 659.6900715 | AC48: 494.7675536 | AD48: 329.8450357 | AE48: 164.9225179 | AH48: 584.5201238 | AI48: 438.3900929 | AJ48: 292.2600619 | AK48: 146.130031 | AL48: 73.06501548
M49: 2024-08-28 | N49: 945 | O49: 964 | P49: 943 | Q49: 964 | R49: 33519 | S49: 29.2258 | T49: 6.59 | U49: 27.08 | AB49: 659.689673 | AC49: 494.7672548 | AD49: 329.8448365 | AE49: 164.9224183 | AH49: 584.8062016 | AI49: 438.6046512 | AJ49: 292.4031008 | AK49: 146.2015504 | AL49: 73.10077519
M50: 2024-08-27 | N50: 945 | O50: 946 | P50: 940 | Q50: 942 | R50: 19969 | S50: 28.5589 | T50: 6.44 | U50: 26.46 | AB50: 659.6910949 | AC50: 494.7683211 | AD50: 329.8455474 | AE50: 164.9227737 | AH50: 585.1289833 | AI50: 438.8467375 | AJ50: 292.5644917 | AK50: 146.2822458 | AL50: 73.14112291
M51: 2024-08-26 | N51: 957 | O51: 961 | P51: 945 | Q51: 950 | R51: 26518 | S51: 28.8014 | T51: 6.5 | U51: 26.69 | AB51: 659.6892737 | AC51: 494.7669553 | AD51: 329.8446369 | AE51: 164.9223184 | AH51: 585.0931677 | AI51: 438.8198758 | AJ51: 292.5465839 | AK51: 146.2732919 | AL51: 73.13664596
M52: 2024-08-23 | N52: 944 | O52: 952 | P52: 939 | Q52: 949 | R52: 31203 | S52: 28.7711 | T52: 6.49 | U52: 26.66 | AB52: 659.690154 | AC52: 494.7676155 | AD52: 329.845077 | AE52: 164.9225385 | AH52: 584.6153846 | AI52: 438.4615385 | AJ52: 292.3076923 | AK52: 146.1538462 | AL52: 73.07692308
M53: 2024-08-22 | N53: 958 | O53: 964 | P53: 948 | Q53: 951 | R53: 25850 | S53: 28.8317 | T53: 6.5 | U53: 26.71 | AB53: 659.6897581 | AC53: 494.7673186 | AD53: 329.8448791 | AE53: 164.9224395 | AH53: 584.8998459 | AI53: 438.6748844 | AJ53: 292.449923 | AK53: 146.2249615 | AL53: 73.11248074
M54: 2024-08-21 | N54: 961 | O54: 964 | P54: 956 | Q54: 958 | R54: 32606 | S54: 29.0439 | T54: 6.55 | U54: 26.91 | AB54: 659.6905489 | AC54: 494.7679117 | AD54: 329.8452745 | AE54: 164.9226372 | AH54: 585.2307692 | AI54: 438.9230769 | AJ54: 292.6153846 | AK54: 146.3076923 | AL54: 73.15384615
M55: 2024-08-20 | N55: 977 | O55: 977 | P55: 968 | Q55: 973 | R55: 26420 | S55: 29.4987 | T55: 6.65 | U55: 27.33 | AB55: 659.6910195 | AC55: 494.7682646 | AD55: 329.8455097 | AE55: 164.9227549 | AH55: 585.0381679 | AI55: 438.778626 | AJ55: 292.519084 | AK55: 146.259542 | AL55: 73.12977099
M56: 2024-08-19 | N56: 969 | O56: 975 | P56: 964 | Q56: 973 | R56: 22416 | S56: 29.4987 | T56: 6.65 | U56: 27.33 | AB56: 659.690088 | AC56: 494.767566 | AD56: 329.845044 | AE56: 164.922522 | AH56: 585.2631579 | AI56: 438.9473684 | AJ56: 292.6315789 | AK56: 146.3157895 | AL56: 73.15789474
M57: 2024-08-16 | N57: 963 | O57: 969 | P57: 958 | Q57: 969 | R57: 49830 | S57: 29.3774 | T57: 6.63 | U57: 27.22 | AB57: 659.690088 | AC57: 494.767566 | AD57: 329.845044 | AE57: 164.922522 | AH57: 585.2631579 | AI57: 438.9473684 | AJ57: 292.6315789 | AK57: 146.3157895 | AL57: 73.15789474
M58: 2024-08-15 | N58: 945 | O58: 950 | P58: 941 | Q58: 943 | R58: 21714 | S58: 28.5892 | T58: 6.45 | U58: 26.49 | AB58: 659.6907827 | AC58: 494.768087 | AD58: 329.8453914 | AE58: 164.9226957 | AH58: 584.6153846 | AI58: 438.4615385 | AJ58: 292.3076923 | AK58: 146.1538462 | AL58: 73.07692308
M59: 2024-08-14 | N59: 951 | O59: 955 | P59: 945 | Q59: 948 | R59: 40527 | S59: 28.7408 | T59: 6.48 | U59: 26.63 | AB59: 659.689673 | AC59: 494.7672548 | AD59: 329.8448365 | AE59: 164.9224183 | AH59: 584.8062016 | AI59: 438.6046512 | AJ59: 292.4031008 | AK59: 146.2015504 | AL59: 73.10077519
M60: 2024-08-13 | N60: 945 | O60: 945 | P60: 937 | Q60: 941 | R60: 26831 | S60: 28.5286 | T60: 6.71 | U60: 28.48 | AB60: 659.6893615 | AC60: 494.7670211 | AD60: 329.8446807 | AE60: 164.9223404 | AH60: 585.1851852 | AI60: 438.8888889 | AJ60: 292.5925926 | AK60: 146.2962963 | AL60: 73.14814815
M61: 2024-08-12 | N61: 942 | O61: 948 | P61: 931 | Q61: 940 | R61: 40968 | S61: 28.4982 | T61: 6.71 | U61: 28.45 | AB61: 659.6888736 | AC61: 494.7666552 | AD61: 329.8444368 | AE61: 164.9222184 | AH61: 560.9538003 | AI61: 420.7153502 | AJ61: 280.4769001 | AK61: 140.2384501 | AL61: 70.11922504
M62: 2024-08-09 | N62: 927 | O62: 934 | P62: 922 | Q62: 934 | R62: 54464 | S62: 28.3163 | T62: 6.66 | U62: 28.27 | AB62: 659.6907875 | AC62: 494.7680906 | AD62: 329.8453937 | AE62: 164.9226969 | AH62: 560.3576751 | AI62: 420.2682563 | AJ62: 280.1788376 | AK62: 140.0894188 | AL62: 70.04470939
M63: 2024-08-08 | N63: 901 | O63: 905 | P63: 887 | Q63: 896 | R63: 41288 | S63: 27.1643 | T63: 6.39 | U63: 27.12 | AB63: 659.6907082 | AC63: 494.7680311 | AD63: 329.8453541 | AE63: 164.922677 | AH63: 560.960961 | AI63: 420.7207207 | AJ63: 280.4804805 | AK63: 140.2402402 | AL63: =AL$1*$Q62/$T62 -> 70.12012012
M64: 2024-08-07 | N64: 901 | O64: 920 | P64: 893 | Q64: 920 | R64: 62643 | S64: 27.8919 | T64: 6.56 | U64: 27.85 | AB64: 659.6893717 | AC64: 494.7670288 | AD64: 329.8446859 | AE64: 164.9223429 | AH64: 560.8763693 | AI64: 420.657277 | AJ64: 280.4381847 | AK64: 140.2190923 | AL64: 70.10954617
M65: 2024-08-06 | N65: 868 | O65: 895 | P65: 840 | Q65: 880 | R65: 108521 | S65: 26.6792 | T65: 6.28 | U65: 26.63 | AB65: 659.6897307 | AC65: 494.767298 | AD65: 329.8448654 | AE65: 164.9224327 | AH65: 560.9756098 | AI65: 420.7317073 | AJ65: 280.4878049 | AK65: 140.2439024 | AL65: 70.12195122
M66: 2024-08-05 | N66: 852 | O66: 857 | P66: 813 | Q66: 815 | R66: 159662 | S66: 24.7086 | T66: 5.81 | U66: 24.67 | AB66: 659.6899457 | AC66: 494.7674593 | AD66: 329.8449729 | AE66: 164.9224864 | AH66: 560.5095541 | AI66: 420.3821656 | AJ66: 280.2547771 | AK66: 140.1273885 | AL66: 70.06369427
M67: 2024-08-02 | N67: 918 | O67: 928 | P67: 903 | Q67: 903 | R67: 89044 | S67: 27.3765 | T67: 6.44 | U67: 27.33 | AB67: 659.6893389 | AC67: 494.7670042 | AD67: 329.8446695 | AE67: 164.9223347 | AH67: 561.1015491 | AI67: 420.8261618 | AJ67: 280.5507745 | AK67: 140.2753873 | AL67: 70.13769363
M68: 2024-08-01 | N68: 969 | O68: 969 | P68: 948 | Q68: 960 | R68: 50257 | S68: 29.1046 | T68: 6.85 | U68: 29.06 | AB68: =AB$1*$Q67/$S67 -> 659.68988 | AC68: =AC$1*$Q67/$S67 -> 494.76741 | AD68: 329.84494 | AE68: 164.92247 | AH68: =AH$1*$Q67/$T67 -> 560.8695652 | AI68: 420.6521739 | AJ68: 280.4347826 | AK68: 140.2173913 | AL68: 70.10869565
M69: 2024-07-31 | N69: 929 | O69: 940 | P69: 928 | Q69: 934 | R69: 47407 | S69: 28.3163 | T69: 6.66 | U69: 28.27 | AB69: 659.6895336 | AC69: 494.7671502 | AD69: 329.8447668 | AE69: 164.9223834 | AH69: 560.5839416 | AI69: 420.4379562 | AJ69: 280.2919708 | AK69: 140.1459854 | AL69: 70.0729927
M70: 2024-07-30 | N70: 930 | O70: 949 | P70: 926 | Q70: 940 | R70: 45996 | S70: 28.4982 | T70: 6.71 | U70: 28.45 | AB70: 659.6907082 | AC70: 494.7680311 | AD70: 329.8453541 | AE70: 164.922677 | AH70: 560.960961 | AI70: 420.7207207 | AJ70: 280.4804805 | AK70: 140.2402402 | AL70: 70.12012012
M71: 2024-07-29 | N71: 942 | O71: 948 | P71: 936 | Q71: 944 | R71: 44000 | S71: 28.6195 | T71: 6.73 | U71: 28.57 | AB71: 659.6907875 | AC71: 494.7680906 | AD71: 329.8453937 | AE71: 164.9226969 | AH71: 560.3576751 | AI71: 420.2682563 | AJ71: 280.1788376 | AK71: 140.0894188 | AL71: 70.04470939
M72: 2024-07-26 | N72: 915 | O72: 930 | P72: 915 | Q72: 924 | R72: 95625 | S72: 28.0132 | T72: 6.59 | U72: 27.97 | AB72: 659.6900715 | AC72: 494.7675536 | AD72: 329.8450357 | AE72: 164.9225179 | AH72: 561.0698366 | AI72: 420.8023774 | AJ72: 280.5349183 | AK72: 140.2674591 | AL72: 70.13372957
M73: 2024-07-23 | N73: 963 | O73: 979 | P73: 956 | Q73: 979 | R73: 53439 | S73: 29.6806 | T73: 6.98 | U73: 29.63 | AB73: 659.6890038 | AC73: 494.7667528 | AD73: 329.8445019 | AE73: 164.9222509 | AH73: 560.8497724 | AI73: 420.6373293 | AJ73: 280.4248862 | AK73: 140.2124431 | AL73: 70.10622155
M74: 2024-07-22 | N74: 964 | O74: 965 | P74: 938 | Q74: 939 | R74: 90266 | S74: 28.4679 | T74: 6.7 | U74: 28.42 | AB74: 659.690168 | AC74: 494.767626 | AD74: 329.845084 | AE74: 164.922542 | AH74: 561.0315186 | AI74: 420.773639 | AJ74: 280.5157593 | AK74: 140.2578797 | AL74: 70.12893983
M75: 2024-07-19 | N75: 988 | O75: 995 | P75: 970 | Q75: 970 | R75: 110541 | S75: 29.4078 | T75: 6.92 | U75: 29.36 | AB75: 659.6903881 | AC75: 494.7677911 | AD75: 329.8451941 | AE75: 164.922597 | AH75: 560.5970149 | AI75: 420.4477612 | AJ75: 280.2985075 | AK75: 140.1492537 | AL75: 70.07462687
M76: 2024-07-18 | N76: 988 | O76: 1005 | P76: 986 | Q76: 1005 | R76: 94327 | S76: 30.4689 | T76: 7.17 | U76: 30.42 | AB76: 659.6889261 | AC76: 494.7666946 | AD76: 329.844463 | AE76: 164.9222315 | AH76: 560.6936416 | AI76: 420.5202312 | AJ76: 280.3468208 | AK76: 140.1734104 | AL76: 70.0867052
M77: 2024-07-17 | N77: 1035 | O77: 1045 | P77: 1020 | Q77: 1030 | R77: 62390 | S77: 31.2268 | T77: 7.35 | U77: 31.17 | AB77: 659.68906 | AC77: 494.766795 | AD77: 329.84453 | AE77: 164.922265 | AH77: 560.6694561 | AI77: 420.5020921 | AJ77: 280.334728 | AK77: 140.167364 | AL77: 70.08368201
M78: 2024-07-16 | N78: 1040 | O78: 1070 | P78: 1035 | Q78: 1055 | R78: 36244 | S78: 31.9847 | T78: 7.53 | U78: 31.93 | AB78: 659.6897537 | AC78: 494.7673153 | AD78: 329.8448768 | AE78: 164.9224384 | AH78: 560.5442177 | AI78: 420.4081633 | AJ78: 280.2721088 | AK78: 140.1360544 | AL78: 70.06802721
M79: 2024-07-15 | N79: 1040 | O79: 1045 | P79: 1025 | Q79: 1040 | R79: 44123 | S79: 31.53 | T79: 7.42 | U79: 31.48 | AB79: 659.6904145 | AC79: 494.7678109 | AD79: 329.8452072 | AE79: 164.9226036 | AH79: 560.4249668 | AI79: 420.3187251 | AJ79: 280.2124834 | AK79: 140.1062417 | AL79: 70.05312085
M80: 2024-07-12 | N80: 1030 | O80: 1045 | P80: 1025 | Q80: 1040 | R80: 79472 | S80: 31.53 | T80: 7.42 | U80: 31.48 | AB80: 659.6891849 | AC80: 494.7668887 | AD80: 329.8445925 | AE80: 164.9222962 | AH80: 560.6469003 | AI80: 420.4851752 | AJ80: 280.3234501 | AK80: 140.1617251 | AL80: 70.08086253
M81: 2024-07-11 | N81: 1065 | O81: 1080 | P81: 1055 | Q81: 1080 | R81: 49304 | S81: 32.7427 | T81: 7.7 | U81: 32.69 | AB81: 659.6891849 | AC81: 494.7668887 | AD81: 329.8445925 | AE81: 164.9222962 | AH81: 560.6469003 | AI81: 420.4851752 | AJ81: 280.3234501 | AK81: 140.1617251 | AL81: 70.08086253
M82: 2024-07-10 | N82: 1020 | O82: 1050 | P82: 1015 | Q82: 1045 | R82: 51810 | S82: 31.6815 | T82: 7.45 | U82: 31.63 | AB82: 659.6890299 | AC82: 494.7667724 | AD82: 329.844515 | AE82: 164.9222575 | AH82: 561.038961 | AI82: 420.7792208 | AJ82: 280.5194805 | AK82: 140.2597403 | AL82: 70.12987013
M83: 2024-07-09 | N83: 1030 | O83: 1055 | P83: 1025 | Q83: 1040 | R83: 54339 | S83: 31.53 | T83: 7.42 | U83: 31.48 | AB83: 659.6909869 | AC83: 494.7682401 | AD83: 329.8454934 | AE83: 164.9227467 | AH83: 561.0738255 | AI83: 420.8053691 | AJ83: 280.5369128 | AK83: 140.2684564 | AL83: 70.13422819
M84: 2024-07-08 | N84: 1005 | O84: 1050 | P84: 1000 | Q84: 1035 | R84: 45678 | S84: 31.3784 | T84: 7.38 | U84: 31.33 | AB84: 659.6891849 | AC84: 494.7668887 | AD84: 329.8445925 | AE84: 164.9222962 | AH84: 560.6469003 | AI84: 420.4851752 | AJ84: 280.3234501 | AK84: 140.1617251 | AL84: 70.08086253
M85: 2024-07-05 | N85: 1005 | O85: 1010 | P85: 1000 | Q85: 1005 | R85: 21735 | S85: 30.4689 | T85: 7.17 | U85: 30.42 | AB85: 659.6894679 | AC85: 494.7671009 | AD85: 329.844734 | AE85: 164.922367 | AH85: 560.9756098 | AI85: 420.7317073 | AJ85: 280.4878049 | AK85: 140.2439024 | AL85: 70.12195122
M86: 2024-07-04 | N86: 1000 | O86: 1010 | P86: 997 | Q86: 1005 | R86: 47251 | S86: 30.4689 | T86: 7.17 | U86: 30.42 | AB86: 659.68906 | AC86: 494.766795 | AD86: 329.84453 | AE86: 164.922265 | AH86: 560.6694561 | AI86: 420.5020921 | AJ86: 280.334728 | AK86: 140.167364 | AL86: 70.08368201
M87: 2024-07-03 | N87: 976 | O87: 979 | P87: 967 | Q87: 979 | R87: 25022 | S87: 29.6806 | T87: 6.98 | U87: 29.63 | AB87: 659.68906 | AC87: 494.766795 | AD87: 329.84453 | AE87: 164.922265 | AH87: 560.6694561 | AI87: 420.5020921 | AJ87: 280.334728 | AK87: 140.167364 | AL87: 70.08368201
M88: 2024-07-02 | N88: 967 | O88: 971 | P88: 959 | Q88: 960 | R88: 27992 | S88: 29.1046 | T88: 6.85 | U88: 29.06 | AB88: 659.690168 | AC88: 494.767626 | AD88: 329.845084 | AE88: 164.922542 | AH88: 561.0315186 | AI88: 420.773639 | AJ88: 280.5157593 | AK88: 140.2578797 | AL88: 70.12893983
M89: 2024-07-01 | N89: 968 | O89: 977 | P89: 965 | Q89: 968 | R89: 20936 | S89: 29.3471 | T89: 6.9 | U89: 29.3 | AB89: 659.6895336 | AC89: 494.7671502 | AD89: 329.8447668 | AE89: 164.9223834 | AH89: 560.5839416 | AI89: 420.4379562 | AJ89: 280.2919708 | AK89: 140.1459854 | AL89: 70.0729927
M90: 2024-06-28 | N90: 956 | O90: 971 | P90: 955 | Q90: 966 | R90: 42998 | S90: 29.2865 | T90: 6.89 | U90: 29.24 | AB90: 659.6903953 | AC90: 494.7677965 | AD90: 329.8451977 | AE90: 164.9225988 | AH90: 561.1594203 | AI90: 420.8695652 | AJ90: 280.5797101 | AK90: 140.2898551 | AL90: 70.14492754
M91: 2024-06-27 | N91: 951 | O91: 961 | P91: 949 | Q91: 960 | R91: 41276 | S91: 29.1046 | T91: 6.85 | U91: 29.06 | AB91: 659.6896181 | AC91: 494.7672136 | AD91: 329.844809 | AE91: 164.9224045 | AH91: 560.8127721 | AI91: 420.6095791 | AJ91: 280.4063861 | AK91: 140.203193 | AL91: 70.10159652
M92: 2024-06-26 | N92: 951 | O92: 960 | P92: 951 | Q92: 960 | R92: 48821 | S92: 29.1046 | T92: 6.85 | U92: 29.06 | AB92: 659.6895336 | AC92: 494.7671502 | AD92: 329.8447668 | AE92: 164.9223834 | AH92: 560.5839416 | AI92: 420.4379562 | AJ92: 280.2919708 | AK92: 140.1459854 | AL92: 70.0729927
M93: 2024-06-25 | N93: 925 | O93: 945 | P93: 923 | Q93: 945 | R93: 62079 | S93: 28.6498 | T93: 6.74 | U93: 28.6 | AB93: 659.6895336 | AC93: 494.7671502 | AD93: 329.8447668 | AE93: 164.9223834 | AH93: 560.5839416 | AI93: 420.4379562 | AJ93: 280.2919708 | AK93: 140.1459854 | AL93: 70.0729927
M94: 2024-06-24 | N94: 958 | O94: 960 | P94: 940 | Q94: 940 | R94: 74081 | S94: 28.4982 | T94: 6.71 | U94: 28.45 | AB94: 659.690469 | AC94: 494.7678518 | AD94: 329.8452345 | AE94: 164.9226173 | AH94: 560.8308605 | AI94: 420.6231454 | AJ94: 280.4154303 | AK94: 140.2077151 | AL94: 70.10385757
M95: 2024-06-21 | N95: 961 | O95: 978 | P95: 960 | Q95: 970 | R95: 97995 | S95: 29.4078 | T95: 6.92 | U95: 29.36 | AB95: 659.6907875 | AC95: 494.7680906 | AD95: 329.8453937 | AE95: 164.9226969 | AH95: 560.3576751 | AI95: 420.2682563 | AJ95: 280.1788376 | AK95: 140.0894188 | AL95: 70.04470939
M96: 2024-06-20 | N96: 971 | O96: 981 | P96: 971 | Q96: 981 | R96: 52144 | S96: 29.7412 | T96: 7 | U96: 29.69 | AB96: 659.6889261 | AC96: 494.7666946 | AD96: 329.844463 | AE96: 164.9222315 | AH96: 560.6936416 | AI96: 420.5202312 | AJ96: 280.3468208 | AK96: 140.1734104 | AL96: 70.0867052
M97: 2024-06-19 | N97: 953 | O97: 984 | P97: 953 | Q97: 981 | R97: 76684 | S97: 29.7412 | T97: 7 | U97: 29.69 | AB97: 659.6909338 | AC97: 494.7682003 | AD97: 329.8454669 | AE97: 164.9227334 | AH97: 560.5714286 | AI97: 420.4285714 | AJ97: 280.2857143 | AK97: 140.1428571 | AL97: 70.07142857
M98: 2024-06-18 | N98: 944 | O98: 950 | P98: 940 | Q98: 943 | R98: 40870 | S98: 28.5892 | T98: 6.73 | U98: 28.54 | AB98: 659.6909338 | AC98: 494.7682003 | AD98: 329.8454669 | AE98: 164.9227334 | AH98: 560.5714286 | AI98: 420.4285714 | AJ98: 280.2857143 | AK98: 140.1428571 | AL98: 70.07142857
M99: 2024-06-17 | N99: 913 | O99: 925 | P99: 913 | Q99: 921 | R99: 28796 | S99: 27.9222 | T99: 6.57 | U99: 27.88 | AB99: 659.689673 | AC99: 494.7672548 | AD99: 329.8448365 | AE99: 164.9224183 | AH99: 560.4754829 | AI99: 420.3566122 | AJ99: 280.2377415 | AK99: 140.1188707 | AL99: 70.05943536
M100: 2024-06-14 | N100: 916 | O100: 922 | P100: 905 | Q100: 922 | R100: 43289 | S100: 27.9525 | T100: 6.58 | U100: 27.91 | AB100: 659.690139 | AC100: 494.7676043 | AD100: 329.8450695 | AE100: 164.9225348 | AH100: 560.7305936 | AI100: 420.5479452 | AJ100: 280.3652968 | AK100: 140.1826484 | AL100: 70.0913242
M101: 2024-06-13 | N101: 923 | O101: 935 | P101: 911 | Q101: 919 | R101: 59656 | S101: 27.8616 | T101: 6.56 | U101: 27.81 | AB101: 659.6905465 | AC101: 494.7679098 | AD101: 329.8452732 | AE101: 164.9226366 | AH101: 560.4863222 | AI101: 420.3647416 | AJ101: 280.2431611 | AK101: 140.1215805 | AL101: 70.06079027
M102: 2024-06-12 | N102: 888 | O102: 914 | P102: 888 | Q102: 909 | R102: 51874 | S102: 27.5584 | T102: 6.48 | U102: 27.51 | AB102: 659.6893215 | AC102: 494.7669911 | AD102: 329.8446608 | AE102: 164.9223304 | AH102: 560.3658537 | AI102: 420.2743902 | AJ102: 280.1829268 | AK102: 140.0914634 | AL102: 70.04573171
M103: 2024-06-11 | N103: 892 | O103: 895 | P103: 883 | Q103: 883 | R103: 57435 | S103: 26.7701 | T103: 6.3 | U103: 26.73 | AB103: 659.6899675 | AC103: 494.7674756 | AD103: 329.8449837 | AE103: 164.9224919 | AH103: 561.1111111 | AI103: 420.8333333 | AJ103: 280.5555556 | AK103: 140.2777778 | AL103: 70.13888889
M104: 2024-06-07 | N104: 885 | O104: 888 | P104: 879 | Q104: 879 | R104: 44489 | S104: 26.6489 | T104: 6.27 | U104: 26.6 | AB104: 659.6912227 | AC104: 494.768417 | AD104: 329.8456113 | AE104: 164.9228057 | AH104: 560.6349206 | AI104: 420.4761905 | AJ104: 280.3174603 | AK104: 140.1587302 | AL104: 70.07936508
M105: 2024-06-06 | N105: 893 | O105: 899 | P105: 885 | Q105: 894 | R105: 67300 | S105: 27.1036 | T105: 6.38 | U105: 27.06 | AB105: 659.6895181 | AC105: 494.7671386 | AD105: 329.8447591 | AE105: 164.9223795 | AH105: 560.7655502 | AI105: 420.5741627 | AJ105: 280.3827751 | AK105: 140.1913876 | AL105: 70.09569378
M106: 2024-06-05 | N106: 841 | O106: 857 | P106: 835 | Q106: 854 | R106: 37531 | S106: 25.8923 | T106: 6.09 | U106: 25.85 | AB106: 659.6909636 | AC106: 494.7682227 | AD106: 329.8454818 | AE106: 164.9227409 | AH106: 560.5015674 | AI106: 420.3761755 | AJ106: 280.2507837 | AK106: 140.1253918 | AL106: 70.06269592
M107: 2024-06-04 | N107: 844 | O107: 851 | P107: 837 | Q107: 839 | R107: 31031 | S107: 25.4376 | T107: 5.98 | U107: 25.39 | AB107: 659.6555733 | AC107: 494.74168 | AD107: 329.8277866 | AE107: 164.9138933 | AH107: 560.9195402 | AI107: 420.6896552 | AJ107: 280.4597701 | AK107: 140.2298851 | AL107: 70.11494253
M108: 2024-06-03 | N108: 839 | O108: 853 | P108: 837 | Q108: 846 | R108: 29629 | S108: 25.6498 | T108: 6.03 | U108: 25.61 | AB108: 659.6534264 | AC108: 494.7400698 | AD108: 329.8267132 | AE108: 164.9133566 | AH108: 561.2040134 | AI108: 420.90301 | AJ108: 280.6020067 | AK108: 140.3010033 | AL108: 70.15050167
M109: 2024-05-31 | N109: 838 | O109: 846 | P109: 821 | Q109: 821 | R109: 90177 | S109: 23.9182 | T109: 5.86 | U109: 24.85 | AB109: 659.6542663 | AC109: 494.7406997 | AD109: 329.8271332 | AE109: 164.9135666 | AH109: 561.1940299 | AI109: 420.8955224 | AJ109: 280.5970149 | AK109: 140.2985075 | AL109: 70.14925373
M110: 2024-05-30 | N110: 841 | O110: 848 | P110: 838 | Q110: 838 | R110: 42535 | S110: 24.4134 | T110: 5.98 | U110: 25.36 | AB110: 686.5065097 | AC110: 514.8798823 | AD110: 343.2532548 | AE110: 171.6266274 | AH110: 560.4095563 | AI110: 420.3071672 | AJ110: 280.2047782 | AK110: 140.1023891 | AL110: 70.05119454
M111: 2024-05-29 | N111: 861 | O111: 868 | P111: 856 | Q111: 857 | R111: 51073 | S111: 24.967 | T111: 6.11 | U111: 25.94 | AB111: 686.5082291 | AC111: 514.8811718 | AD111: 343.2541145 | AE111: 171.6270573 | AH111: 560.5351171 | AI111: 420.4013378 | AJ111: 280.2675585 | AK111: 140.1337793 | AL111: 70.06688963
M112: 2024-05-28 | N112: 867 | O112: 873 | P112: 865 | Q112: 865 | R112: 32712 | S112: 25.2 | T112: 6.17 | U112: 26.18 | AB112: 686.5061882 | AC112: 514.8796411 | AD112: 343.2530941 | AE112: 171.626547 | AH112: 561.0474632 | AI112: 420.7855974 | AJ112: 280.5237316 | AK112: 140.2618658 | AL112: 70.1309329
M113: 2024-05-27 | N113: 872 | O113: 878 | P113: 866 | Q113: 869 | R113: 32691 | S113: 25.3166 | T113: 6.2 | U113: 26.3 | AB113: 686.5079365 | AC113: 514.8809524 | AD113: 343.2539683 | AE113: 171.6269841 | AH113: 560.7779579 | AI113: 420.5834684 | AJ113: 280.3889789 | AK113: 140.1944895 | AL113: 70.09724473
M114: 2024-05-24 | N114: 858 | O114: 872 | P114: 858 | Q114: 867 | R114: 37353 | S114: 25.2583 | T114: 6.18 | U114: 26.24 | AB114: 686.5060869 | AC114: 514.8795652 | AD114: 343.2530435 | AE114: 171.6265217 | AH114: 560.6451613 | AI114: 420.483871 | AJ114: 280.3225806 | AK114: 140.1612903 | AL114: 70.08064516
M115: 2024-05-23 | N115: 875 | O115: 877 | P115: 867 | Q115: 875 | R115: 40771 | S115: 25.4914 | T115: 6.24 | U115: 26.48 | AB115: 686.5070096 | AC115: 514.8802572 | AD115: 343.2535048 | AE115: 171.6267524 | AH115: 561.1650485 | AI115: 420.8737864 | AJ115: 280.5825243 | AK115: 140.2912621 | AL115: 70.14563107
M116: 2024-05-22 | N116: 845 | O116: 865 | P116: 843 | Q116: 864 | R116: 40904 | S116: 25.1709 | T116: 6.16 | U116: 26.15 | AB116: 686.5060373 | AC116: 514.879528 | AD116: 343.2530187 | AE116: 171.6265093 | AH116: 560.8974359 | AI116: 420.6730769 | AJ116: 280.4487179 | AK116: 140.224359 | AL116: 70.11217949
M117: 2024-05-21 | N117: 830 | O117: 841 | P117: 830 | Q117: 841 | R117: 20548 | S117: 24.5008 | T117: 6 | U117: 25.45 | AB117: 686.5070379 | AC117: 514.8802784 | AD117: 343.2535189 | AE117: 171.6267595 | AH117: 561.038961 | AI117: 420.7792208 | AJ117: 280.5194805 | AK117: 140.2597403 | AL117: 70.12987013
M118: 2024-05-20 | N118: 834 | O118: 838 | P118: 822 | Q118: 835 | R118: 30148 | S118: 24.326 | T118: 5.96 | U118: 25.27 | AB118: 686.5081957 | AC118: 514.8811467 | AD118: 343.2540978 | AE118: 171.6270489 | AH118: 560.6666667 | AI118: 420.5 | AJ118: 280.3333333 | AK118: 140.1666667 | AL118: 70.08333333
M119: 2024-05-17 | N119: 848 | O119: 848 | P119: 834 | Q119: 835 | R119: 27855 | S119: 24.326 | T119: 5.96 | U119: 25.27 | AB119: 686.5082628 | AC119: 514.8811971 | AD119: 343.2541314 | AE119: 171.6270657 | AH119: 560.4026846 | AI119: 420.3020134 | AJ119: 280.2013423 | AK119: 140.1006711 | AL119: 70.05033557
M120: 2024-05-16 | N120: 852 | O120: 856 | P120: 837 | Q120: 841 | R120: 46276 | S120: 24.5008 | T120: 6 | U120: 25.45 | AB120: 686.5082628 | AC120: 514.8811971 | AD120: 343.2541314 | AE120: 171.6270657 | AH120: 560.4026846 | AI120: 420.3020134 | AJ120: 280.2013423 | AK120: 140.1006711 | AL120: 70.05033557
M121: 2024-05-15 | N121: 838 | O121: 844 | P121: 837 | Q121: 839 | R121: 41805 | S121: 24.4426 | T121: 5.98 | U121: 25.39 | AB121: 686.5081957 | AC121: 514.8811467 | AD121: 343.2540978 | AE121: 171.6270489 | AH121: 560.6666667 | AI121: 420.5 | AJ121: 280.3333333 | AK121: 140.1666667 | AL121: 70.08333333
M122: 2024-05-14 | N122: 816 | O122: 825 | P122: 811 | Q122: 825 | R122: 29663 | S122: 24.0347 | T122: 6.19 | U122: 25.52 | AB122: 686.5063455 | AC122: 514.8797591 | AD122: 343.2531727 | AE122: 171.6265864 | AH122: 561.2040134 | AI122: 420.90301 | AJ122: 280.6020067 | AK122: 140.3010033 | AL122: 70.15050167
M123: 2024-05-13 | N123: 823 | O123: 825 | P123: 818 | Q123: 819 | R123: 38146 | S123: 23.8599 | T123: 6.14 | U123: 25.33 | AB123: 686.5074247 | AC123: 514.8805685 | AD123: 343.2537123 | AE123: 171.6268562 | AH123: 533.1179321 | AI123: 399.8384491 | AJ123: 266.5589661 | AK123: 133.279483 | AL123: 66.63974152
M124: 2024-05-10 | N124: 803 | O124: 807 | P124: 798 | Q124: 802 | R124: 27560 | S124: 23.3647 | T124: 6.01 | U124: 24.81 | AB124: 686.5074875 | AC124: 514.8806156 | AD124: 343.2537437 | AE124: 171.6268719 | AH124: 533.5504886 | AI124: 400.1628664 | AJ124: 266.7752443 | AK124: 133.3876221 | AL124: 66.69381107
M125: 2024-05-09 | N125: 798 | O125: 802 | P125: 796 | Q125: 796 | R125: 22863 | S125: 23.1899 | T125: 5.97 | U125: 24.62 | AB125: 686.5057116 | AC125: 514.8792837 | AD125: 343.2528558 | AE125: 171.6264279 | AH125: 533.7770383 | AI125: 400.3327787 | AJ125: 266.8885191 | AK125: 133.4442596 | AL125: 66.72212978
M126: 2024-05-08 | N126: 794 | O126: 802 | P126: 792 | Q126: 802 | R126: 22585 | S126: 23.3647 | T126: 6.01 | U126: 24.81 | AB126: 686.5057633 | AC126: 514.8793225 | AD126: 343.2528816 | AE126: 171.6264408 | AH126: 533.3333333 | AI126: 400 | AJ126: 266.6666667 | AK126: 133.3333333 | AL126: 66.66666667
M127: 2024-05-07 | N127: 797 | O127: 800 | P127: 792 | Q127: 800 | R127: 35917 | S127: 23.3064 | T127: 6 | U127: 24.74 | AB127: 686.5057116 | AC127: 514.8792837 | AD127: 343.2528558 | AE127: 171.6264279 | AH127: 533.7770383 | AI127: 400.3327787 | AJ127: 266.8885191 | AK127: 133.4442596 | AL127: =AL$1*$Q126/$T126 -> 66.72212978
M128: 2024-05-06 | N128: 791 | O128: 793 | P128: 786 | Q128: 786 | R128: 33733 | S128: 22.8985 | T128: 5.89 | U128: 24.31 | AB128: 686.5067106 | AC128: 514.880033 | AD128: 343.2533553 | AE128: 171.6266777 | AH128: 533.3333333 | AI128: 400 | AJ128: 266.6666667 | AK128: 133.3333333 | AL128: 66.66666667
M129: 2024-05-03 | N129: 788 | O129: 788 | P129: 773 | Q129: 780 | R129: 31026 | S129: 22.7237 | T129: 5.85 | U129: 24.13 | AB129: 686.5078499 | AC129: 514.8808874 | AD129: 343.2539249 | AE129: 171.6269625 | AH129: 533.7860781 | AI129: 400.3395586 | AJ129: 266.893039 | AK129: 133.4465195 | AL129: 66.72325976
M130: 2024-05-02 | N130: 789 | O130: 789 | P130: 772 | Q130: 772 | R130: 47536 | S130: 22.4907 | T130: 5.79 | U130: 23.88 | AB130: 686.507919 | AC130: 514.8809393 | AD130: 343.2539595 | AE130: 171.6269798 | AH130: 533.3333333 | AI130: 400 | AJ130: 266.6666667 | AK130: 133.3333333 | AL130: 66.66666667
M131: 2024-04-30 | N131: 797 | O131: 802 | P131: 790 | Q131: 790 | R131: 41627 | S131: 23.0151 | T131: 5.92 | U131: 24.44 | AB131: 686.505978 | AC131: 514.8794835 | AD131: 343.252989 | AE131: 171.6264945 | AH131: 533.3333333 | AI131: 400 | AJ131: 266.6666667 | AK131: =AK$1*$Q130/$T130 -> 133.3333333 | AL131: 66.66666667
M132: 2024-04-29 | N132: 790 | O132: 795 | P132: 787 | Q132: 795 | R132: 30704 | S132: 23.1607 | T132: 5.96 | U132: 24.59 | AB132: =AB$1*$Q131/$S131 -> 686.5058157 | AC132: =AC$1*$Q131/$S131 -> 514.8793618 | AD132: 343.2529079 | AE132: 171.6264539 | AH132: =AH$1*$Q131/$T131 -> 533.7837838 | AI132: 400.3378378 | AJ132: 266.8918919 | AK132: 133.4459459 | AL132: 66.72297297
M133: 2024-04-26 | N133: 788 | O133: 789 | P133: 782 | Q133: 782 | R133: 34721 | S133: 22.782 | T133: 5.86 | U133: 24.19 | AB133: 686.507748 | AC133: 514.880811 | AD133: 343.253874 | AE133: 171.626937 | AH133: 533.557047 | AI133: 400.1677852 | AJ133: 266.7785235 | AK133: 133.3892617 | AL133: 66.69463087
M134: 2024-04-25 | N134: 770 | O134: 774 | P134: 765 | Q134: 766 | R134: 30492 | S134: 22.3159 | T134: 5.74 | U134: 23.69 | AB134: 686.5068914 | AC134: 514.8801686 | AD134: 343.2534457 | AE134: 171.6267229 | AH134: 533.7883959 | AI134: 400.3412969 | AJ134: 266.894198 | AK134: 133.447099 | AL134: 66.72354949
M135: 2024-04-24 | N135: 770 | O135: 785 | P135: 769 | Q135: 783 | R135: 41652 | S135: 22.8111 | T135: 5.87 | U135: 24.22 | AB135: 686.5060338 | AC135: 514.8795254 | AD135: 343.2530169 | AE135: 171.6265085 | AH135: 533.7979094 | AI135: 400.3484321 | AJ135: 266.8989547 | AK135: 133.4494774 | AL135: 66.72473868
M136: 2024-04-23 | N136: 761 | O136: 761 | P136: 752 | Q136: 754 | R136: 32067 | S136: 21.9663 | T136: 5.65 | U136: 23.32 | AB136: 686.5078843 | AC136: 514.8809132 | AD136: 343.2539422 | AE136: 171.6269711 | AH136: 533.560477 | AI136: 400.1703578 | AJ136: 266.7802385 | AK136: 133.3901193 | AL136: 66.69505963
M137: 2024-04-22 | N137: 740 | O137: 757 | P137: 740 | Q137: 742 | R137: 52354 | S137: 21.6167 | T137: 5.56 | U137: 22.95 | AB137: 686.5061481 | AC137: 514.879611 | AD137: 343.253074 | AE137: 171.626537 | AH137: 533.8053097 | AI137: 400.3539823 | AJ137: 266.9026549 | AK137: 133.4513274 | AL137: 66.72566372
M138: 2024-04-19 | N138: 769 | O138: 770 | P138: 746 | Q138: 750 | R138: 143868 | S138: 21.8497 | T138: 5.62 | U138: 23.2 | AB138: 686.506266 | AC138: 514.8796995 | AD138: 343.253133 | AE138: 171.6265665 | AH138: 533.8129496 | AI138: 400.3597122 | AJ138: 266.9064748 | AK138: 133.4532374 | AL138: 66.72661871
M139: 2024-04-18 | N139: 796 | O139: 810 | P139: 792 | Q139: 804 | R139: 45765 | S139: 23.4229 | T139: 6.03 | U139: 24.87 | AB139: 686.5082816 | AC139: 514.8812112 | AD139: 343.2541408 | AE139: 171.6270704 | AH139: 533.8078292 | AI139: 400.3558719 | AJ139: 266.9039146 | AK139: 133.4519573 | AL139: 66.72597865
M140: 2024-04-17 | N140: 798 | O140: 808 | P140: 793 | Q140: 804 | R140: 36616 | S140: 23.4229 | T140: 6.03 | U140: 24.87 | AB140: 686.5076485 | AC140: 514.8807364 | AD140: 343.2538242 | AE140: 171.6269121 | AH140: 533.3333333 | AI140: 400 | AJ140: 266.6666667 | AK140: 133.3333333 | AL140: 66.66666667
M141: 2024-04-16 | N141: 802 | O141: 803 | P141: 785 | Q141: 788 | R141: 54120 | S141: 22.9568 | T141: 5.91 | U141: 24.37 | AB141: 686.5076485 | AC141: 514.8807364 | AD141: 343.2538242 | AE141: 171.6269121 | AH141: 533.3333333 | AI141: 400 | AJ141: 266.6666667 | AK141: 133.3333333 | AL141: 66.66666667
M142: 2024-04-15 | N142: 804 | O142: 812 | P142: 803 | Q142: 806 | R142: 41251 | S142: 23.4812 | T142: 6.04 | U142: 24.93 | AB142: 686.5068302 | AC142: 514.8801227 | AD142: 343.2534151 | AE142: 171.6267076 | AH142: 533.3333333 | AI142: 400 | AJ142: 266.6666667 | AK142: 133.3333333 | AL142: 66.66666667
M143: 2024-04-12 | N143: 823 | O143: 826 | P143: 817 | Q143: 818 | R143: 32473 | S143: 23.8308 | T143: 6.13 | U143: 25.3 | AB143: 686.5066521 | AC143: 514.8799891 | AD143: 343.2533261 | AE143: 171.626663 | AH143: 533.7748344 | AI143: 400.3311258 | AJ143: 266.8874172 | AK143: 133.4437086 | AL143: 66.7218543
M144: 2024-04-11 | N144: 811 | O144: 820 | P144: 811 | Q144: 820 | R144: 27772 | S144: 23.889 | T144: 6.15 | U144: 25.36 | AB144: 686.5065378 | AC144: 514.8799033 | AD144: 343.2532689 | AE144: 171.6266344 | AH144: 533.7683524 | AI144: 400.3262643 | AJ144: 266.8841762 | AK144: 133.4420881 | AL144: 66.72104405
M145: 2024-04-10 | N145: 815 | O145: 819 | P145: 810 | Q145: 815 | R145: 31109 | S145: 23.7434 | T145: 6.11 | U145: 25.21 | AB145: 686.5084348 | AC145: 514.8813261 | AD145: 343.2542174 | AE145: 171.6271087 | AH145: 533.3333333 | AI145: 400 | AJ145: 266.6666667 | AK145: 133.3333333 | AL145: 66.66666667
M146: 2024-04-09 | N146: 795 | O146: 820 | P146: 792 | Q146: 819 | R146: 61642 | S146: 23.8599 | T146: 6.14 | U146: 25.33 | AB146: 686.506566 | AC146: 514.8799245 | AD146: 343.253283 | AE146: 171.6266415 | AH146: 533.5515548 | AI146: 400.1636661 | AJ146: 266.7757774 | AK146: 133.3878887 | AL146: 66.69394435
M147: 2024-04-08 | N147: 789 | O147: 792 | P147: 783 | Q147: 783 | R147: 40567 | S147: 22.8111 | T147: 5.87 | U147: 24.22 | AB147: 686.5074875 | AC147: 514.8806156 | AD147: 343.2537437 | AE147: 171.6268719 | AH147: 533.5504886 | AI147: 400.1628664 | AJ147: 266.7752443 | AK147: 133.3876221 | AL147: 66.69381107
M148: 2024-04-03 | N148: 783 | O148: 785 | P148: 778 | Q148: 780 | R148: 32909 | S148: 22.7237 | T148: 5.85 | U148: 24.13 | AB148: 686.5078843 | AC148: 514.8809132 | AD148: 343.2539422 | AE148: 171.6269711 | AH148: 533.560477 | AI148: 400.1703578 | AJ148: 266.7802385 | AK148: 133.3901193 | AL148: 66.69505963
M149: 2024-04-02 | N149: 784 | O149: 790 | P149: 783 | Q149: 790 | R149: 42219 | S149: 23.0151 | T149: 5.92 | U149: 24.44 | AB149: 686.507919 | AC149: 514.8809393 | AD149: 343.2539595 | AE149: 171.6269798 | AH149: 533.3333333 | AI149: 400 | AJ149: 266.6666667 | AK149: 133.3333333 | AL149: 66.66666667
M150: 2024-04-01 | N150: 783 | O150: 783 | P150: 769 | Q150: 770 | R150: 22348 | S150: 22.4324 | T150: 5.77 | U150: 23.82 | AB150: 686.5058157 | AC150: 514.8793618 | AD150: 343.2529079 | AE150: 171.6264539 | AH150: 533.7837838 | AI150: 400.3378378 | AJ150: 266.8918919 | AK150: 133.4459459 | AL150: 66.72297297
M151: 2024-03-29 | N151: 769 | O151: 781 | P151: 768 | Q151: 779 | R151: 20212 | S151: 22.6946 | T151: 5.84 | U151: 24.1 | AB151: 686.5070166 | AC151: 514.8802625 | AD151: 343.2535083 | AE151: 171.6267542 | AH151: 533.7954939 | AI151: 400.3466205 | AJ151: 266.897747 | AK151: 133.4488735 | AL151: 66.72443674
M152: 2024-03-28 | N152: 774 | O152: 776 | P152: 768 | Q152: 769 | R152: 28393 | S152: 22.4033 | T152: 5.77 | U152: 23.79 | AB152: 686.5069224 | AC152: 514.8801918 | AD152: 343.2534612 | AE152: 171.6267306 | AH152: 533.5616438 | AI152: 400.1712329 | AJ152: 266.7808219 | AK152: 133.390411 | AL152: 66.69520548
M153: 2024-03-27 | N153: 785 | O153: 785 | P153: 779 | Q153: 779 | R153: 19732 | S153: 22.6946 | T153: 5.84 | U153: 24.1 | AB153: 686.5060058 | AC153: 514.8795044 | AD153: 343.2530029 | AE153: 171.6265015 | AH153: 533.102253 | AI153: 399.8266898 | AJ153: 266.5511265 | AK153: 133.2755633 | AL153: 66.63778163
M154: 2024-03-26 | N154: 788 | O154: 792 | P154: 776 | Q154: 782 | R154: 43103 | S154: 22.782 | T154: 5.86 | U154: 24.19 | AB154: 686.5069224 | AC154: 514.8801918 | AD154: 343.2534612 | AE154: 171.6267306 | AH154: 533.5616438 | AI154: 400.1712329 | AJ154: 266.7808219 | AK154: 133.390411 | AL154: 66.69520548
M155: 2024-03-25 | N155: 783 | O155: 788 | P155: 779 | Q155: 780 | R155: 21223 | S155: 22.7237 | T155: 5.85 | U155: 24.13 | AB155: 686.5068914 | AC155: 514.8801686 | AD155: 343.2534457 | AE155: 171.6267229 | AH155: 533.7883959 | AI155: 400.3412969 | AJ155: 266.894198 | AK155: 133.447099 | AL155: 66.72354949
M156: 2024-03-22 | N156: 788 | O156: 789 | P156: 775 | Q156: 785 | R156: 32629 | S156: 22.8694 | T156: 5.89 | U156: 24.28 | AB156: 686.507919 | AC156: 514.8809393 | AD156: 343.2539595 | AE156: 171.6269798 | AH156: 533.3333333 | AI156: 400 | AJ156: 266.6666667 | AK156: 133.3333333 | AL156: 66.66666667
M157: 2024-03-21 | N157: 773 | O157: 784 | P157: 772 | Q157: 784 | R157: 47759 | S157: 22.8403 | T157: 5.88 | U157: 24.25 | AB157: 686.5068607 | AC157: 514.8801455 | AD157: 343.2534303 | AE157: 171.6267152 | AH157: 533.106961 | AI157: 399.8302207 | AJ157: 266.5534805 | AK157: 133.2767402 | AL157: 66.63837012
M158: 2024-03-20 | N158: 764 | O158: 769 | P158: 752 | Q158: 758 | R158: 48788 | S158: 22.0828 | T158: 5.68 | U158: 23.45 | AB158: 686.505869 | AC158: 514.8794018 | AD158: 343.2529345 | AE158: 171.6264673 | AH158: 533.3333333 | AI158: 400 | AJ158: 266.6666667 | AK158: 133.3333333 | AL158: 66.66666667
M159: 2024-03-19 | N159: 758 | O159: 765 | P159: 755 | Q159: 762 | R159: 32078 | S159: 22.1993 | T159: 5.71 | U159: 23.57 | AB159: 686.5071458 | AC159: 514.8803594 | AD159: 343.2535729 | AE159: 171.6267865 | AH159: 533.8028169 | AI159: 400.3521127 | AJ159: 266.9014085 | AK159: 133.4507042 | AL159: 66.72535211
M160: 2024-03-18 | N160: 754 | O160: 765 | P160: 754 | Q160: 764 | R160: 46006 | S160: 22.2576 | T160: 5.73 | U160: 23.63 | AB160: 686.5081331 | AC160: 514.8810999 | AD160: 343.2540666 | AE160: 171.6270333 | AH160: 533.8003503 | AI160: 400.3502627 | AJ160: 266.9001751 | AK160: 133.4500876 | AL160: 66.72504378
M161: 2024-03-15 | N161: 771 | O161: 777 | P161: 753 | Q161: 753 | R161: 80580 | S161: 21.9371 | T161: 5.65 | U161: 23.29 | AB161: 686.5070807 | AC161: 514.8803105 | AD161: 343.2535404 | AE161: 171.6267702 | AH161: 533.3333333 | AI161: 400 | AJ161: 266.6666667 | AK161: 133.3333333 | AL161: 66.66666667
M162: 2024-03-14 | N162: 779 | O162: 785 | P162: 770 | Q162: 784 | R162: 48964 | S162: 22.8403 | T162: 5.88 | U162: 24.25 | AB162: 686.508244 | AC162: 514.881183 | AD162: 343.254122 | AE162: 171.627061 | AH162: 533.0973451 | AI162: 399.8230088 | AJ162: 266.5486726 | AK162: 133.2743363 | AL162: 66.63716814
M163: 2024-03-13 | N163: 785 | O163: 785 | P163: 777 | Q163: 779 | R163: 43130 | S163: 22.6946 | T163: 5.84 | U163: 24.1 | AB163: 686.505869 | AC163: 514.8794018 | AD163: 343.2529345 | AE163: 171.6264673 | AH163: 533.3333333 | AI163: 400 | AJ163: 266.6666667 | AK163: 133.3333333 | AL163: 66.66666667
M164: 2024-03-12 | N164: 757 | O164: 771 | P164: 754 | Q164: 770 | R164: 63336 | S164: 22.4324 | T164: 5.77 | U164: 23.82 | AB164: 686.5069224 | AC164: 514.8801918 | AD164: 343.2534612 | AE164: 171.6267306 | AH164: 533.5616438 | AI164: 400.1712329 | AJ164: 266.7808219 | AK164: 133.390411 | AL164: 66.69520548
M165: 2024-03-11 | N165: 768 | O165: 778 | P165: 761 | Q165: 766 | R165: 73436 | S165: 22.3159 | T165: 5.74 | U165: 23.69 | AB165: 686.5070166 | AC165: 514.8802625 | AD165: 343.2535083 | AE165: 171.6267542 | AH165: 533.7954939 | AI165: 400.3466205 | AJ165: 266.897747 | AK165: 133.4488735 | AL165: 66.72443674
M166: 2024-03-08 | N166: 795 | O166: 796 | P166: 772 | Q166: 784 | R166: 98069 | S166: 22.8403 | T166: 5.88 | U166: 24.25 | AB166: 686.5060338 | AC166: 514.8795254 | AD166: 343.2530169 | AE166: 171.6265085 | AH166: 533.7979094 | AI166: 400.3484321 | AJ166: 266.8989547 | AK166: 133.4494774 | AL166: 66.72473868
M167: 2024-03-07 | N167: 755 | O167: 769 | P167: 754 | Q167: 760 | R167: 80382 | S167: 22.1411 | T167: 5.7 | U167: 23.51 | AB167: 686.505869 | AC167: 514.8794018 | AD167: 343.2529345 | AE167: 171.6264673 | AH167: 533.3333333 | AI167: 400 | AJ167: 266.6666667 | AK167: 133.3333333 | AL167: 66.66666667
M168: 2024-03-06 | N168: 718 | O168: 738 | P168: 717 | Q168: 735 | R168: 52464 | S168: 21.4127 | T168: 5.51 | U168: 22.73 | AB168: 686.5060905 | AC168: 514.8795679 | AD168: 343.2530452 | AE168: 171.6265226 | AH168: 533.3333333 | AI168: 400 | AJ168: 266.6666667 | AK168: 133.3333333 | AL168: 66.66666667
M169: 2024-03-05 | N169: 735 | O169: 738 | P169: 728 | Q169: 730 | R169: 73299 | S169: 21.2671 | T169: 5.47 | U169: 22.58 | AB169: 686.5084739 | AC169: 514.8813555 | AD169: 343.254237 | AE169: 171.6271185 | AH169: 533.5753176 | AI169: 400.1814882 | AJ169: 266.7876588 | AK169: 133.3938294 | AL169: 66.6969147
M170: 2024-03-04 | N170: 714 | O170: 725 | P170: 711 | Q170: 725 | R170: 97210 | S170: 21.1214 | T170: 5.44 | U170: 22.42 | AB170: 686.5063878 | AC170: 514.8797909 | AD170: 343.2531939 | AE170: 171.626597 | AH170: 533.820841 | AI170: 400.3656307 | AJ170: 266.9104205 | AK170: 133.4552102 | AL170: 66.72760512
M171: 2024-03-01 | N171: 697 | O171: 697 | P171: 688 | Q171: 689 | R171: 24167 | S171: 20.0726 | T171: 5.17 | U171: 21.31 | AB171: 686.5075232 | AC171: 514.8806424 | AD171: 343.2537616 | AE171: 171.6268808 | AH171: 533.0882353 | AI171: 399.8161765 | AJ171: 266.5441176 | AK171: 133.2720588 | AL171: 66.63602941
M172: 2024-02-29 | N172: 691 | O172: 698 | P172: 688 | Q172: 690 | R172: 59337 | S172: 20.0995 | T172: 5.17 | U172: 21.34 | AB172: 686.507976 | AC172: 514.880982 | AD172: 343.253988 | AE172: 171.626994 | AH172: 533.0754352 | AI172: 399.8065764 | AJ172: 266.5377176 | AK172: 133.2688588 | AL172: 66.6344294
M173: 2024-02-27 | N173: 700 | O173: 701 | P173: 691 | Q173: 698 | R173: 35389 | S173: 20.3325 | T173: 5.41 | U173: 20.21 | AB173: 686.5842434 | AC173: 514.9381825 | AD173: 343.2921217 | AE173: 171.6460608 | AH173: 533.8491296 | AI173: 400.3868472 | AJ173: 266.9245648 | AK173: 133.4622824 | AL173: 66.7311412
M174: 2024-02-26 | N174: 700 | O174: 700 | P174: 695 | Q174: 698 | R174: 29976 | S174: 20.3325 | T174: 5.41 | U174: 20.21 | AB174: 686.5855158 | AC174: 514.9391368 | AD174: 343.2927579 | AE174: 171.6463789 | AH174: 516.0813309 | AI174: 387.0609982 | AJ174: 258.0406654 | AK174: 129.0203327 | AL174: 64.51016636
M175: 2024-02-23 | N175: 701 | O175: 703 | P175: 696 | Q175: 697 | R175: 48404 | S175: 20.3034 | T175: 5.4 | U175: 20.18 | AB175: 686.5855158 | AC175: 514.9391368 | AD175: 343.2927579 | AE175: 171.6463789 | AH175: 516.0813309 | AI175: 387.0609982 | AJ175: 258.0406654 | AK175: 129.0203327 | AL175: 64.51016636
M176: 2024-02-22 | N176: 695 | O176: 695 | P176: 685 | Q176: 692 | R176: 34269 | S176: 20.1577 | T176: 5.36 | U176: 20.03 | AB176: 686.5845129 | AC176: 514.9383847 | AD176: 343.2922565 | AE176: 171.6461282 | AH176: 516.2962963 | AI176: 387.2222222 | AJ176: 258.1481481 | AK176: 129.0740741 | AL176: 64.53703704
M177: 2024-02-21 | N177: 678 | O177: 683 | P177: 678 | Q177: 681 | R177: 31980 | S177: 19.8373 | T177: 5.27 | U177: 19.72 | AB177: 686.5862673 | AC177: 514.9397005 | AD177: 343.2931336 | AE177: 171.6465668 | AH177: 516.4179104 | AI177: 387.3134328 | AJ177: 258.2089552 | AK177: 129.1044776 | AL177: 64.55223881
M178: 2024-02-20 | N178: 675 | O178: 688 | P178: 675 | Q178: 687 | R178: 31403 | S178: 20.0121 | T178: 5.32 | U178: 19.89 | AB178: 686.585372 | AC178: 514.939029 | AD178: 343.292686 | AE178: 171.646343 | AH178: 516.8880455 | AI178: 387.6660342 | AJ178: 258.4440228 | AK178: 129.2220114 | AL178: 64.61100569
M179: 2024-02-19 | N179: 674 | O179: 682 | P179: 674 | Q179: 678 | R179: 36366 | S179: 19.7499 | T179: 5.25 | U179: 19.63 | AB179: 686.5846163 | AC179: 514.9384622 | AD179: 343.2923082 | AE179: 171.6461541 | AH179: 516.5413534 | AI179: 387.406015 | AJ179: 258.2706767 | AK179: 129.1353383 | AL179: 64.56766917
M180: 2024-02-16 | N180: 697 | O180: 699 | P180: 683 | Q180: 683 | R180: 48963 | S180: 19.8956 | T180: 5.29 | U180: 19.77 | AB180: 686.5857549 | AC180: 514.9393161 | AD180: 343.2928774 | AE180: 171.6464387 | AH180: 516.5714286 | AI180: 387.4285714 | AJ180: 258.2857143 | AK180: 129.1428571 | AL180: 64.57142857
M181: 2024-02-15 | N181: 709 | O181: 709 | P181: 693 | Q181: 697 | R181: 132263 | S181: 20.3034 | T181: 5.4 | U181: 20.18 | AB181: 686.5839683 | AC181: 514.9379762 | AD181: 343.2919842 | AE181: 171.6459921 | AH181: 516.4461248 | AI181: 387.3345936 | AJ181: 258.2230624 | AK181: 129.1115312 | AL181: 64.5557656
M182: 2024-02-05 | N182: 645 | O182: 647 | P182: 638 | Q182: 646 | R182: 48037 | S182: 18.8178 | T182: 5 | U182: 18.7 | AB182: 686.5845129 | AC182: 514.9383847 | AD182: 343.2922565 | AE182: 171.6461282 | AH182: 516.2962963 | AI182: 387.2222222 | AJ182: 258.1481481 | AK182: 129.0740741 | AL182: 64.53703704
M183: 2024-02-02 | N183: 633 | O183: 635 | P183: 628 | Q183: 635 | R183: 27797 | S183: 18.4973 | T183: 4.92 | U183: 18.38 | AB183: 686.583979 | AC183: 514.9379842 | AD183: 343.2919895 | AE183: 171.6459947 | AH183: 516.8 | AI183: 387.6 | AJ183: 258.4 | AK183: 129.2 | AL183: 64.6
M184: 2024-02-01 | N184: 625 | O184: 628 | P184: 619 | Q184: 628 | R184: 46924 | S184: 18.2934 | T184: 4.86 | U184: 18.18 | AB184: 686.586691 | AC184: 514.9400183 | AD184: 343.2933455 | AE184: 171.6466728 | AH184: 516.2601626 | AI184: 387.195122 | AJ184: 258.1300813 | AK184: 129.0650407 | AL184: 64.53252033
M185: 2024-01-31 | N185: 634 | O185: 637 | P185: 626 | Q185: 628 | R185: 47554 | S185: 18.2934 | T185: 4.86 | U185: 18.18 | AB185: 686.5864191 | AC185: 514.9398144 | AD185: 343.2932096 | AE185: 171.6466048 | AH185: 516.872428 | AI185: 387.654321 | AJ185: 258.436214 | AK185: 129.218107 | AL185: 64.6090535
M186: 2024-01-30 | N186: 642 | O186: 647 | P186: 642 | Q186: 642 | R186: 40398 | S186: 18.7012 | T186: 4.97 | U186: 18.59 | AB186: 686.5864191 | AC186: 514.9398144 | AD186: 343.2932096 | AE186: 171.6466048 | AH186: 516.872428 | AI186: 387.654321 | AJ186: 258.436214 | AK186: 129.218107 | AL186: 64.6090535
M187: 2024-01-29 | N187: 646 | O187: 648 | P187: 644 | Q187: 648 | R187: 29828 | S187: 18.876 | T187: 5.02 | U187: 18.76 | AB187: 686.586957 | AC187: 514.9402177 | AD187: 343.2934785 | AE187: 171.6467392 | AH187: 516.7002012 | AI187: 387.5251509 | AJ187: 258.3501006 | AK187: 129.1750503 | AL187: 64.58752515
M188: 2024-01-26 | N188: 644 | O188: 646 | P188: 639 | Q188: 644 | R188: 44103 | S188: 18.7595 | T188: 4.99 | U188: 18.65 | AB188: 686.5861411 | AC188: 514.9396058 | AD188: 343.2930706 | AE188: 171.6465353 | AH188: 516.3346614 | AI188: 387.250996 | AJ188: 258.1673307 | AK188: 129.0836653 | AL188: 64.54183267
M189: 2024-01-25 | N189: 635 | O189: 642 | P189: 633 | Q189: 642 | R189: 59214 | S189: 18.7012 | T189: 4.97 | U189: 18.59 | AB189: 686.5854634 | AC189: 514.9390975 | AD189: 343.2927317 | AE189: 171.6463658 | AH189: 516.2324649 | AI189: 387.1743487 | AJ189: 258.1162325 | AK189: 129.0581162 | AL189: 64.52905812
M190: 2024-01-24 | N190: 628 | O190: 630 | P190: 624 | Q190: 627 | R190: 29905 | S190: 18.2643 | T190: 4.86 | U190: 18.15 | AB190: 686.586957 | AC190: 514.9402177 | AD190: 343.2934785 | AE190: 171.6467392 | AH190: 516.7002012 | AI190: 387.5251509 | AJ190: 258.3501006 | AK190: 129.1750503 | AL190: 64.58752515
M191: 2024-01-23 | N191: 629 | O191: 629 | P191: 622 | Q191: 628 | R191: 45761 | S191: 18.2934 | T191: 4.86 | U191: 18.18 | AB191: 686.5853058 | AC191: 514.9389793 | AD191: 343.2926529 | AE191: 171.6463264 | AH191: 516.0493827 | AI191: 387.037037 | AJ191: 258.0246914 | AK191: 129.0123457 | AL191: 64.50617284
M192: 2024-01-22 | N192: 633 | O192: 633 | P192: 623 | Q192: 626 | R192: 70829 | S192: 18.2352 | T192: 4.85 | U192: 18.12 | AB192: 686.5864191 | AC192: 514.9398144 | AD192: 343.2932096 | AE192: 171.6466048 | AH192: 516.872428 | AI192: 387.654321 | AJ192: 258.436214 | AK192: 129.218107 | AL192: 64.6090535
M193: 2024-01-19 | N193: 625 | O193: 627 | P193: 614 | Q193: 626 | R193: 176166 | S193: 18.2352 | T193: 4.85 | U193: 18.12 | AB193: 686.5841888 | AC193: 514.9381416 | AD193: 343.2920944 | AE193: 171.6460472 | AH193: 516.2886598 | AI193: 387.2164948 | AJ193: 258.1443299 | AK193: 129.0721649 | AL193: 64.53608247
M194: 2024-01-18 | N194: 586 | O194: 589 | P194: 585 | Q194: 588 | R194: 36746 | S194: 17.1282 | T194: 4.55 | U194: 17.02 | AB194: 686.5841888 | AC194: 514.9381416 | AD194: 343.2920944 | AE194: 171.6460472 | AH194: 516.2886598 | AI194: 387.2164948 | AJ194: 258.1443299 | AK194: 129.0721649 | AL194: 64.53608247
M195: 2024-01-17 | N195: 583 | O195: 584 | P195: 578 | Q195: 581 | R195: 46857 | S195: 16.9243 | T195: 4.5 | U195: 16.82 | AB195: 686.5870319 | AC195: 514.9402739 | AD195: 343.293516 | AE195: 171.646758 | AH195: 516.9230769 | AI195: 387.6923077 | AJ195: 258.4615385 | AK195: 129.2307692 | AL195: 64.61538462
M196: 2024-01-16 | N196: 581 | O196: 588 | P196: 579 | Q196: 580 | R196: 28889 | S196: 16.8952 | T196: 4.49 | U196: 16.79 | AB196: =AB$1*$Q195/$S195 -> 686.5867421 | AC196: =AC$1*$Q195/$S195 -> 514.9400566 | AD196: 343.2933711 | AE196: 171.6466855 | AH196: =AH$1*$Q195/$T195 -> 516.4444444 | AI196: 387.3333333 | AJ196: 258.2222222 | AK196: 129.1111111 | AL196: =AL$1*$Q195/$T195 -> 64.55555556
M197: 2024-01-15 | N197: 590 | O197: 590 | P197: 585 | Q197: 586 | R197: 21900 | S197: 17.07 | T197: 4.54 | U197: 16.97 | AB197: 686.5855391 | AC197: 514.9391543 | AD197: 343.2927695 | AE197: 171.6463848 | AH197: 516.7037862 | AI197: 387.5278396 | AJ197: 258.3518931 | AK197: 129.1759465 | AL197: 64.58797327
M198: 2024-01-12 | N198: 581 | O198: 588 | P198: 581 | Q198: 584 | R198: 17636 | S198: 17.0117 | T198: 4.52 | U198: 16.91 | AB198: 686.5846514 | AC198: 514.9384886 | AD198: 343.2923257 | AE198: 171.6461629 | AH198: 516.2995595 | AI198: 387.2246696 | AJ198: 258.1497797 | AK198: 129.0748899 | AL198: 64.53744493
M199: 2024-01-11 | N199: 586 | O199: 589 | P199: 583 | Q199: 586 | R199: 27842 | S199: 17.07 | T199: 4.54 | U199: 16.97 | AB199: 686.5862906 | AC199: 514.939718 | AD199: 343.2931453 | AE199: 171.6465727 | AH199: 516.8141593 | AI199: 387.6106195 | AJ199: 258.4070796 | AK199: 129.2035398 | AL199: 64.60176991
M200: 2024-01-10 | N200: 581 | O200: 586 | P200: 580 | Q200: 584 | R200: 13708 | S200: 17.0117 | T200: 4.52 | U200: 16.91 | AB200: 686.5846514 | AC200: 514.9384886 | AD200: 343.2923257 | AE200: 171.6461629 | AH200: 516.2995595 | AI200: 387.2246696 | AJ200: 258.1497797 | AK200: 129.0748899 | AL200: 64.53744493
... 102 more rows

Sheet 月營收資訊
A1: 2330 台積電
A2: 年月 | B2: 單月營收(千元) | C2: 單月營收成長率％ | D2: 單月營收與上月比％ | E2: 累計營收(千元) | F2: 累計營收成長率％ | G2: 合併單月營收(千元) | H2: 合併累計營收(千元) | I2: 合併單月營收成長率％ | J2: 合併單月營收與上月比％ | M2: 月營收預估表(以過去資料推估未來12個月)
A3: 2024-10-30 | B3: 314239713 | C3: 29.21 | D3: 24.76 | E3: 2340086234 | F3: 31.51 | G3: 314239713 | H3: 2340086234 | I3: 29.21 | J3: 24.76 | L3: 營收比重(以過去24個月的單月佔全年營收比重推估) | M3: 年月 | N3: 單月營收(千)以過去推估 | O3: 單月營收(千)研究員估 | Q3: 年月 | R3: 單月營收(千) | S3: 累計營收(千) | T3: 累計營收成長(%) | U3: 單月營收月變動 (%) | X3: 年月
A4: 2024-09-30 | B4: 251872717 | C4: 39.6 | D4: 0.4 | E4: 2025846521 | F4: 31.87 | G4: 251872717 | H4: 2025846521 | I4: 39.6 | J4: 0.4 | L4: =(B3+B15)/SUM(B3:B26) -> 0.1133684182 | M4: =Q4 -> 2025/10 | N4: =SUM($B$4:$B$15)*(1+輸入預估參數!$E$15/100)*L4*0.4+N5*0.6 -> 337348905.3 | Q4: =LEFT(Q16,4)+1&"/" & RIGHT(Q16,2) -> 2025/10 | R4: =IF(O4<>0,O4,N4) -> 337348905.3 | S4: =IF(V4<>"-",V4,W4) -> 2966117563 | T4: =(S4-S16)/S16*100 -> 26.75248971 | U4: =(R4-R5)/R5*100 -> 10.98836531 | V4: =IF(RIGHT(Q4,2)="01",SUM(R4),IF(RIGHT(Q4,2)="02",SUM(R4:R5),IF(RIGHT(Q4,2)="03",SUM(R4:R6),IF(RIGHT(Q4,2)="04",SUM(R4:R7),IF(RIGHT(Q4,2)="05",SUM(R4:R8),IF(RIGHT(Q4,2)="06",SUM(R4:R9),"-")))))) -> - | W4: =IF(RIGHT(Q4,2)="07",SUM(R4:R10),IF(RIGHT(Q4,2)="08",SUM(R4:R11),IF(RIGHT(Q4,2)="09",SUM(R4:R12),IF(RIGHT(Q4,2)="10",SUM(R4:R13),IF(RIGHT(Q4,2)="11",SUM(R4:R14),IF(RIGHT(Q4,2)="12",SUM(R4:R15),"-")))))) -> 2966117563 | X4: =Q4 -> 2025/10 | Y4: =IF(O20<>0,N20,N20) -> 337348905.3 | Z4: =IF(AC4<>"-",AC4,AD4) -> 2966117563 | AA4: =(Z4-Z16)/Z16*100 -> 26.75248971 | AB4: =(Y4-Y5)/Y5*100 -> 10.98836531 | AC4: =IF(RIGHT(X4,2)="01",SUM(Y4),IF(RIGHT(X4,2)="02",SUM(Y4:Y5),IF(RIGHT(X4,2)="03",SUM(Y4:Y6),IF(RIGHT(X4,2)="04",SUM(Y4:Y7),IF(RIGHT(X4,2)="05",SUM(Y4:Y8),IF(RIGHT(X4,2)="06",SUM(Y4:Y9),"-")))))) -> - | AD4: =IF(RIGHT(X4,2)="07",SUM(Y4:Y10),IF(RIGHT(X4,2)="08",SUM(Y4:Y11),IF(RIGHT(X4,2)="09",SUM(Y4:Y12),IF(RIGHT(X4,2)="10",SUM(Y4:Y13),IF(RIGHT(X4,2)="11",SUM(Y4:Y14),IF(RIGHT(X4,2)="12",SUM(Y4:Y15),"-")))))) -> 2966117563
A5: 2024-08-30 | B5: 250866368 | C5: 32.95 | D5: -2.37 | E5: 1773973804 | F5: 30.85 | G5: 250866368 | H5: 1773973804 | I5: 32.95 | J5: -2.37 | L5: 0.08981773096 | M5: =Q5 -> 2025/09 | N5: =SUM($B$4:$B$15)*(1+輸入預估參數!$E$15/100)*L5*0.4+N6*0.6 -> 303949791.8 | Q5: 2025/09 | R5: =IF(O5<>0,O5,N5) -> 303949791.8 | S5: =IF(V5<>"-",V5,W5) -> 2628768658 | T5: =(S5-S17)/S17*100 -> 29.76149133 | U5: =(R5-R6)/R6*100 -> 0.6648118241 | V5: =IF(RIGHT(Q5,2)="01",SUM(R5),IF(RIGHT(Q5,2)="02",SUM(R5:R6),IF(RIGHT(Q5,2)="03",SUM(R5:R7),IF(RIGHT(Q5,2)="04",SUM(R5:R8),IF(RIGHT(Q5,2)="05",SUM(R5:R9),IF(RIGHT(Q5,2)="06",SUM(R5:R10),"-")))))) -> - | W5: =IF(RIGHT(Q5,2)="07",SUM(R5:R11),IF(RIGHT(Q5,2)="08",SUM(R5:R12),IF(RIGHT(Q5,2)="09",SUM(R5:R13),IF(RIGHT(Q5,2)="10",SUM(R5:R14),IF(RIGHT(Q5,2)="11",SUM(R5:R15),IF(RIGHT(Q5,2)="12",SUM(R5:R16),"-")))))) -> 2628768658 | X5: =Q5 -> 2025/09 | Y5: =IF(O21<>0,N21,N21) -> 303949791.8 | Z5: =IF(AC5<>"-",AC5,AD5) -> 2628768658 | AA5: =(Z5-Z17)/Z17*100 -> 29.76149133 | AB5: =(Y5-Y6)/Y6*100 -> 0.6648118241 | AC5: =IF(RIGHT(X5,2)="01",SUM(Y5),IF(RIGHT(X5,2)="02",SUM(Y5:Y6),IF(RIGHT(X5,2)="03",SUM(Y5:Y7),IF(RIGHT(X5,2)="04",SUM(Y5:Y8),IF(RIGHT(X5,2)="05",SUM(Y5:Y9),IF(RIGHT(X5,2)="06",SUM(Y5:Y10),"-")))))) -> - | AD5: =IF(RIGHT(X5,2)="07",SUM(Y5:Y11),IF(RIGHT(X5,2)="08",SUM(Y5:Y12),IF(RIGHT(X5,2)="09",SUM(Y5:Y13),IF(RIGHT(X5,2)="10",SUM(Y5:Y14),IF(RIGHT(X5,2)="11",SUM(Y5:Y15),IF(RIGHT(X5,2)="12",SUM(Y5:Y16),"-")))))) -> 2628768658
A6: 2024-07-31 | B6: 256953058 | C6: 44.67 | D6: 23.61 | E6: 1523107436 | F6: 30.5 | G6: 256953058 | H6: 1523107436 | I6: 44.67 | J6: 23.61 | L6: 0.09215926649 | M6: 2025/08 | N6: =SUM($B$4:$B$15)*(1+輸入預估參數!$E$15/100)*L6*0.4+N7*0.6 -> 301942442.7 | Q6: 2025/08 | R6: 301942442.7 | S6: 2324818866 | T6: 31.05147667 | U6: 2.959992908 | V6: - | W6: 2324818866 | X6: 2025/08 | Y6: 301942442.7 | Z6: 2324818866 | AA6: 31.05147667 | AB6: 2.959992908 | AC6: - | AD6: 2324818866
A7: 2024-06-28 | B7: 207868693 | C7: 32.9 | D7: -9.47 | E7: 1266154378 | F7: 27.96 | G7: 207868693 | H7: 1266154378 | I7: 32.9 | J7: -9.47 | L7: 0.09174408635 | M7: 2025/07 | N7: =SUM($B$4:$B$15)*(1+輸入預估參數!$E$15/100)*L7*0.4+N8*0.6 -> 293261911 | Q7: 2025/07 | R7: 293261911 | S7: 2022876423 | T7: 32.81245796 | U7: 4.833628598 | V7: - | W7: 2022876423 | X7: 2025/07 | Y7: 293261911 | Z7: 2022876423 | AA7: 32.81245796 | AB7: 4.833628598 | AC7: - | AD7: 2022876423
A8: 2024-05-31 | B8: 229620372 | C8: 30.07 | D8: -2.71 | E8: 1058285685 | F8: 27.03 | G8: 229620372 | H8: 1058285685 | I8: 30.07 | J8: -2.71 | L8: 0.07806017494 | M8: 2025/06 | N8: =SUM($B$4:$B$15)*(1+輸入預估參數!$E$15/100)*L8*0.4+N9*0.6 -> 279740303.7 | Q8: 2025/06 | R8: 279740303.7 | S8: 1729614512 | T8: 36.60376193 | U8: -2.99650959 | V8: 1729614512 | W8: - | X8: 2025/06 | Y8: 279740303.7 | Z8: 1729614512 | AA8: 36.60376193 | AB8: -2.99650959 | AC8: 1729614512 | AD8: -
A9: 2024-04-30 | B9: 236021112 | C9: 59.58 | D9: 20.91 | E9: 828665313 | F9: 26.22 | G9: 236021112 | H9: 828665313 | I9: 59.58 | J9: 20.91 | L9: 0.08763654555 | M9: 2025/05 | N9: =SUM($B$4:$B$15)*(1+輸入預估參數!$E$15/100)*L9*0.4+N10*0.6 -> 288381688.6 | Q9: 2025/05 | R9: 288381688.6 | S9: 1449874208 | T9: 37.00215632 | U9: 2.639642057 | V9: 1449874208 | W9: - | X9: 2025/05 | Y9: 288381688.6 | Z9: 1449874208 | AA9: 37.00215632 | AB9: 2.639642057 | AC9: 1449874208 | AD9: -
A10: 2024-03-29 | B10: 195210804 | C10: 34.25 | D10: 7.47 | E10: 592644201 | F10: 16.52 | G10: 195210804 | H10: 592644201 | I10: 34.25 | J10: 7.47 | L10: 0.08363094831 | M10: 2025/04 | N10: =SUM($B$4:$B$15)*(1+輸入預估參數!$E$15/100)*L10*0.4+N11*0.6 -> 280965212.7 | Q10: 2025/04 | R10: 280965212.7 | S10: 1161492520 | T10: 40.16424987 | U10: 1.164598473 | V10: 1161492520 | W10: - | X10: 2025/04 | Y10: 280965212.7 | Z10: 1161492520 | AA10: 40.16424987 | AB10: 1.164598473 | AC10: 1161492520 | AD10: -
A11: 2024-02-29 | B11: 181648270 | C11: 11.32 | D11: -15.82 | E11: 397433397 | F11: 9.42 | G11: 181648270 | H11: 397433397 | I11: 11.32 | J11: -15.82 | L11: 0.07523844264 | M11: 2025/03 | N11: =SUM($B$4:$B$15)*(1+輸入預估參數!$E$15/100)*L11*0.4+N12*0.6 -> 277730764.5 | Q11: 2025/03 | R11: 277730764.5 | S11: 880527307.2 | T11: 48.57604372 | U11: -4.710990029 | V11: 880527307.2 | W11: - | X11: 2025/03 | Y11: 277730764.5 | Z11: 880527307.2 | AA11: 48.57604372 | AB11: -4.710990029 | AC11: 880527307.2 | AD11: -
A12: 2024-01-31 | B12: 215785127 | C12: 7.87 | D12: 22.4 | E12: 215785127 | F12: 7.87 | G12: 215785127 | H12: 215785127 | I12: 7.87 | J12: 22.4 | L12: 0.07655996992 | M12: 2025/02 | N12: =SUM($B$4:$B$15)*(1+輸入預估參數!$E$15/100)*L12*0.4+N13*0.6 -> 291461486 | Q12: 2025/02 | R12: 291461486 | S12: 602796542.7 | T12: 51.6723424 | U12: -6.383338559 | V12: 602796542.7 | W12: - | X12: 2025/02 | Y12: 291461486 | Z12: 602796542.7 | AA12: 51.6723424 | AB12: -6.383338559 | AC12: 602796542.7 | AD12: -
A13: 2023-12-29 | B13: 176299866 | C13: -8.44 | D13: -14.43 | E13: 2161735841 | F13: -4.51 | G13: 176299866 | H13: 2161735841 | I13: -8.44 | J13: -14.43 | L13: 0.09304401402 | M13: 2025/01 | N13: =SUM($B$4:$B$15)*(1+輸入預估參數!$E$15/100)*L13*0.4+N14*0.6 -> 311335056.7 | Q13: 2025/01 | R13: 311335056.7 | S13: 311335056.7 | T13: 44.28012767 | U13: 1.444962369 | V13: 311335056.7 | W13: - | X13: 2025/01 | Y13: 311335056.7 | Z13: 311335056.7 | AA13: 44.28012767 | AB13: 1.444962369 | AC13: 311335056.7 | AD13: -
A14: 2023-11-30 | B14: 206026179 | C14: -7.49 | D14: -15.29 | E14: 1985435975 | F14: -4.15 | G14: 206026179 | H14: 1985435975 | I14: -7.49 | J14: -15.29 | L14: 0.08334640423 | M14: 2024/12 | N14: =SUM($B$4:$B$15)*(1+輸入預估參數!$E$15/100)*L14*0.4+N15*0.6 -> 306900460.6 | Q14: 2024/12 | R14: 306900460.6 | S14: 2968591177 | T14: 37.32441867 | U14: -4.572082323 | V14: - | W14: 2968591177 | X14: 2024/12 | Y14: 306900460.6 | Z14: 2968591177 | AA14: 37.32441867 | AB14: -4.572082323 | AC14: - | AD14: 2968591177
A15: 2023-10-31 | B15: 243202811 | C15: 15.66 | D15: 34.79 | E15: 1779409796 | F15: -3.74 | G15: 243202811 | H15: 1779409796 | I15: 15.66 | J15: 34.79 | L15: 0.09733494849 | M15: 2024/11 | N15: =SUM($B$4:$B$15)*(1+輸入預估參數!$E$15/100)*L15*0.4+B3*0.6 -> 321604482.2 | Q15: =LEFT(Q27,4)+1&"/" & RIGHT(Q27,2) -> 2024/11 | R15: 321604482.2 | S15: 2661690716 | T15: 34.060768 | U15: 2.343678706 | V15: - | W15: 2661690716 | X15: 2024/11 | Y15: 321604482.2 | Z15: 2661690716 | AA15: 34.060768 | AB15: 2.343678706 | AC15: - | AD15: 2661690716
A16: 2023-09-28 | B16: 180430282 | C16: -13.36 | D16: -4.38 | E16: 1536206985 | F16: -6.24 | G16: 180430282 | H16: 1536206985 | I16: -13.36 | J16: -4.38 | Q16: =YEAR(A3)&"/"&IF(MONTH(A3)<=9,"0"&MONTH(A3),MONTH(A3)) -> 2024/10 | R16: =B3 -> 314239713 | S16: =E3 -> 2340086234 | T16: =F3 -> 31.51 | U16: =D3 -> 24.76 | X16: 2024/10 | Y16: =G3 -> 314239713 | Z16: =H3 -> 2340086234 | AA16: =I3 -> 29.21 | AB16: =J3 -> 24.76
A17: 2023-08-31 | B17: 188686256 | C17: -13.5 | D17: 6.23 | E17: 1355776703 | F17: -5.2 | G17: 188686256 | H17: 1355776703 | I17: -13.5 | J17: 6.23 | Q17: 2024/09 | R17: =B4 -> 251872717 | S17: =E4 -> 2025846521 | T17: =F4 -> 31.87 | U17: =D4 -> 0.4 | X17: 2024/09 | Y17: =G4 -> 251872717 | Z17: =H4 -> 2025846521 | AA17: =I4 -> 39.6 | AB17: =J4 -> 0.4
A18: 2023-07-31 | B18: 177616220 | C18: -4.9 | D18: 13.56 | E18: 1167090447 | F18: -3.7 | G18: 177616220 | H18: 1167090447 | I18: -4.9 | J18: 13.56 | M18: 合併月營收預估表(以過去資料推估未來12個月) | Q18: 2024/08 | R18: 250866368 | S18: 1773973804 | T18: 30.85 | U18: -2.37 | X18: 2024/08 | Y18: 250866368 | Z18: 1773973804 | AA18: 32.95 | AB18: -2.37
A19: 2023-06-30 | B19: 156404174 | C19: -11.07 | D19: -11.4 | E19: 989474227 | F19: -3.49 | G19: 156404174 | H19: 989474227 | I19: -11.07 | J19: -11.4 | L19: 營收比重(以過去24個月的單月佔全年營收比重推估) | M19: 年月 | N19: 單月營收(千)以過去推估 | O19: 單月營收(千)研究員估 | Q19: 2024/07 | R19: 256953058 | S19: 1523107436 | T19: 30.5 | U19: 23.61 | X19: 2024/07 | Y19: 256953058 | Z19: 1523107436 | AA19: 44.67 | AB19: 23.61
A20: 2023-05-31 | B20: 176537345 | C20: -4.94 | D20: 19.36 | E20: 833070053 | F20: -1.92 | G20: 176537345 | H20: 833070053 | I20: -4.94 | J20: 19.36 | L20: =(G3+G15)/SUM(G3:G26) -> 0.1133684182 | M20: =Q4 -> 2025/10 | N20: =SUM($G$4:$G$15)*(1+輸入預估參數!$E$15/100)*L20*0.4+N21*0.6 -> 337348905.3 | Q20: 2024/06 | R20: 207868693 | S20: 1266154378 | T20: 27.96 | U20: -9.47 | X20: 2024/06 | Y20: 207868693 | Z20: 1266154378 | AA20: 32.9 | AB20: -9.47
A21: 2023-04-28 | B21: 147899735 | C21: -14.29 | D21: 1.71 | E21: 656532708 | F21: -1.07 | G21: 147899735 | H21: 656532708 | I21: -14.29 | J21: 1.71 | L21: 0.08981773096 | M21: =Q5 -> 2025/09 | N21: =SUM($G$4:$G$15)*(1+輸入預估參數!$E$15/100)*L21*0.4+N22*0.6 -> 303949791.8 | Q21: 2024/05 | R21: 229620372 | S21: 1058285685 | T21: 27.03 | U21: -2.71 | X21: 2024/05 | Y21: 229620372 | Z21: 1058285685 | AA21: 30.07 | AB21: -2.71
A22: 2023-03-31 | B22: 145408332 | C22: -15.44 | D22: -10.89 | E22: 508632973 | F22: 3.58 | G22: 145408332 | H22: 508632973 | I22: -15.44 | J22: -10.89 | L22: 0.09215926649 | M22: 2025/08 | N22: =SUM($G$4:$G$15)*(1+輸入預估參數!$E$15/100)*L22*0.4+N23*0.6 -> 301942442.7 | Q22: 2024/04 | R22: 236021112 | S22: 828665313 | T22: 26.22 | U22: 20.91 | X22: 2024/04 | Y22: 236021112 | Z22: 828665313 | AA22: 59.58 | AB22: 20.91
A23: 2023-02-24 | B23: 163174097 | C23: 11.05 | D23: -18.43 | E23: 363224641 | F23: 13.82 | G23: 163174097 | H23: 363224641 | I23: 11.05 | J23: -18.43 | L23: 0.09174408635 | M23: 2025/07 | N23: =SUM($G$4:$G$15)*(1+輸入預估參數!$E$15/100)*L23*0.4+N24*0.6 -> 293261911 | Q23: 2024/03 | R23: 195210804 | S23: 592644201 | T23: 16.52 | U23: 7.47 | X23: 2024/03 | Y23: 195210804 | Z23: 592644201 | AA23: 34.25 | AB23: 7.47
A24: 2023-01-31 | B24: 200050544 | C24: 16.19 | D24: 3.89 | E24: 200050544 | F24: 16.19 | G24: 200050544 | H24: 200050544 | I24: 16.19 | J24: 3.89 | L24: 0.07806017494 | M24: 2025/06 | N24: =SUM($G$4:$G$15)*(1+輸入預估參數!$E$15/100)*L24*0.4+N25*0.6 -> 279740303.7 | Q24: 2024/02 | R24: 181648270 | S24: 397433397 | T24: 9.42 | U24: -15.82 | X24: 2024/02 | Y24: 181648270 | Z24: 397433397 | AA24: 11.32 | AB24: -15.82
A25: 2022-12-30 | B25: 192560242 | C25: 23.93 | D25: -13.54 | E25: 2263891292 | F25: 42.61 | G25: 192560242 | H25: 2263891292 | I25: 23.93 | J25: -13.54 | L25: 0.08763654555 | M25: 2025/05 | N25: =SUM($G$4:$G$15)*(1+輸入預估參數!$E$15/100)*L25*0.4+N26*0.6 -> 288381688.6 | Q25: 2024/01 | R25: 215785127 | S25: 215785127 | T25: 7.87 | U25: 22.4 | X25: 2024/01 | Y25: 215785127 | Z25: 215785127 | AA25: 7.87 | AB25: 22.4
A26: 2022-11-30 | B26: 222705993 | C26: 50.21 | D26: 5.92 | E26: 2071331050 | F26: 44.64 | G26: 222705993 | H26: 2071331050 | I26: 50.21 | J26: 5.92 | L26: 0.08363094831 | M26: 2025/04 | N26: =SUM($G$4:$G$15)*(1+輸入預估參數!$E$15/100)*L26*0.4+N27*0.6 -> 280965212.7 | Q26: 2023/12 | R26: 176299866 | S26: 2161735841 | T26: -4.51 | U26: -14.43 | X26: 2023/12 | Y26: 176299866 | Z26: 2161735841 | AA26: -8.44 | AB26: -14.43
A27: 2022-10-31 | B27: 210265633 | C27: 56.29 | D27: 0.97 | E27: 1848625057 | F27: 44 | G27: 210265633 | H27: 1848625057 | I27: 56.29 | J27: 0.97 | L27: 0.07523844264 | M27: 2025/03 | N27: =SUM($G$4:$G$15)*(1+輸入預估參數!$E$15/100)*L27*0.4+N28*0.6 -> 277730764.5 | Q27: 2023/11 | R27: 206026179 | S27: 1985435975 | T27: -4.15 | U27: -15.29 | X27: 2023/11 | Y27: 206026179 | Z27: 1985435975 | AA27: -7.49 | AB27: -15.29
A28: 2022-09-30 | B28: 208247663 | C28: 36.39 | D28: -4.53 | E28: 1638359424 | F28: 42.56 | G28: 208247663 | H28: 1638359424 | I28: 36.39 | J28: -4.53 | L28: 0.07655996992 | M28: 2025/02 | N28: =SUM($G$4:$G$15)*(1+輸入預估參數!$E$15/100)*L28*0.4+N29*0.6 -> 291461486 | Q28: 2023/10 | R28: 243202811 | S28: 1779409796 | T28: -3.74 | U28: 34.79 | X28: 2023/10 | Y28: 243202811 | Z28: 1779409796 | AA28: 15.66 | AB28: 34.79
A29: 2022-08-31 | B29: 218132391 | C29: 58.73 | D29: 16.8 | E29: 1430111761 | F29: 43.51 | G29: 218132391 | H29: 1430111761 | I29: 58.73 | J29: 16.8 | L29: 0.09304401402 | M29: 2025/01 | N29: =SUM($G$4:$G$15)*(1+輸入預估參數!$E$15/100)*L29*0.4+N30*0.6 -> 311335056.7 | Q29: 2023/09 | R29: 180430282 | S29: 1536206985 | T29: -6.24 | U29: -4.38 | X29: 2023/09 | Y29: 180430282 | Z29: 1536206985 | AA29: -13.36 | AB29: -4.38
A30: 2022-07-29 | B30: 186762689 | C30: 49.94 | D30: 6.19 | E30: 1211979370 | F30: 41.07 | G30: 186762689 | H30: 1211979370 | I30: 49.94 | J30: 6.19 | L30: 0.08334640423 | M30: 2024/12 | N30: =SUM($G$4:$G$15)*(1+輸入預估參數!$E$15/100)*L30*0.4+N31*0.6 -> 306900460.6 | Q30: 2023/08 | R30: 188686256 | S30: 1355776703 | T30: -5.2 | U30: 6.23 | X30: 2023/08 | Y30: 188686256 | Z30: 1355776703 | AA30: -13.5 | AB30: 6.23
A31: 2022-06-30 | B31: 175874001 | C31: 18.46 | D31: -5.29 | E31: 1025216681 | F31: 39.57 | G31: 175874001 | H31: 1025216681 | I31: 18.46 | J31: -5.29 | L31: 0.09733494849 | M31: 2024/11 | N31: =SUM($G$4:$G$15)*(1+輸入預估參數!$E$15/100)*L31*0.4+G3*0.6 -> 321604482.2 | Q31: 2023/07 | R31: 177616220 | S31: 1167090447 | T31: -3.7 | U31: 13.56 | X31: 2023/07 | Y31: 177616220 | Z31: 1167090447 | AA31: -4.9 | AB31: 13.56
A32: 2022-05-31 | B32: 185705425 | C32: 65.28 | D32: 7.62 | E32: 849342680 | F32: 44.92 | G32: 185705425 | H32: 849342680 | I32: 65.28 | J32: 7.62 | Q32: 2023/06 | R32: 156404174 | S32: 989474227 | T32: -3.49 | U32: -11.4 | X32: 2023/06 | Y32: 156404174 | Z32: 989474227 | AA32: -11.07 | AB32: -11.4
A33: 2022-04-29 | B33: 172561382 | C33: 55.02 | D33: 0.35 | E33: 663637255 | F33: 40.09 | G33: 172561382 | H33: 663637255 | I33: 55.02 | J33: 0.35 | Q33: 2023/05 | R33: 176537345 | S33: 833070053 | T33: -1.92 | U33: 19.36 | X33: 2023/05 | Y33: 176537345 | Z33: 833070053 | AA33: -4.94 | AB33: 19.36
A34: 2022-03-31 | B34: 171966525 | C34: 33.18 | D34: 17.04 | E34: 491075873 | F34: 35.5 | G34: 171966525 | H34: 491075873 | I34: 33.18 | J34: 17.04 | Q34: 2023/04 | R34: 147899735 | S34: 656532708 | T34: -1.07 | U34: 1.71 | X34: 2023/04 | Y34: 147899735 | Z34: 656532708 | AA34: -14.29 | AB34: 1.71
A35: 2022-02-25 | B35: 146933238 | C35: 37.92 | D35: -14.66 | E35: 319109348 | F35: 36.79 | G35: 146933238 | H35: 319109348 | I35: 37.92 | J35: -14.66 | Q35: 2023/03 | R35: 145408332 | S35: 508632973 | T35: 3.58 | U35: -10.89 | X35: 2023/03 | Y35: 145408332 | Z35: 508632973 | AA35: -15.44 | AB35: -10.89
A36: 2022-01-26 | B36: 172176110 | C36: 35.84 | D36: 10.81 | E36: 172176110 | F36: 35.84 | G36: 172176110 | H36: 172176110 | I36: 35.84 | J36: 10.81 | Q36: 2023/02 | R36: 163174097 | S36: 363224641 | T36: 13.82 | U36: -18.43 | X36: 2023/02 | Y36: 163174097 | Z36: 363224641 | AA36: 11.05 | AB36: -18.43
A37: 2021-12-30 | B37: 155382230 | C37: 32.39 | D37: 4.8 | E37: 1587415037 | F37: 18.53 | G37: 155382230 | H37: 1587415037 | I37: 32.39 | J37: 4.8 | Q37: 2023/01 | R37: 200050544 | S37: 200050544 | T37: 16.19 | U37: 3.89 | X37: 2023/01 | Y37: 200050544 | Z37: 200050544 | AA37: 16.19 | AB37: 3.89
A38: 2021-11-30 | B38: 148267599 | C38: 18.74 | D38: 10.2 | E38: 1432032807 | F38: 17.2 | G38: 148267599 | H38: 1432032807 | I38: 18.74 | J38: 10.2 | Q38: 2022/12 | R38: 192560242 | S38: 2263891292 | T38: 42.61 | U38: -13.54 | X38: 2022/12 | Y38: 192560242 | Z38: 2263891292 | AA38: 23.93 | AB38: -13.54
Q39: 2022/11 | R39: 222705993 | S39: 2071331050 | T39: 44.64 | U39: 5.92 | X39: 2022/11 | Y39: 222705993 | Z39: 2071331050 | AA39: 50.21 | AB39: 5.92
Q40: 2022/10 | R40: 210265633 | S40: 1848625057 | T40: 44 | U40: 0.97 | X40: 2022/10 | Y40: 210265633 | Z40: 1848625057 | AA40: 56.29 | AB40: 0.97
Q41: 2022/09 | R41: 208247663 | S41: 1638359424 | T41: 42.56 | U41: -4.53 | X41: 2022/09 | Y41: 208247663 | Z41: 1638359424 | AA41: 36.39 | AB41: -4.53
Q42: 2022/08 | R42: 218132391 | S42: 1430111761 | T42: 43.51 | U42: 16.8 | X42: 2022/08 | Y42: 218132391 | Z42: 1430111761 | AA42: 58.73 | AB42: 16.8
Q43: 2022/07 | R43: 186762689 | S43: 1211979370 | T43: 41.07 | U43: 6.19 | X43: 2022/07 | Y43: 186762689 | Z43: 1211979370 | AA43: 49.94 | AB43: 6.19
Q44: 2022/06 | R44: 175874001 | S44: 1025216681 | T44: 39.57 | U44: -5.29 | X44: 2022/06 | Y44: 175874001 | Z44: 1025216681 | AA44: 18.46 | AB44: -5.29
Q45: 2022/05 | R45: 185705425 | S45: 849342680 | T45: 44.92 | U45: 7.62 | X45: 2022/05 | Y45: 185705425 | Z45: 849342680 | AA45: 65.28 | AB45: 7.62
Q46: 2022/04 | R46: 172561382 | S46: 663637255 | T46: 40.09 | U46: 0.35 | X46: 2022/04 | Y46: 172561382 | Z46: 663637255 | AA46: 55.02 | AB46: 0.35
Q47: 2022/03 | R47: 171966525 | S47: 491075873 | T47: 35.5 | U47: 17.04 | X47: 2022/03 | Y47: 171966525 | Z47: 491075873 | AA47: 33.18 | AB47: 17.04
Q48: 2022/02 | R48: 146933238 | S48: 319109348 | T48: 36.79 | U48: -14.66 | X48: 2022/02 | Y48: 146933238 | Z48: 319109348 | AA48: 37.92 | AB48: -14.66
Q49: 2022/01 | R49: 172176110 | S49: 172176110 | T49: 35.84 | U49: 10.81 | X49: 2022/01 | Y49: 172176110 | Z49: 172176110 | AA49: 35.84 | AB49: 10.81
Q50: 2021/12 | R50: 155382230 | S50: 1587415037 | T50: 18.53 | U50: 4.8 | X50: 2021/12 | Y50: 155382230 | Z50: 1587415037 | AA50: 32.39 | AB50: 4.8
Q51: =YEAR(A38)&"/"&IF(MONTH(A38)<=9,"0"&MONTH(A38),MONTH(A38)) -> 2021/11 | R51: 148267599 | S51: 1432032807 | T51: 17.2 | U51: 10.2 | X51: 2021/11 | Y51: 148267599 | Z51: 1432032807 | AA51: 18.74 | AB51: 10.2

Sheet 季報含預估
A1: 2330
A2: 年季 | B2: =YEAR(IFRS財報_For預估用!B2)&IF(MONTH(IFRS財報_For預估用!B2)<12,"0"&MONTH(IFRS財報_For預估用!B2),MONTH(IFRS財報_For預估用!B2)) -> 202209 | C2: =YEAR(IFRS財報_For預估用!C2)&IF(MONTH(IFRS財報_For預估用!C2)<12,"0"&MONTH(IFRS財報_For預估用!C2),MONTH(IFRS財報_For預估用!C2)) -> 202212 | D2: =YEAR(IFRS財報_For預估用!D2)&IF(MONTH(IFRS財報_For預估用!D2)<12,"0"&MONTH(IFRS財報_For預估用!D2),MONTH(IFRS財報_For預估用!D2)) -> 202303 | E2: =YEAR(IFRS財報_For預估用!E2)&IF(MONTH(IFRS財報_For預估用!E2)<12,"0"&MONTH(IFRS財報_For預估用!E2),MONTH(IFRS財報_For預估用!E2)) -> 202306 | F2: =YEAR(IFRS財報_For預估用!F2)&IF(MONTH(IFRS財報_For預估用!F2)<12,"0"&MONTH(IFRS財報_For預估用!F2),MONTH(IFRS財報_For預估用!F2)) -> 202309 | G2: =YEAR(IFRS財報_For預估用!G2)&IF(MONTH(IFRS財報_For預估用!G2)<12,"0"&MONTH(IFRS財報_For預估用!G2),MONTH(IFRS財報_For預估用!G2)) -> 202312 | H2: =YEAR(IFRS財報_For預估用!H2)&IF(MONTH(IFRS財報_For預估用!H2)<12,"0"&MONTH(IFRS財報_For預估用!H2),MONTH(IFRS財報_For預估用!H2)) -> 202403 | I2: =YEAR(IFRS財報_For預估用!I2)&IF(MONTH(IFRS財報_For預估用!I2)<12,"0"&MONTH(IFRS財報_For預估用!I2),MONTH(IFRS財報_For預估用!I2)) -> 202406 | J2: =LEFT(F2,4)+1 &RIGHT(F2,2) -> 202409 | K2: =LEFT(G2,4)+1 &RIGHT(G2,2) -> 202412 | L2: =LEFT(H2,4)+1 &RIGHT(H2,2) -> 202503 | M2: =LEFT(I2,4)+1 &RIGHT(I2,2) -> 202506 | N2: =LEFT(J2,4)+1 &RIGHT(J2,2) -> 202509
A3: 營業收入淨額(千) | B3: =IFRS財報_For預估用!B3 -> 613142743 | C3: =IFRS財報_For預估用!C3 -> 625531868 | D3: =IFRS財報_For預估用!D3 -> 508632973 | E3: =IFRS財報_For預估用!E3 -> 480841254 | F3: =IFRS財報_For預估用!F3 -> 546732758 | G3: =IFRS財報_For預估用!G3 -> 625528856 | H3: =IFRS財報_For預估用!H3 -> 592644201 | I3: =IFRS財報_For預估用!I3 -> 673510177 | J3: =輸入預估參數!C30 -> 445846899.4 | K3: =輸入預估參數!D30 -> 668770349.1 | L3: =輸入預估參數!E30 -> 535016279.3 | M3: =輸入預估參數!F30 -> 802524419 | N3: =輸入預估參數!G30 -> 601893314.2
A4: 營業成本(千) | B4: =IFRS財報_For預估用!B4 -> 242644026 | C4: =IFRS財報_For預估用!C4 -> 236346939 | D4: =IFRS財報_For預估用!D4 -> 222132581 | E4: =IFRS財報_For預估用!E4 -> 220641407 | F4: =IFRS財報_For預估用!F4 -> 250090294 | G4: =IFRS財報_For預估用!G4 -> 293760931 | H4: =IFRS財報_For預估用!H4 -> 278138932 | I4: =IFRS財報_For預估用!I4 -> 315385699 | J4: =輸入預估參數!C31 -> 234025037.5 | K4: =輸入預估參數!D31 -> 312315753 | L4: =輸入預估參數!E31 -> 267508139.7 | M4: =輸入預估參數!F31 -> 369161232.7 | N4: =輸入預估參數!G31 -> 276870924.5
A5: 營業毛利(千) | B5: =IFRS財報_For預估用!B5 -> 370498717 | C5: =IFRS財報_For預估用!C5 -> 389184929 | D5: =IFRS財報_For預估用!D5 -> 286500392 | E5: =IFRS財報_For預估用!E5 -> 260199847 | F5: =IFRS財報_For預估用!F5 -> 296642464 | G5: =IFRS財報_For預估用!G5 -> 331767925 | H5: =IFRS財報_For預估用!H5 -> 314505269 | I5: =IFRS財報_For預估用!I5 -> 358124478 | J5: =輸入預估參數!C37 -> 211821861.9 | K5: =輸入預估參數!D37 -> 356454596.1 | L5: =輸入預估參數!E37 -> 267508139.7 | M5: =輸入預估參數!F37 -> 433363186.2 | N5: =輸入預估參數!G37 -> 325022389.7
A6: 聯屬公司間未實現利益(千)
A7: 聯屬公司間已實現利益(千)
A8: 營業毛利淨額(千) | B8: =IFRS財報_For預估用!B7 -> 370498717 | C8: =IFRS財報_For預估用!C7 -> 389184929 | D8: =IFRS財報_For預估用!D7 -> 286500392 | E8: =IFRS財報_For預估用!E7 -> 260199847 | F8: =IFRS財報_For預估用!F7 -> 296642464 | G8: =IFRS財報_For預估用!G7 -> 331767925 | H8: =IFRS財報_For預估用!H7 -> 314505269 | I8: =IFRS財報_For預估用!I7 -> 358124478
A9: 營業費用(千) | B9: =IFRS財報_For預估用!B8 -> 60186462 | C9: =IFRS財報_For預估用!C8 -> 64535382 | D9: =IFRS財報_For預估用!D8 -> 55309344 | E9: =IFRS財報_For預估用!E8 -> 58194560 | F9: =IFRS財報_For預估用!F8 -> 68708791 | G9: =IFRS財報_For預估用!G8 -> 71621021 | H9: =IFRS財報_For預估用!H8 -> 65357281 | I9: =IFRS財報_For預估用!I8 -> 70295310 | J9: =輸入預估參數!C40 -> 186943604.9 | K9: =輸入預估參數!D40 -> 200631104.7 | L9: =輸入預估參數!E40 -> 214006511.7 | M9: =輸入預估參數!F40 -> 240757325.7 | N9: =輸入預估參數!G40 -> 240757325.7
A10: 推銷費用(千) | B10: =IFRS財報_For預估用!B9 -> 42977507 | C10: =IFRS財報_For預估用!C9 -> 44587031 | D10: =IFRS財報_For預估用!D9 -> 39157036 | E10: =IFRS財報_For預估用!E9 -> 41665278 | F10: =IFRS財報_For預估用!F9 -> 51137762 | G10: =IFRS財報_For預估用!G9 -> 50410094 | H10: =IFRS財報_For預估用!H9 -> 46108936 | I10: =IFRS財報_For預估用!I9 -> 48057704
A11: 管理費用(千) | B11: =IFRS財報_For預估用!B10 -> 14499002 | C11: =IFRS財報_For預估用!C10 -> 16957275 | D11: =IFRS財報_For預估用!D10 -> 13475948 | E11: =IFRS財報_For預估用!E10 -> 14163389 | F11: =IFRS財報_For預估用!F10 -> 14998124 | G11: =IFRS財報_For預估用!G10 -> 18235380 | H11: =IFRS財報_For預估用!H10 -> 16137086 | I11: =IFRS財報_For預估用!I10 -> 19290282
A12: 研發費用(千) | B12: =IFRS財報_For預估用!B11 -> 2709953 | C12: =IFRS財報_For預估用!C11 -> 2991076 | D12: =IFRS財報_For預估用!D11 -> 2676360 | E12: =IFRS財報_For預估用!E11 -> 2365893 | F12: =IFRS財報_For預估用!F11 -> 2572905 | G12: =IFRS財報_For預估用!G11 -> 2975547 | H12: =IFRS財報_For預估用!H11 -> 3111259 | I12: =IFRS財報_For預估用!I11 -> 2947324
A13: 營業利益(千) | B13: =IFRS財報_For預估用!B12 -> 310324214 | C13: =IFRS財報_For預估用!C12 -> 325040770 | D13: =IFRS財報_For預估用!D12 -> 231238157 | E13: =IFRS財報_For預估用!E12 -> 201958043 | F13: =IFRS財報_For預估用!F12 -> 228064903 | G13: =IFRS財報_For預估用!G12 -> 260204503 | H13: =IFRS財報_For預估用!H12 -> 249018306 | I13: =IFRS財報_For預估用!I12 -> 286555542 | J13: =輸入預估參數!C41 -> 24878256.99 | K13: =輸入預估參數!D41 -> 155823491.3 | L13: =輸入預估參數!E41 -> 53501627.93 | M13: =輸入預估參數!F41 -> 192605860.5 | N13: =輸入預估參數!G41 -> 84265063.99
A14: 營業外收入及支出(千) | B14: =IFRS財報_For預估用!B13 -> 6366653 | C14: =IFRS財報_For預估用!C13 -> 9629104 | D14: =IFRS財報_For預估用!D13 -> 13036774 | E14: =IFRS財報_For預估用!E13 -> 12716866 | F14: =IFRS財報_For預估用!F13 -> 13875592 | G14: =IFRS財報_For預估用!G13 -> 18076486 | H14: =IFRS財報_For預估用!H13 -> 17524898 | I14: =IFRS財報_For預估用!I13 -> 19755033 | J14: =輸入預估參數!C44 -> 9352 | K14: =輸入預估參數!D44 -> 13078013.12 | L14: =輸入預估參數!E44 -> 13509126.77 | M14: =輸入預估參數!F44 -> 13568170.86 | N14: =輸入預估參數!G44 -> 13674583.97
A15: 其他收入(千) | B15: =IFRS財報_For預估用!B18 -> 6735949 | C15: =IFRS財報_For預估用!C18 -> 10593573 | D15: =IFRS財報_For預估用!D18 -> 13705728 | E15: =IFRS財報_For預估用!E18 -> 13909673 | F15: =IFRS財報_For預估用!F18 -> 15673439 | G15: =IFRS財報_For預估用!G18 -> 17485045 | H15: =IFRS財報_For預估用!H18 -> 19431051 | I15: =IFRS財報_For預估用!I18 -> 21182489
A16: 其他利益及損失(千) | B16: =IFRS財報_For預估用!B26 -> 933317 | C16: =IFRS財報_For預估用!C26 -> 652514 | D16: =IFRS財報_For預估用!D26 -> 1262079 | E16: =IFRS財報_For預估用!E26 -> 692311 | F16: =IFRS財報_For預估用!F26 -> 167952 | G16: =IFRS財報_For預估用!G26 -> 2189498 | H16: =IFRS財報_For預估用!H26 -> -79326 | I16: =IFRS財報_For預估用!I26 -> 70641
A17: 財務成本(千) | B17: =IFRS財報_For預估用!B29 -> 3370018 | C17: =IFRS財報_For預估用!C29 -> 3334969 | D17: =IFRS財報_For預估用!D29 -> 2963686 | E17: =IFRS財報_For預估用!E29 -> 3005155 | F17: =IFRS財報_For預估用!F29 -> 3111922 | G17: =IFRS財報_For預估用!G29 -> 2918597 | H17: =IFRS財報_For預估用!H29 -> 2698255 | I17: =IFRS財報_For預估用!I29 -> 2638140
A18: 採用權益法之關聯企業及合資損益之份額(千) | B18: =IFRS財報_For預估用!B30 -> 2077809 | C18: =IFRS財報_For預估用!C30 -> 1737055 | D18: =IFRS財報_For預估用!D30 -> 1038817 | E18: =IFRS財報_For預估用!E30 -> 1134187 | F18: =IFRS財報_For預估用!F30 -> 1166970 | G18: =IFRS財報_For預估用!G30 -> 1315124 | H18: =IFRS財報_For預估用!H30 -> 878001 | I18: =IFRS財報_For預估用!I30 -> 1152225
A19: 稅前純益(千) | B19: =IFRS財報_For預估用!B33 -> 316690867 | C19: =IFRS財報_For預估用!C33 -> 334669874 | D19: =IFRS財報_For預估用!D33 -> 244274931 | E19: =IFRS財報_For預估用!E33 -> 214674909 | F19: =IFRS財報_For預估用!F33 -> 241940495 | G19: =IFRS財報_For預估用!G33 -> 278280989 | H19: =IFRS財報_For預估用!H33 -> 266543204 | I19: =IFRS財報_For預估用!I33 -> 306310575 | J19: =輸入預估參數!C45 -> 24887608.99 | K19: =輸入預估參數!D45 -> 168901504.5 | L19: =輸入預估參數!E45 -> 67010754.7 | M19: =輸入預估參數!F45 -> 206174031.4 | N19: =輸入預估參數!G45 -> 97939647.96
A20: 所得稅(千) | B20: =IFRS財報_For預估用!B34 -> 35722460 | C20: =IFRS財報_For預估用!C34 -> 38791392 | D20: =IFRS財報_For預估用!D34 -> 37325895 | E20: =IFRS財報_For預估用!E34 -> 32957903 | F20: =IFRS財報_For預估用!F34 -> 31145221 | G20: =IFRS財報_For預估用!G34 -> 39974788 | H20: =IFRS財報_For預估用!H34 -> 41321941 | I20: =IFRS財報_For預估用!I34 -> 58649137 | J20: =輸入預估參數!C48 -> 8212413.214 | K20: =輸入預估參數!D48 -> 42225376.12 | L20: =輸入預估參數!E48 -> 16752688.67 | M20: =輸入預估參數!F48 -> 51543507.85 | N20: =輸入預估參數!G48 -> 24484911.99
A21: 停業部門損益(千) | B21: =IFRS財報_For預估用!B35 -> 0 | C21: =IFRS財報_For預估用!C35 -> 0 | D21: =IFRS財報_For預估用!D35 -> 0 | E21: =IFRS財報_For預估用!E35 -> 0 | F21: =IFRS財報_For預估用!F35 -> 0 | G21: =IFRS財報_For預估用!G35 -> 0 | H21: =IFRS財報_For預估用!H35 -> 0 | I21: =IFRS財報_For預估用!I35 -> 0
A22: 母公司業主–稅後純益(千) | B22: =IFRS財報_For預估用!B36 -> 280865780 | C22: =IFRS財報_For預估用!C36 -> 295904177 | D22: =IFRS財報_For預估用!D36 -> 206986561 | E22: =IFRS財報_For預估用!E36 -> 181799021 | F22: =IFRS財報_For預估用!F36 -> 210999939 | G22: =IFRS財報_For預估用!G36 -> 238712143 | H22: =IFRS財報_For預估用!H36 -> 225484877 | I22: =IFRS財報_For預估用!I36 -> 247845528 | J22: =輸入預估參數!C49 -> 16675195.77 | K22: =輸入預估參數!D49 -> 126676128.4 | L22: =輸入預估參數!E49 -> 50258066.02 | M22: =輸入預估參數!F49 -> 154630523.6 | N22: =輸入預估參數!G49 -> 73454735.97
A23: 其他綜合損益(千) | B23: =IFRS財報_For預估用!B56 -> 32121399 | C23: =IFRS財報_For預估用!C56 -> -16481956 | D23: =IFRS財報_For預估用!D56 -> -3295773 | E23: =IFRS財報_For預估用!E56 -> 5659104 | F23: =IFRS財報_For預估用!F56 -> 26049225 | G23: =IFRS財報_For預估用!G56 -> -37226200 | H23: =IFRS財報_For預估用!H56 -> 41273948 | I23: =IFRS財報_For預估用!I56 -> 13464599
A24: 母公司業主–綜合損益(千) | B24: =IFRS財報_For預估用!B37 -> 312889198 | C24: =IFRS財報_For預估用!C37 -> 278903377 | D24: =IFRS財報_For預估用!D37 -> 203834717 | E24: =IFRS財報_For預估用!E37 -> 188187010 | F24: =IFRS財報_For預估用!F37 -> 237285511 | G24: =IFRS財報_For預估用!G37 -> 201202304 | H24: =IFRS財報_For預估用!H37 -> 267398572 | I24: =IFRS財報_For預估用!I37 -> 262265420
A25: 原始每股稅前盈餘(元) | B25: =IFRS財報_For預估用!B39 -> 12.21 | C25: =IFRS財報_For預估用!C39 -> 12.91 | D25: =IFRS財報_For預估用!D39 -> 9.42 | E25: =IFRS財報_For預估用!E39 -> 8.28 | F25: =IFRS財報_For預估用!F39 -> 9.33 | G25: =IFRS財報_For預估用!G39 -> 10.73 | H25: =IFRS財報_For預估用!H39 -> 10.28 | I25: =IFRS財報_For預估用!I39 -> 11.81 | J25: =輸入預估參數!C50 -> 0.9596654905 | K25: =輸入預估參數!D50 -> 6.51283718 | L25: =輸入預估參數!E50 -> 2.583932784 | M25: =輸入預估參數!F50 -> 7.950064753 | N25: =輸入預估參數!G50 -> 3.776550023
A26: 原始每股稅後盈餘(元) | B26: =IFRS財報_For預估用!B40 -> 10.83 | C26: =IFRS財報_For預估用!C40 -> 11.41 | D26: =IFRS財報_For預估用!D40 -> 7.98 | E26: =IFRS財報_For預估用!E40 -> 7.01 | F26: =IFRS財報_For預估用!F40 -> 8.14 | G26: =IFRS財報_For預估用!G40 -> 9.21 | H26: =IFRS財報_For預估用!H40 -> 8.7 | I26: =IFRS財報_For預估用!I40 -> 9.56 | J26: =輸入預估參數!C51 -> 0.642995072 | K26: =輸入預估參數!D51 -> 4.884627885 | L26: =輸入預估參數!E51 -> 1.937949588 | M26: =輸入預估參數!F51 -> 5.962548564 | N26: =輸入預估參數!G51 -> 2.832412517
A27: 毛利率(%) | B27: =IFRS財報_For預估用!B41 -> 60.43 | C27: =IFRS財報_For預估用!C41 -> 62.22 | D27: =IFRS財報_For預估用!D41 -> 56.33 | E27: =IFRS財報_For預估用!E41 -> 54.11 | F27: =IFRS財報_For預估用!F41 -> 54.26 | G27: =IFRS財報_For預估用!G41 -> 53.04 | H27: =IFRS財報_For預估用!H41 -> 53.07 | I27: =IFRS財報_For預估用!I41 -> 53.17 | J27: =J5/J3*100 -> 47.51 | K27: =K5/K3*100 -> 53.3 | L27: =L5/L3*100 -> 50 | M27: =M5/M3*100 -> 54 | N27: =N5/N3*100 -> 54
A28: 營業利益率(%) | B28: =IFRS財報_For預估用!B42 -> 50.61 | C28: =IFRS財報_For預估用!C42 -> 51.96 | D28: =IFRS財報_For預估用!D42 -> 45.46 | E28: =IFRS財報_For預估用!E42 -> 42 | F28: =IFRS財報_For預估用!F42 -> 41.71 | G28: =IFRS財報_For預估用!G42 -> 41.6 | H28: =IFRS財報_For預估用!H42 -> 42.02 | I28: =IFRS財報_For預估用!I42 -> 42.55 | J28: =J13/J3*100 -> 5.58 | K28: =K13/K3*100 -> 23.3 | L28: =L13/L3*100 -> 10 | M28: =M13/M3*100 -> 24 | N28: =N13/N3*100 -> 14
A29: 稅前純益率(%) | B29: =IFRS財報_For預估用!B43 -> 51.65 | C29: =IFRS財報_For預估用!C43 -> 53.5 | D29: =IFRS財報_For預估用!D43 -> 48.03 | E29: =IFRS財報_For預估用!E43 -> 44.65 | F29: =IFRS財報_For預估用!F43 -> 44.25 | G29: =IFRS財報_For預估用!G43 -> 44.49 | H29: =IFRS財報_For預估用!H43 -> 44.98 | I29: =IFRS財報_For預估用!I43 -> 45.48 | J29: =J19/J3*100 -> 5.582097581 | K29: =K19/K3*100 -> 25.25553124 | L29: =L19/L3*100 -> 12.52499359 | M29: =M19/M3*100 -> 25.69068636 | N29: =N19/N3*100 -> 16.2719282
A30: 歸屬於母公司–稅後純益(%) | B30: =IFRS財報_For預估用!B74 -> 45.80756817 | C30: =IFRS財報_For預估用!C74 -> 47.30441279 | D30: =IFRS財報_For預估用!D74 -> 40.69468005 | E30: =IFRS財報_For預估用!E74 -> 37.80853234 | F30: =IFRS財報_For預估用!F74 -> 38.59288398 | G30: =IFRS財報_For預估用!G74 -> 38.16165165 | H30: =IFRS財報_For預估用!H74 -> 38.04725949 | I30: =IFRS財報_For預估用!I74 -> 36.79907691 | J30: =J22/J3*100 -> 3.740117021 | K30: =K22/K3*100 -> 18.94164843 | L30: =L22/L3*100 -> 9.393745194 | M30: =M22/M3*100 -> 19.26801477 | N30: =N22/N3*100 -> 12.20394615
A31: 歸屬於母公司–稅後權益報酬率(%) | B31: =IFRS財報_For預估用!B75 -> 10.25815981 | C31: =IFRS財報_For預估用!C75 -> 10.04545197 | D31: =IFRS財報_For預估用!D75 -> 6.72419848 | E31: =IFRS財報_For預估用!E75 -> 5.701262095 | F31: =IFRS財報_For預估用!F75 -> 6.301610065 | G31: =IFRS財報_For預估用!G75 -> 6.901361778 | H31: =IFRS財報_For預估用!H75 -> 6.201911509 | I31: =IFRS財報_For預估用!I75 -> 6.537040147 | J31: =J22/J35*100 -> 0.434609416 | K31: =K22/K35*100 -> 3.196067703 | L31: =L22/L35*100 -> 1.252145024 | M31: =M22/M35*100 -> 3.70959995 | N31: =N22/N35*100 -> 1.731670373
A32: 應收帳款與票據合計(千) | B32: =IFRS財報_For預估用!B45 -> 261538308 | C32: =IFRS財報_For預估用!C45 -> 231339845 | D32: =IFRS財報_For預估用!D45 -> 148047679 | E32: =IFRS財報_For預估用!E45 -> 191026814 | F32: =IFRS財報_For預估用!F45 -> 222823910 | G32: =IFRS財報_For預估用!G45 -> 201938365 | H32: =IFRS財報_For預估用!H45 -> 201979697 | I32: =IFRS財報_For預估用!I45 -> 210210419
A33: 存貨(千) | B33: =IFRS財報_For預估用!B46 -> 218335874 | C33: =IFRS財報_For預估用!C46 -> 221149148 | D33: =IFRS財報_For預估用!D46 -> 216067981 | E33: =IFRS財報_For預估用!E46 -> 234332949 | F33: =IFRS財報_For預估用!F46 -> 262090072 | G33: =IFRS財報_For預估用!G46 -> 250997088 | H33: =IFRS財報_For預估用!H46 -> 267123339 | I33: =IFRS財報_For預估用!I46 -> 272490587
A34: 股本(千) | B34: =IFRS財報_For預估用!B47 -> 259303805 | C34: =IFRS財報_For預估用!C47 -> 259303805 | D34: =IFRS財報_For預估用!D47 -> 259320710 | E34: =IFRS財報_For預估用!E47 -> 259320710 | F34: =IFRS財報_For預估用!F47 -> 259320710 | G34: =IFRS財報_For預估用!G47 -> 259320710 | H34: =IFRS財報_For預估用!H47 -> 259336292 | I34: =IFRS財報_For預估用!I47 -> 259336292 | J34: =輸入預估參數!C54 -> 259336292 | K34: =輸入預估參數!D54 -> 259336292 | L34: =輸入預估參數!E54 -> 259336292 | M34: =輸入預估參數!F54 -> 259336292 | N34: =輸入預估參數!G54 -> 259336292
A35: 權益總計(千) | B35: =IFRS財報_For預估用!B48 -> 2752316159 | C35: =IFRS財報_For預估用!C48 -> 2960488867 | D35: =IFRS財報_For預估用!D48 -> 3092897598 | E35: =IFRS財報_For預估用!E48 -> 3205468199 | F35: =IFRS財報_For預估用!F48 -> 3372818107 | G35: =IFRS財報_For預估用!G48 -> 3483262847 | H35: =IFRS財報_For預估用!H48 -> 3665716254 | I35: =IFRS財報_For預估用!I48 -> 3820148205 | J35: =輸入預估參數!C55 -> 3836823401 | K35: =輸入預估參數!D55 -> 3963499529 | L35: =輸入預估參數!E55 -> 4013757595 | M35: =輸入預估參數!F55 -> 4168388119 | N35: =輸入預估參數!G55 -> 4241842855
A36: 每股淨值(元) | B36: =IFRS財報_For預估用!B49 -> 105.59 | C36: =IFRS財報_For預估用!C49 -> 113.6 | D36: =IFRS財報_For預估用!D49 -> 118.7 | E36: =IFRS財報_For預估用!E49 -> 122.97 | F36: =IFRS財報_For預估用!F49 -> 129.12 | G36: =IFRS財報_For預估用!G49 -> 133.38 | H36: =IFRS財報_For預估用!H49 -> 140.19 | I36: =IFRS財報_For預估用!I49 -> 146.21 | J36: =輸入預估參數!C56 -> 147.9478006 | K36: =輸入預估參數!D56 -> 152.8324284 | L36: =輸入預估參數!E56 -> 154.770378 | M36: =輸入預估參數!F56 -> 160.7329266 | N36: =輸入預估參數!G56 -> 163.5653391
A37: 負債比率(%) | B37: =IFRS財報_For預估用!B58 -> 40.73 | C37: =IFRS財報_For預估用!C58 -> 40.37 | D37: =IFRS財報_For預估用!D58 -> 38.7 | E37: =IFRS財報_For預估用!E58 -> 37.75 | F37: =IFRS財報_For預估用!F58 -> 38.5 | G37: =IFRS財報_For預估用!G58 -> 37.04 | H37: =IFRS財報_For預估用!H58 -> 36.67 | I37: =IFRS財報_For預估用!I58 -> 36.14
A38: 流動比率(%) | B38: =IFRS財報_For預估用!B59 -> 249.46 | C38: =IFRS財報_For預估用!C59 -> 217.42 | D38: =IFRS財報_For預估用!D59 -> 228.58 | E38: =IFRS財報_For預估用!E59 -> 241.72 | F38: =IFRS財報_For預估用!F59 -> 214.68 | G38: =IFRS財報_For預估用!G59 -> 240.16 | H38: =IFRS財報_For預估用!H59 -> 239.02 | I38: =IFRS財報_For預估用!I59 -> 247.08
A39: 速動比率(%) | B39: =IFRS財報_For預估用!B60 -> 218.04 | C39: =IFRS財報_For預估用!C60 -> 189.88 | D39: =IFRS財報_For預估用!D60 -> 198.98 | E39: =IFRS財報_For預估用!E60 -> 207.63 | F39: =IFRS財報_For預估用!F60 -> 182.9 | G39: =IFRS財報_For預估用!G60 -> 206.84 | H39: =IFRS財報_For預估用!H60 -> 207.05 | I39: =IFRS財報_For預估用!I60 -> 215.58
A40: 應付款項週轉率(次) | B40: =B41/91 -> 0.2510989011 | C40: =C41/91 -> 0.2507692308 | D40: 0.2338461538 | E40: 0.2183516484 | F40: 0.2053846154 | G40: 0.189010989 | H40: 0.2065934066 | I40: 0.1927472527
A41: 應付款項週轉天數(天) | B41: =IFRS財報_For預估用!B57 -> 22.85 | C41: =IFRS財報_For預估用!C57 -> 22.82 | D41: =IFRS財報_For預估用!D57 -> 21.28 | E41: =IFRS財報_For預估用!E57 -> 19.87 | F41: =IFRS財報_For預估用!F57 -> 18.69 | G41: =IFRS財報_For預估用!G57 -> 17.2 | H41: =IFRS財報_For預估用!H57 -> 18.8 | I41: =IFRS財報_For預估用!I57 -> 17.54
A42: 折舊費用(千) | B42: =IFRS財報_For預估用!B61 -> 103147219 | C42: =IFRS財報_For預估用!C61 -> 105375960 | D42: =IFRS財報_For預估用!D61 -> 108083376 | E42: =IFRS財報_For預估用!E61 -> 121643961 | F42: =IFRS財報_For預估用!F61 -> 144926830 | G42: =IFRS財報_For預估用!G61 -> 148278504 | H42: =IFRS財報_For預估用!H61 -> 156697101 | I42: =IFRS財報_For預估用!I61 -> 162929310
A43: 攤銷費用(千) | B43: =IFRS財報_For預估用!B62 -> 2198447 | C43: =IFRS財報_For預估用!C62 -> 2205937 | D43: =IFRS財報_For預估用!D62 -> 2239265 | E43: =IFRS財報_For預估用!E62 -> 2295727 | F43: =IFRS財報_For預估用!F62 -> 2353332 | G43: =IFRS財報_For預估用!G62 -> 2369926 | H43: =IFRS財報_For預估用!H62 -> 2326061 | I43: =IFRS財報_For預估用!I62 -> 2237284
A44: 營業活動現金流量(千) | B44: =IFRS財報_For預估用!B63 -> 412698167 | C44: =IFRS財報_For預估用!C63 -> 486881904 | D44: =IFRS財報_For預估用!D63 -> 385244745 | E44: =IFRS財報_For預估用!E63 -> 167247979 | F44: =IFRS財報_For預估用!F63 -> 294645276 | G44: =IFRS財報_For預估用!G63 -> 394829347 | H44: =IFRS財報_For預估用!H63 -> 436311108 | I44: =IFRS財報_For預估用!I63 -> 377668210
A45: 投資活動現金流量(千) | B45: =IFRS財報_For預估用!B64 -> -284390325 | C45: =IFRS財報_For預估用!C64 -> -342532013 | D45: =IFRS財報_For預估用!D64 -> -272231795 | E45: =IFRS財報_For預估用!E64 -> -259326076 | F45: =IFRS財報_For預估用!F64 -> -242243223 | G45: =IFRS財報_For預估用!G64 -> -132319502 | H45: =IFRS財報_For預估用!H64 -> -159806991 | I45: =IFRS財報_For預估用!I64 -> -197607330
A46: 籌資活動現金流量(千) | B46: =IFRS財報_For預估用!B65 -> -130406753 | C46: =IFRS財報_For預估用!C65 -> -69831545 | D46: =IFRS財報_For預估用!D65 -> -64487030 | E46: =IFRS財報_For預估用!E65 -> -26588885 | F46: =IFRS財報_For預估用!F65 -> -38451204 | G46: =IFRS財報_For預估用!G65 -> -75367133 | H46: =IFRS財報_For預估用!H65 -> -71685617 | I46: =IFRS財報_For預估用!I65 -> -90244583
A47: 本期現金及約當現金增減數(千) | B47: =IFRS財報_For預估用!B66 -> 42823587 | C47: =IFRS財報_For預估用!C66 -> 46801299 | D47: =IFRS財報_For預估用!D66 -> 42418727 | E47: =IFRS財報_For預估用!E66 -> -108508826 | F47: =IFRS財報_For預估用!F66 -> 35082551 | G47: =IFRS財報_For預估用!G66 -> 153621218 | H47: =IFRS財報_For預估用!H66 -> 232767951 | I47: =IFRS財報_For預估用!I66 -> 100931647
A48: 自由現金流量(千) | B48: =IFRS財報_For預估用!B67 -> -25831672 | C48: =IFRS財報_For預估用!C67 -> 164747150 | D48: =IFRS財報_For預估用!D67 -> 805376 | E48: =IFRS財報_For預估用!E67 -> 28624877 | F48: =IFRS財報_For預估用!F67 -> 168144056 | G48: =IFRS財報_For預估用!G67 -> 50787637 | H48: =IFRS財報_For預估用!H67 -> 56801902 | I48: =IFRS財報_For預估用!I67 -> 90998250
A49: 原始每股營業現金流量(元) | B49: =IFRS財報_For預估用!B68 -> 15.92 | C49: =IFRS財報_For預估用!C68 -> 18.78 | D49: =IFRS財報_For預估用!D68 -> 14.86 | E49: =IFRS財報_For預估用!E68 -> 6.45 | F49: =IFRS財報_For預估用!F68 -> 11.36 | G49: =IFRS財報_For預估用!G68 -> 15.23 | H49: =IFRS財報_For預估用!H68 -> 16.83 | I49: =IFRS財報_For預估用!I68 -> 14.57
A50: 原始每股現金流量(元) | B50: =IFRS財報_For預估用!B66/IFRS財報_For預估用!B69 -> 1.651571544 | C50: =IFRS財報_For預估用!C66/IFRS財報_For預估用!C69 -> 1.804965716 | D50: =IFRS財報_For預估用!D66/IFRS財報_For預估用!D69 -> 1.635951369 | E50: =IFRS財報_For預估用!E66/IFRS財報_For預估用!E69 -> -4.184800975 | F50: =IFRS財報_For預估用!F66/IFRS財報_For預估用!F69 -> 1.353009748 | G50: =IFRS財報_For預估用!G66/IFRS財報_For預估用!G69 -> 5.924636384 | H50: =IFRS財報_For預估用!H66/IFRS財報_For預估用!H69 -> 8.977035525 | I50: =IFRS財報_For預估用!I66/IFRS財報_For預估用!I69 -> 3.892620463
A51: 存貨週轉天數(天) | B51: =IFRS財報_For預估用!B70 -> 81.72 | C51: =IFRS財報_For預估用!C70 -> 84.61 | D51: =IFRS財報_For預估用!D70 -> 89.56 | E51: =IFRS財報_For預估用!E70 -> 92.88 | F51: =IFRS財報_For預估用!F70 -> 90.32 | G51: =IFRS財報_For預估用!G70 -> 79.47 | H51: =IFRS財報_For預估用!H70 -> 84.76 | I51: =IFRS財報_For預估用!I70 -> 77.85
A52: 存貨週轉率(次) | B52: =IFRS財報_For預估用!B71 -> 1.11 | C52: =IFRS財報_For預估用!C71 -> 1.08 | D52: =IFRS財報_For預估用!D71 -> 1.02 | E52: =IFRS財報_For預估用!E71 -> 0.98 | F52: =IFRS財報_For預估用!F71 -> 1.01 | G52: =IFRS財報_For預估用!G71 -> 1.15 | H52: =IFRS財報_For預估用!H71 -> 1.07 | I52: =IFRS財報_For預估用!I71 -> 1.17

Sheet IFRS-年報
A1: 2330 台積電
A2: Data Field | B2: 2018-12-28 | C2: 2019-12-31 | D2: 2020-12-31 | E2: 2021-12-30 | F2: 2022-12-30 | G2: 2023-12-29
A3: 營業收入淨額 | B3: 1031473557 | C3: 1069985448 | D3: 1339254811 | E3: 1587415037 | F3: 2263891292 | G3: 2161735841
A4: 營業成本 | B4: 533487516 | C4: 577286947 | D4: 628124691 | E4: 767877771 | F4: 915536486 | G4: 986625213
A5: 營業毛利 | B5: 497986041 | C5: 492698501 | D5: 711130120 | E5: 819537266 | F5: 1348354806 | G5: 1175110628
A6: 營業費用 | B6: 112149280 | C6: 119504582 | D6: 145056549 | E6: 169222934 | F6: 226707552 | G6: 253833716
A7: 營業利益 | B7: 383623524 | C7: 372701090 | D7: 566783698 | E7: 649980897 | F7: 1121278851 | G7: 921465606
A8: 營業外收入及支出 | B8: 13886739 | C8: 17144246 | D8: 17993482 | E8: 13145417 | F8: 22911867 | G8: 57705718
A9: 稅前淨利 | B9: 397510263 | C9: 389845336 | D9: 584777180 | E9: 663126314 | F9: 1144190718 | G9: 979171324
A10: 所得稅費用 | B10: 46325857 | C10: 44501527 | D10: 66619098 | E10: 66053180 | F10: 127290203 | G10: 141403807
A11: 歸屬母公司淨利(損) | B11: 351130884 | C11: 345263668 | D11: 517885387 | E11: 596540013 | F11: 1016530249 | G11: 838497664
A12: 每股稅前淨利(元) | B12: 15.33 | C12: 15.03 | D12: 22.55 | E12: 25.57 | F12: 44.13 | G12: 37.76
A13: 每股盈餘（元） | B13: 13.54 | C13: 13.32 | D13: 19.97 | E13: 23.01 | F13: 39.2 | G13: 32.34
A14: 營業毛利率 | B14: 48.28 | C14: 46.05 | D14: 53.1 | E14: 51.63 | F14: 59.56 | G14: 54.36
A15: 營業利益率 | B15: 37.19 | C15: 34.83 | D15: 42.32 | E15: 40.95 | F15: 49.53 | G15: 42.63
A16: 每股淨值 (B) | B16: 64.67 | C16: 62.53 | D16: 71.33 | E16: 83.62 | F16: 113.6 | G16: 133.38
A17: 負債比率％ | B17: 19.74 | C17: 28.38 | D17: 32.97 | E17: 41.73 | F17: 40.37 | G17: 37.04
A18: 流動比率 | B18: 279.46 | C18: 139.25 | D18: 176.97 | E18: 217.32 | F18: 217.42 | G18: 240.16
A19: 速動比率 | B19: 242.1 | C19: 122.44 | D19: 151.92 | E19: 187.53 | F19: 189.88 | G19: 206.84
A20: 應付帳款付現天數 | B20: 22.04 | C20: 23.57 | D20: 23.62 | E20: 21.35 | F20: 20.98 | G20: 21.05
A21: 平均收帳天數 | B21: 44.5 | C21: 45.88 | D21: 38.95 | E21: 39.59 | F21: 34.63 | G21: 36.58
A22: 平均售貨天數 | B22: 60.59 | C22: 58.87 | D22: 64.02 | E22: 78.54 | F22: 82.58 | G22: 87.33
A23: 來自營運之現金流量 | B23: 573954308 | C23: 615138744 | D23: 822666212 | E23: 1112160722 | F23: 1610599188 | G23: 1241967347
A24: 本期產生現金流量 | B24: 24422905 | C24: -122415265 | D24: 204771311 | E24: 404819545 | F24: 277823891 | G24: 122613670
A25: 自由現金流量 (D) | B25: 215508122 | C25: 551064822 | D25: 99488004 | E25: -212262994 | F25: 130382280 | G25: 248361946
A26: 合併總損益 | B26: 351184406 | C26: 345343809 | D26: 518158082 | E26: 597073134 | F26: 1016900515 | G26: 837767517
A27: 投資活動之現金流量 | B27: -314268908 | C27: -458801647 | D27: -505781714 | E27: -836365863 | F27: -1190928235 | G27: -906120596
A28: 籌資活動之現金流量 | B28: -245124791 | C28: -269638166 | D28: -88615087 | E28: 136608438 | F28: -200244032 | G28: -204894252
A29: 加權平均股數 (仟股) | B29: 25930380 | C29: 25930380 | D29: 25930380 | E29: 25930380 | F29: 25929190 | G29: 25929223
A30: 母公司股東權益合計 | B30: 1676817665 | C30: 1621410124 | D30: 1849657256 | E30: 2168286553 | F30: 2945653195 | G30: 3458913627
A31: 稅前淨利率 | B31: 38.54 | C31: 36.43 | D31: 43.66 | E31: 41.77 | F31: 50.54 | G31: 45.3
A32: 其他綜合損益─OCI | B32: 9836976 | C32: -11823562 | D32: -30321802 | E32: -7619456 | F32: 42430165 | G32: -8813644
A33: 綜合損益歸屬母公司 | B33: 360965015 | C33: 333440460 | D33: 487563478 | E33: 588918059 | F33: 1059124890 | G33: 830509542
A34: 股本 | B34: 259303805 | C34: 259303805 | D34: 259303805 | E34: 259303805 | F34: 259303805 | G34: 259320710
A35: ROE(A)─稅後 | B35: 21.95 | C35: 20.93 | D35: 29.84 | E35: 29.7 | F35: 39.64 | G35: 26
A36: 營業費用率 | B36: 10.87 | C36: 11.17 | D36: 10.83 | E36: 10.66 | F36: 10.01 | G36: 11.74
A37: 母公司稅後ROE | B37: =(B11/B30)*100 -> 20.94031398 | C37: 21.29403677 | D37: 27.99899199 | E37: 27.51204688 | F37: 34.50950203 | G37: 24.24164794

Sheet IFRS財報_For預估用
A1: 2330 台積電
A2: Data Field | B2: 2022-09-30 | C2: 2022-12-30 | D2: 2023-03-31 | E2: 2023-06-30 | F2: 2023-09-28 | G2: 2023-12-29 | H2: 2024-03-29 | I2: 2024-06-28
A3: 營業收入淨額 | B3: 613142743 | C3: 625531868 | D3: 508632973 | E3: 480841254 | F3: 546732758 | G3: 625528856 | H3: 592644201 | I3: 673510177
A4: 營業成本 | B4: 242644026 | C4: 236346939 | D4: 222132581 | E4: 220641407 | F4: 250090294 | G4: 293760931 | H4: 278138932 | I4: 315385699
A5: 營業毛利 | B5: 370498717 | C5: 389184929 | D5: 286500392 | E5: 260199847 | F5: 296642464 | G5: 331767925 | H5: 314505269 | I5: 358124478
A6: 聯屬公司已〈未〉實現銷貨利益 | B6: 0 | C6: 0 | D6: 0 | E6: 0 | F6: 0 | G6: 0 | H6: 0 | I6: 0
A7: 已實現銷貨毛利 | B7: 370498717 | C7: 389184929 | D7: 286500392 | E7: 260199847 | F7: 296642464 | G7: 331767925 | H7: 314505269 | I7: 358124478
A8: 營業費用 | B8: 60186462 | C8: 64535382 | D8: 55309344 | E8: 58194560 | F8: 68708791 | G8: 71621021 | H8: 65357281 | I8: 70295310
A9: 研究發展費 | B9: 42977507 | C9: 44587031 | D9: 39157036 | E9: 41665278 | F9: 51137762 | G9: 50410094 | H9: 46108936 | I9: 48057704
A10: 管理費用 | B10: 14499002 | C10: 16957275 | D10: 13475948 | E10: 14163389 | F10: 14998124 | G10: 18235380 | H10: 16137086 | I10: 19290282
A11: 推銷費用 | B11: 2709953 | C11: 2991076 | D11: 2676360 | E11: 2365893 | F11: 2572905 | G11: 2975547 | H11: 3111259 | I11: 2947324
A12: 營業利益 | B12: 310324214 | C12: 325040770 | D12: 231238157 | E12: 201958043 | F12: 228064903 | G12: 260204503 | H12: 249018306 | I12: 286555542
A13: 營業外收入及支出 | B13: 6366653 | C13: 9629104 | D13: 13036774 | E13: 12716866 | F13: 13875592 | G13: 18076486 | H13: 17524898 | I13: 19755033
A14: 營業外收入及支出─其他 | B14: 0 | C14: 0 | D14: 0 | E14: 0 | F14: 0 | G14: 0 | H14: 0 | I14: 0
A15: 股利收入 | B15: 0 | C15: 266767 | D15: 72021 | E15: 237651 | F15: -309672 | G15: 464094 | H15: 71879 | I15: 203256
A16: 租金收入 | B16: 0 | C16: 0 | D16: 0 | E16: 0 | F16: 0 | G16: 0 | H16: 0 | I16: 0
A17: 利息收入 | B17: 6615044 | C17: 10587341 | D17: 13617818 | E17: 13672021 | F17: 15595274 | G17: 17408788 | H17: 19359172 | I17: 20979233
A18: 其他收入 | B18: 6735949 | C18: 10593573 | D18: 13705728 | E18: 13909673 | F18: 15673439 | G18: 17485045 | H18: 19431051 | I18: 21182489
A19: 處分投資利益 | B19: 0 | C19: 0 | D19: 0 | E19: 0 | F19: 0 | G19: 15758 | H19: 0 | I19: 0
A20: 資產評價利益 | B20: 0 | C20: 0 | D20: 0 | E20: 0 | F20: 0 | G20: 0 | H20: 0 | I20: 0
A21: 資產減損迴轉利益 | B21: 0 | C21: 0 | D21: 0 | E21: 0 | F21: 0 | G21: 0 | H21: 0 | I21: 0
A22: 處分投資損失 | B22: 100974 | C22: 63951 | D22: 135693 | E22: 121860 | F22: 115078 | G22: 101266 | H22: 102504 | I22: 102582
A23: 無形資產減損損失 | B23: 0 | C23: 0 | D23: 0 | E23: 0 | F23: 0 | G23: 0 | H23: 0 | I23: 0
A24: 資產減損損失 | B24: 0 | C24: 0 | D24: 0 | E24: 0 | F24: 0 | G24: 0 | H24: 0 | I24: 0
A25: 資產評價損失 | B25: 0 | C25: 0 | D25: 0 | E25: 0 | F25: 0 | G25: 0 | H25: 0 | I25: 0
A26: 其他利益及損失 | B26: 933317 | C26: 652514 | D26: 1262079 | E26: 692311 | F26: 167952 | G26: 2189498 | H26: -79326 | I26: 70641
A27: 利息支出 | B27: 4058453 | C27: 4346090 | D27: 4233170 | E27: 4398097 | F27: 4619630 | G27: 4696140 | H27: 4670542 | I27: 4898108
A28: 負債性特別股股息 | B28: 0 | C28: 0 | D28: 0 | E28: 0 | F28: 0 | G28: 0 | H28: 0 | I28: 0
A29: 財務成本 | B29: 3370018 | C29: 3334969 | D29: 2963686 | E29: 3005155 | F29: 3111922 | G29: 2918597 | H29: 2698255 | I29: 2638140
A30: 採用權益法認列之關聯企業及合資利益之份額 | B30: 2077809 | C30: 1737055 | D30: 1038817 | E30: 1134187 | F30: 1166970 | G30: 1315124 | H30: 878001 | I30: 1152225
A31: 採用權益法認列之關聯企業及合資損失之份額
A32: 採權益法之關聯企業及合資損益 | B32: 2077809 | C32: 1737055 | D32: 1038817 | E32: 1134187 | F32: 1166970 | G32: 1315124 | H32: 878001 | I32: 1152225
A33: 稅前淨利 | B33: 316690867 | C33: 334669874 | D33: 244274931 | E33: 214674909 | F33: 241940495 | G33: 278280989 | H33: 266543204 | I33: 306310575
A34: 所得稅費用 | B34: 35722460 | C34: 38791392 | D34: 37325895 | E34: 32957903 | F34: 31145221 | G34: 39974788 | H34: 41321941 | I34: 58649137
A35: 停業單位損益 | B35: 0 | C35: 0 | D35: 0 | E35: 0 | F35: 0 | G35: 0 | H35: 0 | I35: 0
A36: 歸屬母公司淨利(損) | B36: 280865780 | C36: 295904177 | D36: 206986561 | E36: 181799021 | F36: 210999939 | G36: 238712143 | H36: 225484877 | I36: 247845528
A37: 綜合損益歸屬母公司 | B37: 312889198 | C37: 278903377 | D37: 203834717 | E37: 188187010 | F37: 237285511 | G37: 201202304 | H37: 267398572 | I37: 262265420
A38: 本期稅後純益
A39: 每股稅前淨利(元) | B39: 12.21 | C39: 12.91 | D39: 9.42 | E39: 8.28 | F39: 9.33 | G39: 10.73 | H39: 10.28 | I39: 11.81
A40: 每股盈餘（元） | B40: 10.83 | C40: 11.41 | D40: 7.98 | E40: 7.01 | F40: 8.14 | G40: 9.21 | H40: 8.7 | I40: 9.56
A41: 營業毛利率 | B41: 60.43 | C41: 62.22 | D41: 56.33 | E41: 54.11 | F41: 54.26 | G41: 53.04 | H41: 53.07 | I41: 53.17
A42: 營業利益率 | B42: 50.61 | C42: 51.96 | D42: 45.46 | E42: 42 | F42: 41.71 | G42: 41.6 | H42: 42.02 | I42: 42.55
A43: 稅前淨利率 | B43: 51.65 | C43: 53.5 | D43: 48.03 | E43: 44.65 | F43: 44.25 | G43: 44.49 | H43: 44.98 | I43: 45.48
A44: 母公司股東權益合計 | B44: 2737974306 | C44: 2945653195 | D44: 3078233958 | E44: 3188750455 | F44: 3348349657 | G44: 3458913627 | H44: 3635731930 | I44: 3791402874
A45: 應收帳款及票據 | B45: 261538308 | C45: 231339845 | D45: 148047679 | E45: 191026814 | F45: 222823910 | G45: 201938365 | H45: 201979697 | I45: 210210419
A46: 存貨 | B46: 218335874 | C46: 221149148 | D46: 216067981 | E46: 234332949 | F46: 262090072 | G46: 250997088 | H46: 267123339 | I46: 272490587
A47: 股本 | B47: 259303805 | C47: 259303805 | D47: 259320710 | E47: 259320710 | F47: 259320710 | G47: 259320710 | H47: 259336292 | I47: 259336292
A48: 股東權益總額 | B48: 2752316159 | C48: 2960488867 | D48: 3092897598 | E48: 3205468199 | F48: 3372818107 | G48: 3483262847 | H48: 3665716254 | I48: 3820148205
A49: 每股淨值 (B) | B49: 105.59 | C49: 113.6 | D49: 118.7 | E49: 122.97 | F49: 129.12 | G49: 133.38 | H49: 140.19 | I49: 146.21
A50: 攤銷合計 | B50: 2198447 | C50: 2205937 | D50: 2239265 | E50: 2295727 | F50: 2353332 | G50: 2369926 | H50: 2326061 | I50: 2237284
A51: 折舊合計 | B51: 103147219 | C51: 105375960 | D51: 108083376 | E51: 121643961 | F51: 144926830 | G51: 148278504 | H51: 156697101 | I51: 162929310
A52: 來自營運之現金流量 | B52: 412698167 | C52: 486881904 | D52: 385244745 | E52: 167247979 | F52: 294645276 | G52: 394829347 | H52: 436311108 | I52: 377668210
A53: 投資活動之現金流量 | B53: -284390325 | C53: -342532013 | D53: -272231795 | E53: -259326076 | F53: -242243223 | G53: -132319502 | H53: -159806991 | I53: -197607330
A54: 本期產生現金流量 | B54: 42823587 | C54: 46801299 | D54: 42418727 | E54: -108508826 | F54: 35082551 | G54: 153621218 | H54: 232767951 | I54: 100931647
A55: 合併總損益 | B55: 280968407 | C55: 295878482 | D55: 206949036 | E55: 181717006 | F55: 210795274 | G55: 238306201 | H55: 225221263 | I55: 247661438
A56: 其他綜合損益─OCI | B56: 32121399 | C56: -16481956 | D56: -3295773 | E56: 5659104 | F56: 26049225 | G56: -37226200 | H56: 41273948 | I56: 13464599
A57: 應付帳款付現天數 | B57: 22.85 | C57: 22.82 | D57: 21.28 | E57: 19.87 | F57: 18.69 | G57: 17.2 | H57: 18.8 | I57: 17.54
A58: 負債比率％ | B58: 40.73 | C58: 40.37 | D58: 38.7 | E58: 37.75 | F58: 38.5 | G58: 37.04 | H58: 36.67 | I58: 36.14
A59: 流動比率 | B59: 249.46 | C59: 217.42 | D59: 228.58 | E59: 241.72 | F59: 214.68 | G59: 240.16 | H59: 239.02 | I59: 247.08
A60: 速動比率 | B60: 218.04 | C60: 189.88 | D60: 198.98 | E60: 207.63 | F60: 182.9 | G60: 206.84 | H60: 207.05 | I60: 215.58
A61: 折舊合計_(單季) | B61: 103147219 | C61: 105375960 | D61: 108083376 | E61: 121643961 | F61: 144926830 | G61: 148278504 | H61: 156697101 | I61: 162929310
A62: 攤銷合計_(單季) | B62: 2198447 | C62: 2205937 | D62: 2239265 | E62: 2295727 | F62: 2353332 | G62: 2369926 | H62: 2326061 | I62: 2237284
A63: 來自營運之現金流量_(單季) | B63: 412698167 | C63: 486881904 | D63: 385244745 | E63: 167247979 | F63: 294645276 | G63: 394829347 | H63: 436311108 | I63: 377668210
A64: 投資活動之現金流量_(單季) | B64: -284390325 | C64: -342532013 | D64: -272231795 | E64: -259326076 | F64: -242243223 | G64: -132319502 | H64: -159806991 | I64: -197607330
A65: 籌資活動之現金流量 | B65: -130406753 | C65: -69831545 | D65: -64487030 | E65: -26588885 | F65: -38451204 | G65: -75367133 | H65: -71685617 | I65: -90244583
A66: 本期產生現金流量_(單季) | B66: 42823587 | C66: 46801299 | D66: 42418727 | E66: -108508826 | F66: 35082551 | G66: 153621218 | H66: 232767951 | I66: 100931647
A67: 自由現金流量 (D) | B67: -25831672 | C67: 164747150 | D67: 805376 | E67: 28624877 | F67: 168144056 | G67: 50787637 | H67: 56801902 | I67: 90998250
A68: 每股現金流量 | B68: 15.92 | C68: 18.78 | D68: 14.86 | E68: 6.45 | F68: 11.36 | G68: 15.23 | H68: 16.83 | I68: 14.57
A69: 加權平均股數 (仟股) | B69: 25928993 | C69: 25929190 | D69: 25929088 | E69: 25929268 | F69: 25929267 | G69: 25929223 | H69: 25929267 | I69: 25928972
A70: 平均售貨天數 | B70: 81.72 | C70: 84.61 | D70: 89.56 | E70: 92.88 | F70: 90.32 | G70: 79.47 | H70: 84.76 | I70: 77.85
A71: 存貨週轉率 (次) | B71: 1.11 | C71: 1.08 | D71: 1.02 | E71: 0.98 | F71: 1.01 | G71: 1.15 | H71: 1.07 | I71: 1.17
A72: 季別 | B72: 3 | C72: 4 | D72: 1 | E72: 2 | F72: 3 | G72: 4 | H72: 1 | I72: 2
A73: 營業費用率 | B73: 9.82 | C73: 10.32 | D73: 10.87 | E73: 12.1 | F73: 12.57 | G73: 11.45 | H73: 11.03 | I73: 10.44
A74: 歸屬於母公司-稅後純益(%) | B74: =B36/B3*100 -> 45.80756817 | C74: =C36/C3*100 -> 47.30441279 | D74: 40.69468005 | E74: 37.80853234 | F74: 38.59288398 | G74: 38.16165165 | H74: 38.04725949 | I74: 36.79907691
A75: 歸屬於母公司-稅後權益報酬率(%) | B75: =B36/B44*100 -> 10.25815981 | C75: =C36/C44*100 -> 10.04545197 | D75: 6.72419848 | E75: 5.701262095 | F75: 6.301610065 | G75: 6.901361778 | H75: 6.201911509 | I75: 6.537040147
E77: 1 | F77: 2 | G77: 3 | H77: 4 | I77: 5 | J77: 6

Sheet IFRS資產負債表
A1: 2330 台積電
A2: Data Field | B2: 2023-06-30 | C2: 2023-09-28 | D2: 2023-12-29 | E2: 2024-03-29 | F2: 2024-06-28 | I2: 年季 | J2: =YEAR(B2)&IF(MONTH(B2)<12,"0"&MONTH(B2),MONTH(B2)) -> 202306 | K2: =YEAR(C2)&IF(MONTH(C2)<12,"0"&MONTH(C2),MONTH(C2)) -> 202309 | L2: =YEAR(D2)&IF(MONTH(D2)<12,"0"&MONTH(D2),MONTH(D2)) -> 202312 | M2: =YEAR(E2)&IF(MONTH(E2)<12,"0"&MONTH(E2),MONTH(E2)) -> 202403 | N2: =YEAR(F2)&IF(MONTH(F2)<12,"0"&MONTH(F2),MONTH(F2)) -> 202406
A3: 現金及約當現金 | B3: 1276723984 | C3: 1311806535 | D3: 1465427753 | E3: 1698195704 | F3: 1799127351 | I3: 現金及約當現金(千) | J3: =B3 -> 1276723984 | K3: =C3 -> 1311806535 | L3: 1465427753 | M3: 1698195704 | N3: 1799127351
A4: 透過損益按公允價值衡量之金融資產─流動 | I4: 透過損益按公允價值衡量之金融資產–流動(千) | J4: =B4 -> 0 | K4: 0 | L4: 0 | M4: 0 | N4: 0
A5: 備供出售金融資產─流動 | B5: 140774929 | C5: 154838390 | D5: 154530830 | E5: 175880463 | F5: 185232206 | I5: 備供出售金融資產–流動(千) | J5: =B5 -> 140774929 | K5: 154838390 | L5: 154530830 | M5: 175880463 | N5: 185232206
A6: 無活絡市場之債券投資─流動 | I6: 短期投資合計(千) | J6: =SUM(B4:B9) -> 140804633 | K6: =SUM(C4:C9) -> 154875841 | L6: =SUM(D4:D9) -> 154530830 | M6: =SUM(E4:E9) -> 175880463 | N6: =SUM(F4:F9) -> 185233615
A7: 以成本衡量之金融資產─流動 | I7: 應收票據淨額(千) | J7: =B10 -> 191026814 | K7: 222823910 | L7: 201938365 | M7: 201979697 | N7: 210210419
A8: 避險之衍生金融資產─流動 | B8: 29704 | C8: 37451 | D8: 0 | E8: 0 | F8: 1409 | I8: 應收票據–關係人淨額(千) | J8: 862572 | K8: 356257 | L8: 624451 | M8: 479363 | N8: 1089662
A9: 持有至到期日金融資產─流動 | I9: 存貨(千) | J9: =B13 -> 234332949 | K9: 262090072 | L9: 250997088 | M9: 267123339 | N9: 272490587
A10: 應收帳款及票據 | B10: 191026814 | C10: 222823910 | D10: 201938365 | E10: 201979697 | F10: 210210419 | I10: 預付款項(千) | J10: 0 | K10: 0 | L10: 0 | M10: 0 | N10: 0
A11: 應收帳款及票據─關係人 | B11: 862572 | C11: 356257 | D11: 624451 | E11: 479363 | F11: 1089662 | I11: 其他流動資產(千) | J11: 16427659 | K11: 19221060 | L11: 26222380 | M11: 28200526 | N11: 22293958
A12: 其他應收款 | B12: 2521323 | C12: 82363 | D12: 71871 | E12: 79307 | F12: 2403027 | I12: 流動資產(千) | J12: 1959964207 | K12: 2082477636 | L12: 2194032910 | M12: 2452767394 | N12: 2591658093
A13: 存貨 | B13: 234332949 | C13: 262090072 | D13: 250997088 | E13: 267123339 | F13: 272490587 | I13: 透過損益按公允價值衡量之金融資產–非流動(千) | J13: =B23 -> 0 | K13: =C23 -> 0 | L13: =D23 -> 0 | M13: =E23 -> 0 | N13: =F23 -> 0
A14: 預付費用及預付款 | B14: 0 | C14: 0 | D14: 0 | E14: 0 | F14: 0 | I14: 備供出售金融資產–非流動(千) | J14: =B22 -> 7516718 | K14: =C22 -> 7933799 | L14: =D22 -> 7208655 | M14: =E22 -> 7428408 | N14: =F22 -> 7223448
A15: 其他流動資產 | B15: 16427659 | C15: 19221060 | D15: 26222380 | E15: 28200526 | F15: 22293958 | I15: 採用權益法之投資(千) | J15: =B17 -> 26845396 | K15: =C17 -> 28921558 | L15: =D17 -> 29616638 | M15: =E17 -> 31168264 | N15: =F17 -> 29600356
A16: 流動資產 | B16: 1959964207 | C16: 2082477636 | D16: 2194032910 | E16: 2452767394 | F16: 2591658093 | I16: 土地(千) | J16: =B83 -> 0 | K16: =C83 -> 0 | L16: =D83 -> 0 | M16: =E83 -> 0 | N16: =F83 -> 0
A17: 採權益法之長期股權投資 | B17: 26845396 | C17: 28921558 | D17: 29616638 | E17: 31168264 | F17: 29600356 | I17: 房屋及建築(千) | J17: =B85 -> 424512876 | K17: 427256494 | L17: 430809064 | M17: 428257444 | N17: 446310865
A18: 無活絡市場之債券投資─非流動 | I18: 機器設備(千) | J18: 1643092148 | K18: 1637594965 | L18: 1685977156 | M18: 1722370453 | N18: 1686324743
A19: 以成本衡量之金融資產─非流動 | I19: 其他不動產、廠房及設備(千) | J19: =B84+B87+B88+B89+B90+B91+B92+B93+B94+B95+B96 -> 879628369 | K19: =C84+C87+C88+C89+C90+C91+C92+C93+C94+C95+C96 -> 1067812908 | L19: =D84+D87+D88+D89+D90+D91+D92+D93+D94+D95+D96 -> 947688764 | M19: =E84+E87+E88+E89+E90+E91+E92+E93+E94+E95+E96 -> 901220092 | N19: =F84+F87+F88+F89+F90+F91+F92+F93+F94+F95+F96 -> 973224449
A20: 持有至到期日金融資產─非流動 | I20: 不動產、廠房及設備(千) | J20: 49099 | K20: 49100 | L20: 49101 | M20: 49102 | N20: 49103
A21: 避險之衍生金融資產─非流動 | B21: 0 | C21: 0 | D21: 0 | E21: 0 | F21: 0 | I21: 投資性不動產(千) | J21: =B97 -> 0 | K21: =C97 -> 0 | L21: =D97 -> 0 | M21: =E97 -> 0 | N21: =F97 -> 0
A22: 備供出售金融資產─非流動 | B22: 7516718 | C22: 7933799 | D22: 7208655 | E22: 7428408 | F22: 7223448 | I22: 商譽 | J22: =B26 -> 0 | K22: 0 | L22: 0 | M22: 0 | N22: 0
A23: 透過損益按公允價值衡量之金融資產─非流動 | I23: 特許權(千) | J23: 0 | K23: 0 | L23: 0 | M23: 0 | N23: 0
A24: 不動產廠房及設備 | B24: 2947233393 | C24: 3132664367 | D24: 3064474984 | E24: 3051847989 | F24: 3105860057 | I24: 發展中之無形資產 | J24: 18001489 | K24: 17405834 | L24: 16970306 | M24: 16272753 | N24: 16397484
A25: 商譽淨額 | B25: 5848444 | C25: 6004735 | D25: 5796438 | E25: 5966172 | F25: 6033115 | I25: 無形資產(千) | J25: 23849933 | K25: 23410569 | L25: 22766744 | M25: 22238925 | N25: 22430599
A26: 特許權 | B26: 0 | C26: 0 | D26: 0 | E26: 0 | F26: 0 | I26: 遞延所得稅資產(千) | J26: 68379721 | K26: 71030144 | L26: 64175787 | M26: 63729274 | N26: 65160047
A27: 發展中之無形資產 | B27: 0 | C27: 0 | D27: 0 | E27: 0 | F27: 0 | I27: 預付設備款 | J27: 2601 | K27: 2602 | L27: 2603 | M27: 2604 | N27: 2605
A28: 其他無形資產淨額 | B28: 18001489 | C28: 17405834 | D28: 16970306 | E28: 16272753 | F28: 16397484 | I28: 預付投資款(千) | J28: =B98 -> 0 | K28: =C98 -> 0 | L28: =D98 -> 0 | M28: =E98 -> 0 | N28: =F98 -> 0
A29: 商譽及無形資產合計 | B29: 23849933 | C29: 23410569 | D29: 22766744 | E29: 22238925 | F29: 22430599 | I29: 其他非流動資產(千) | J29: =B32 -> 13832676 | K29: =C32 -> 17372309 | L29: =D32 -> 17053843 | M29: =E32 -> 18702059 | N29: =F32 -> 17522804
A30: 遞延所得稅資產 | B30: 68379721 | C30: 71030144 | D30: 64175787 | E30: 63729274 | F30: 65160047 | I30: 資產總計(千) | J30: =B34 -> 5149465045 | K30: 5484556381 | L30: 5532371215 | M30: 5787891082 | N30: 5982364014
A31: 預付設備款 | B31: 0 | C31: 0 | D31: 0 | E31: 0 | F31: 0 | I31: 短期借款(千) | J31: 0 | K31: 0 | L31: 0 | M31: 0 | N31: 0
A32: 其他非流動資產─其他 | B32: 13832676 | C32: 17372309 | D32: 17053843 | E32: 18702059 | F32: 17522804 | I32: 應付帳款及票據 | J32: 48972779 | K32: 53772306 | L32: 57293057 | M32: 57610008 | N32: 63947072
A33: 非流動資產 | B33: 3189500838 | C33: 3402078745 | D33: 3338338305 | E33: 3335123688 | F33: 3390705921 | I33: 應付帳款(千) | J33: 246036 | K33: 246037 | L33: 246038 | M33: 246039 | N33: 246040
A34: 資產總額 | B34: 5149465045 | C34: 5484556381 | D34: 5532371215 | E34: 5787891082 | F34: 5982364014 | I34: 應付帳款及票據─關係人 | J34: =B37 -> 1178664 | K34: 1621423 | L34: 1566300 | M34: 1185196 | N34: 1184013
A35: 短期借款 | B35: 0 | C35: 0 | D35: 0 | E35: 0 | F35: 0 | I35: 其他應付款(千) | J35: 399909598 | K35: 452806783 | L35: 423960584 | M35: 398231918 | N35: 439955866
A36: 應付帳款及票據 | B36: 48972779 | C36: 53772306 | D36: 57293057 | E36: 57610008 | F36: 63947072 | I36: 預收款項(千) | J36: =B99 -> 0 | K36: =C99 -> 0 | L36: =D99 -> 0 | M36: =E99 -> 0 | N36: =F99 -> 0
A37: 應付帳款及票據─關係人 | B37: 1178664 | C37: 1621423 | D37: 1566300 | E37: 1185196 | F37: 1184013 | I37: 一年或一營業週期內到期長期負債(千) | J37: =B41 -> 8125556 | K37: =C41 -> 7420132 | L37: =D41 -> 9293266 | M37: =E41 -> 12500151 | N37: =F41 -> 23075426
A38: 其他應付款 | B38: 399909598 | C38: 452806783 | D38: 423960584 | E38: 398231918 | F38: 439955866 | I38: 其他流動負債(千) | J38: 1241 | K38: 1242 | L38: 1243 | M38: 1244 | N38: 1245
A39: 當期所得稅負債 | B39: 70060259 | C39: 102953391 | D39: 98912902 | E39: 139222213 | F39: 110302021 | I39: 流動負債(千) | J39: =B43 -> 810829007 | K39: =C43 -> 970034816 | L39: =D43 -> 913583316 | M39: =E43 -> 1026180079 | N39: =F43 -> 1048915680
A40: 負債準備─流動 | B40: 0 | C40: 0 | D40: 0 | E40: 0 | F40: 0 | I40: 應付公司債(千) | J40: 901710299 | K40: 932479423 | L40: 913899843 | M40: 955540142 | N40: 965313898
A41: 一年內到期長期負債 | B41: 8125556 | C41: 7420132 | D41: 9293266 | E41: 12500151 | F41: 23075426 | I41: 長期借款(千) | J41: 5611138 | K41: 5013050 | L41: 4382965 | M41: 10020132 | N41: 9029765
A42: 其他流動負債 | B42: 229959108 | C42: 272442326 | D42: 241120950 | E42: 339297462 | F42: 341051665 | I42: 應計退休金負債(千) | J42: 8604642 | K42: 8615678 | L42: 9257224 | M42: 7700892 | N42: 7702315
A43: 流動負債 | B43: 810829007 | C43: 970034816 | D43: 913583316 | E43: 1026180079 | F43: 1048915680 | I43: 其他非流動負債 | J43: 187133564 | K43: 165967433 | L43: 179249329 | M43: 94223410 | N43: 102975027
A44: 應付公司債─非流動 | B44: 901710299 | C44: 932479423 | D44: 913899843 | E44: 955540142 | F44: 965313898 | I44: 非流動負債(千) | J44: 1133167839 | K44: 1141703458 | L44: 1135525052 | M44: 1095994749 | N44: 1113300129
A45: 銀行借款─非流動 | B45: 5611138 | C45: 5013050 | D45: 4382965 | E45: 10020132 | F45: 9029765 | I45: 負債總計(千) | J45: 1943996846 | K45: 2111738274 | L45: 2049108368 | M45: 2122174828 | N45: 2162215809
A46: 應計退休金負債 | B46: 8604642 | C46: 8615678 | D46: 9257224 | E46: 7700892 | F46: 7702315 | I46: 普通股股本(千) | J46: 259320710 | K46: 259320710 | L46: 259320710 | M46: 259336292 | N46: 259336292
A47: 其他非流動負債 | B47: 187133564 | C47: 165967433 | D47: 179249329 | E47: 94223410 | F47: 102975027 | I47: 特別股股本(千) | J47: 0 | K47: 0 | L47: 0 | M47: 0 | N47: 0
A48: 非流動負債 | B48: 1133167839 | C48: 1141703458 | D48: 1135525052 | E48: 1095994749 | F48: 1113300129 | I48: 股本(千) | J48: 259320710 | K48: 259320710 | L48: 259320710 | M48: 259336292 | N48: 259336292
A49: 負債總額 | B49: 1943996846 | C49: 2111738274 | D49: 2049108368 | E49: 2122174828 | F49: 2162215809 | I49: 資本公積–發行溢價(千) | J49: 33299225 | K49: 33299225 | L49: 33299225 | M49: 33705184 | N49: 33705184
A50: 普通股股本 | B50: 259320710 | C50: 259320710 | D50: 259320710 | E50: 259336292 | F50: 259336292 | I50: 資本公積–庫藏股票交易(千) | J50: =B58 -> 0 | K50: =C58 -> 0 | L50: =D58 -> 0 | M50: =E58 -> 0 | N50: =F58 -> 0
A51: 特別股股本 | B51: 0 | C51: 0 | D51: 0 | E51: 0 | F51: 0 | I51: 資本公積–取得或處分子公司股權價格與帳面價值差額(千) | J51: =B56 -> 8406282 | K51: =C56 -> 8406282 | L51: =D56 -> 8406282 | M51: =E56 -> 8411566 | N51: =F56 -> 8411566
A52: 股本 | B52: 259320710 | C52: 259320710 | D52: 259320710 | E52: 259336292 | F52: 259336292 | I52: 資本公積–處分資產增益(千) | J52: =B54 -> 0 | K52: =C54 -> 0 | L52: =D54 -> 0 | M52: =E54 -> 0 | N52: =F54 -> 0
A53: 資本公積─發行溢價 | B53: 33299225 | C53: 33299225 | D53: 33299225 | E53: 33705184 | F53: 33705184 | I53: 資本公積–受贈資產(千) | J53: =B57 -> 64955 | K53: =C57 -> 64955 | L53: =D57 -> 81368 | M53: =E57 -> 81368 | N53: =F57 -> 81368
A54: 資本公積─處分資產增益 | I54: 資本公積–採用權益法認列關聯企業及合資股權淨值之變動數(千) | J54: =B55 -> 4537906 | K54: =C55 -> 4521582 | L54: =D55 -> 4502332 | M54: =E55 -> 4498025 | N54: =F55 -> 4498212
A55: 資本公積─採權益法認列關聯企業及合資企業股權淨值之變動數 | B55: 4537906 | C55: 4521582 | D55: 4502332 | E55: 4498025 | F55: 4498212 | I55: 資本公積–合併溢額(千) | J55: =B59 -> 22803291 | K55: 22803291 | L55: 22803291 | M55: 22803291 | N55: 22803291
A56: 資本公積─處分子公司股權價格與帳面價值差額 | B56: 8406282 | C56: 8406282 | D56: 8406282 | E56: 8411566 | F56: 8411566 | I56: 資本公積–員工認股權(千) | J56: 0 | K56: 0 | L56: 0 | M56: 0 | N56: 0
A57: 資本公積─受贈資產 | B57: 64955 | C57: 64955 | D57: 81368 | E57: 81368 | F57: 81368 | I57: 資本公積–認股權(千) | J57: 0 | K57: 0 | L57: 0 | M57: 0 | N57: 0
A58: 資本公積─庫藏股票交易 | I58: 資本公積–其他(千) | J58: =B63 -> 0 | K58: 0 | L58: 0 | M58: 0 | N58: 0
A59: 資本公積─合併溢額 | B59: 22803291 | C59: 22803291 | D59: 22803291 | E59: 22803291 | F59: 22803291 | I59: 資本公積(千) | J59: 69895542 | K59: 69879218 | L59: 69876381 | M59: 70940489 | N59: 70940676
A60: 資本公積─員工認股權 | I60: 法定盈餘公積(千) | J60: 311146899 | K60: 311146899 | L60: 311146899 | M60: 311146899 | N60: 311146899
A61: 資本公積─認股權 | I61: 特別盈餘公積(千) | J61: 23593925 | K61: 17228363 | L61: 0 | M61: 28020822 | N61: 0
A62: 資本公積─限制員工權利股票 | B62: 783883 | C62: 783883 | D62: 783883 | E62: 1441055 | F62: 1441055 | I62: 未分配盈餘(千) | J62: 2542569779 | K62: 2682157537 | L62: 2846883893 | M62: 2955395983 | N62: 3127527816
A63: 資本公積─其他 | I63: 保留盈餘(千) | J63: 2877310603 | K63: 3010532799 | L63: 3158030792 | M63: 3294563704 | N63: 3438674715
A64: 資本公積合計 | B64: 69895542 | C64: 69879218 | D64: 69876381 | E64: 70940489 | F64: 70940676 | I64: 國外營運機構財務報表換算之兌換差額(千) | J64: -9862739 | K64: 18198873 | L64: -25316769 | M64: 12297132 | N64: 25682909
A65: 法定盈餘公積 | B65: 311146899 | C65: 311146899 | D65: 311146899 | E65: 311146899 | F65: 311146899 | I65: 備供出售金融資產未實現損益(千) | J65: -13 | K65: -12 | L65: -11 | M65: -10 | N65: -9
A66: 特別盈餘公積 | B66: 23593925 | C66: 17228363 | D66: 0 | E66: 28020822 | F66: 0 | I66: 庫藏股票(千) | J66: =B71 -> 0 | K66: 0 | L66: 0 | M66: 0 | N66: -3089177
A67: 未分配盈餘 | B67: 2542569779 | C67: 2682157537 | D67: 2846883893 | E67: 2955395983 | F67: 3127527816 | I67: 母公司業主權益(千) | J67: 3188750455 | K67: 3348349657 | L67: 3458913627 | M67: 3635731930 | N67: 3791402874
A68: 保留盈餘 | B68: 2877310603 | C68: 3010532799 | D68: 3158030792 | E68: 3294563704 | F68: 3438674715 | I68: 非控制權益(千) | J68: 16717744 | K68: 24468450 | L68: 24349220 | M68: 29984324 | N68: 28745331
A69: 國外營運機構財務報表換算之兌換差額 | B69: -9862739 | C69: 18198873 | D69: -25316769 | E69: 12297132 | F69: 25682909 | I69: 權益總計(千) | J69: 3205468199 | K69: 3372818107 | L69: 3483262847 | M69: 3665716254 | N69: 3820148205
A70: 備供出售金融資產未實現損益 | B70: -8812431 | C70: -10609427 | D70: -4099928 | E70: -1588684 | F70: -536274 | I70: 每股淨值(元) | J70: 122.97 | K70: 129.12 | L70: 133.38 | M70: 140.19 | N70: 146.21
A71: 庫藏股票帳面值 | B71: 0 | C71: 0 | D71: 0 | E71: 0 | F71: -3089177
A72: 母公司股東權益合計 | B72: 3188750455 | C72: 3348349657 | D72: 3458913627 | E72: 3635731930 | F72: 3791402874 | I72: 年季 | J72: =J2 -> 202306 | K72: =K2 -> 202309 | L72: =L2 -> 202312 | M72: =M2 -> 202403 | N72: =N2 -> 202406
A73: 非控制權益 | B73: 16717744 | C73: 24468450 | D73: 24349220 | E73: 29984324 | F73: 28745331 | I73: 營業活動現金流量(千) | J73: =-B78 -> -167247979 | K73: -294645276 | L73: -394829347 | M73: -436311108 | N73: -377668210
A74: 股東權益總額 | B74: 3205468199 | C74: 3372818107 | D74: 3483262847 | E74: 3665716254 | F74: 3820148205 | I74: 投資活動現金流量(千) | J74: 259326076 | K74: 242243223 | L74: 132319502 | M74: 159806991 | N74: 197607330
A75: 每股淨值 (B) | B75: 122.97 | C75: 129.12 | D75: 133.38 | E75: 140.19 | F75: 146.21 | I75: 籌資活動現金流量(千) | J75: 26588885 | K75: 38451204 | L75: 75367133 | M75: 71685617 | N75: 90244583
A76: 每股現金流量 | B76: 6.45 | C76: 11.36 | D76: 15.23 | E76: 16.83 | F76: 14.57 | I76: 匯率變動對現金及約當現金之影響(千) | J76: -10158156 | K76: -21131702 | L76: 33521494 | M76: -27949451 | N76: -11115350
A77: 本期產生現金流量 | B77: -108508826 | C77: 35082551 | D77: 153621218 | E77: 232767951 | F77: 100931647 | I77: 本期現金及約當現金增減數(千) | J77: =-B77 -> 108508826 | K77: =-C77 -> -35082551 | L77: =-D77 -> -153621218 | M77: =-E77 -> -232767951 | N77: =-F77 -> -100931647
A78: 來自營運之現金流量 | B78: 167247979 | C78: 294645276 | D78: 394829347 | E78: 436311108 | F78: 377668210 | I78: 自由現金流量(千) | J78: =-B82 -> -28624877 | K78: =-C82 -> -168144056 | L78: =-D82 -> -50787637 | M78: =-E82 -> -56801902 | N78: =-F82 -> -90998250
A79: 投資活動之現金流量 | B79: -259326076 | C79: -242243223 | D79: -132319502 | E79: -159806991 | F79: -197607330 | I79: 原始每股營業現金流量(元) | J79: =-B76 -> -6.45 | K79: =-C76 -> -11.36 | L79: =-D76 -> -15.23 | M79: =-E76 -> -16.83 | N79: =-F76 -> -14.57
A80: 籌資活動之現金流量 | B80: -26588885 | C80: -38451204 | D80: -75367133 | E80: -71685617 | F80: -90244583
A81: 匯率影響數 | B81: 10158156 | C81: 21131702 | D81: -33521494 | E81: 27949451 | F81: 11115350
A82: 自由現金流量 (D) | B82: 28624877 | C82: 168144056 | D82: 50787637 | E82: 56801902 | F82: 90998250
A83: 土地淨額 | B83: 0 | C83: 0 | D83: 0 | E83: 0 | F83: 0
A84: 土地改良物淨額 | B84: 7091922 | C84: 7211448 | D84: 7063923 | E84: 9060832 | F84: 12358837
A85: 房屋及建築淨額 | B85: 424512876 | C85: 427256494 | D85: 430809064 | E85: 428257444 | F85: 446310865
A86: 機器及儀器設備淨額 | B86: 1643092148 | C86: 1637594965 | D86: 1685977156 | E86: 1722370453 | F86: 1686324743
A87: 模具設備淨額 | B87: 0 | C87: 0 | D87: 0 | E87: 0 | F87: 0
A88: 水電設備淨額 | B88: 0 | C88: 0 | D88: 0 | E88: 0 | F88: 0
A89: 電腦通訊設備淨額 | B89: 0 | C89: 0 | D89: 0 | E89: 0 | F89: 0
A90: 試驗設備淨額 | B90: 0 | C90: 0 | D90: 0 | E90: 0 | F90: 0
A91: 運輸設備淨額 | B91: 0 | C91: 0 | D91: 0 | E91: 0 | F91: 0
A92: 租賃資產及改良淨額 | B92: 0 | C92: 0 | D92: 0 | E92: 0 | F92: 0
A93: 辦公設備淨額 | B93: 32600944 | C93: 32557017 | D93: 33075105 | E93: 32851395 | F93: 33459425
A94: 出租資產淨額 | B94: 15236 | C94: 3369 | D94: 50725 | E94: 225822 | F94: 217534
A95: 其他設備淨額 | B95: 0 | C95: 0 | D95: 0 | E95: 0 | F95: 0
A96: 未完工程淨額 | B96: 839920267 | C96: 1028041074 | D96: 907499011 | E96: 859082043 | F96: 927188653
A97: 投資性不動產淨額 | B97: 0 | C97: 0 | D97: 0 | E97: 0 | F97: 0
A98: 預付投資款 | B98: 0 | C98: 0 | D98: 0 | E98: 0 | F98: 0
A99: 預收款項
